Workbook

Sheet calculations
A1: currentfa | B1: =VLOOKUP(1,A7:X237,18,FALSE) -> 2.419026343 | C1: dt | D1: =PI()/100 -> 0.03141592654 | F1: ax | G1: TIME | K1: TANG. ACCELERATION | L1: deltat | M1: =0.05 -> 0.05 | N1: j | O1: 3 | P1: 345 | Q1: current r | R1: =(alpha-beta*COS(S6)) -> 5.504759474 | S1: r | T1: (alpha-beta*COS(φ)) | W1: dr/dφ | X1: beta*sin(a7) | Z1: d²r/dφ²=beta*cos(φ) | AB1: 64 | AE1: alpha | AF1: =alpha -> 4 | AG1: d²y/dx²=(d²y/dφ² dx/dφ-d²x/dφ² * dy/dφ)/[dx/dφ]^3 | AL1: currentxn | AM1: =alpha*(3*COS(currentF)-COS(3*currentF)) -> -11.2426567 | AN1: =4*alpha*(SIN(currentF))^3 -> -4.573425278 | AO1: curentyn | AQ1: dx/df | AR1: =alpha*(-3*SIN(currentF)+3*SIN(3*currentF)) -> -2.089235398 | AS1: d²x/dφ²=alpha*(-3*cos(currentf)+9*cos(3*currentf) | AT1: =alpha*(-3*COS(currentF)+9*COS(3*currentF)) -> 28.95545556 | AU1: current RN | AV1: =(1+(AR2/AR1)^2)^1.5/d2yd2x -> -7.904755616 | AW1: n | AX1: =-AR1/AR2 -> -0.1333197971 | AY1: =1/SQRT(1+AX1^2) -> 0.9912296583 | AZ1: =AY1*AX1 -> -0.1321505369 | BB1: currentvxn | BC1: =v0/SQRT(1+dydxn^2)*BE1 -> -0.3964516108 | BD1: xprin-currentx | BE1: =IF(xprinn>currentxn,-1,1) -> -1 | BF1: =v0^2/ABS(currentrn) -> 1.138555123 | BG1: =BF1*ABS(nxn)*SIGN(rxn-currentxn) -> 1.128569605 | BH1: =BF1*ABS(nyn)*SIGN(ryn-currentyn) -> -0.1504606708
A2: xcurrenta | B2: ycurrenta | C2: alpha | D2: 4 | F2: ay | L2: t | M2: =deltat*P1 -> 17.25 | N2: F | O2: =P1*dt -> 10.83849465 | Q2: current x | R2: =beta*R1*COS(pol*S6) -> 1.45491384 | S2: x | T2: beta*r*COS(pol*φ) | W2: dx/dφ | X2: beta*(dr/dφ cos(pol*φ)-r*pol*sin(pol*φ)) | AE2: beta | AF2: =beta -> 2 | AH2: po; | AI2: =pol -> 2 | AM2: =AM1 -> -11.2426567 | AN2: =AN1 -> -4.573425278 | AQ2: dy/df | AR2: =12*alpha*(SIN(currentF))^2*COS(currentF) -> -15.67085642 | AS2: d²y/df²=12*alpha*(2*(cos(currentf))^3-(sin(currentf))^2)*sin(currentf)) | AT2: =12*alpha*SIN(currentF)*(2*(COS(currentF))^2-(SIN(currentF))^2) -> -22.07721742 | AU2: d2ydx2 | AV2: =((AT2*AR1-AT1*AR2))/AR1^3 -> -54.81567373 | AX2: nn | AY2: nxn | AZ2: nyn | BB2: currentvyn | BC2: =v0*ABS(dydxn)/SQRT(1+dydxn^2)*BE2 -> -2.973688975 | BD2: yprin-ypmeta | BE2: =IF(yprinn>currentyn,-1,1) -> -1 | BG2: axn | BH2: ayn
A3: =VLOOKUP(1,A7:W239,6,FALSE) -> 1.378721252 | B3: =VLOOKUP(1,A7:X239,7,FALSE) -> 7.274724325 | C3: beta | D3: 2 | E3: pol | F3: 2 | G3: =R_current -> -38.48675403 | H3: =R | J3: REMAIN_S | K3: =MOD(currentsa,TOTAL_LENGTH) -> 24.88158708 | L3: scurrent | M3: =v0*M2 -> 51.75 | O3: currents | P3: =v0*t -> 51.75 | Q3: currenty | R3: =gama*R1*SIN(pol_2*S6) -> -7.252296394 | S3: y | T3: gama*r*SIN(pol_2*φ) | W3: dy/dφ | X3: gama*(dr/dφ*sin(pol_2*φ)+r*pol_2*cos(pol_2*φ)) | AE3: gama | AF3: =gama -> 2 | AH3: pol_2 | AI3: =pol_2 -> 1 | AL3: xprinn | AM3: =alpha*(3*COS(ftmiondt)-COS(3*ftmiondt)) -> -11.17317361 | AN3: =4*alpha*(SIN(ftmiondt))^3 -> -4.143861157 | AO3: yprinn | AQ3: dy/dx | AR3: =AR2/AR1 -> 7.500761491 | AS3: d²x/dφ²=alpha*(-3*cos(currentf)+9*cos(3*currentf) | AX3: rxn | AY3: =IF(rrn>rcrn,AZ3,currentxn-nxn*currentrn) -> -3.407228492 | AZ3: =currentxn+currentrn*nxn -> -19.07808491 | BA3: =SQRT(AZ3^2+AZ4^2) -> 19.40169598 | BC3: =currentvxn -> -0.3964516108 | BD3: =currentvyn -> -2.973688975 | BG3: =currentxn -> -11.2426567 | BH3: =currentyn -> -4.573425278
A4: =xcurrenta -> 1.378721252 | B4: =ycurrenta -> 7.274724325 | C4: gama | D4: 2 | E4: pol2 | F4: 1 | G4: =AF10/AF9 -> 0.2952828475 | H4: dy/dx | J4: =INT(K4) -> -1 | K4: =currentsa/TOTAL_LENGTH -> -0.678026886 | M4: currentsa | N4: =v0*t+1/2*epitaxynsh*t^2 -> -52.396875 | O4: currentdy/dx | P4: =U5 -> 0.2953283098 | Q4: d²r/dt² | R4: beta*cos(φ) | T4: d²x/dφ²=beta*(d²r/dφ²cos(pol*φ)-2*pol*dr/dφ*sin(pol*φ)-pol²*r*cos(pol*φ)) | AC4: d²y/dx²=(d²y/dφ² dx/dφ-d²x/dφ²*dy/dφ)/[dx/dφ]^3 | AJ4: d²x/dφ²=alpha*(-3*cos(currentf)+9*cos(3*currentf) | AR4: dx/df=alpha*(-3*SIN(currentF)+3*SIN(3*currentF)) | AX4: ryn | AY4: =IF(rrn>rcrn,AZ4,currentyn-currentrn*nyn) -> -5.618042977 | AZ4: =currentyn+currentrn*nyn -> -3.528807579 | BA4: =SQRT(currentxn^2+currentyn^2) -> 12.13727929 | BB4: r | BC4: vx | BD4: vy | BG4: =BG3+BG1 -> -10.1140871 | BH4: -4.723885949
A5: rfa | B5: =VLOOKUP(1,A8:X241,5,FALSE) -> 5.500222139 | C5: v0 | D5: 3 | F5: 2 | G5: =AF14 -> -0.02945425645 | H5: =d²y/dx² | M5: C_S_PRIN | N5: =v0*(t-deltat)+(1)/2*epitaxynsh*(t-deltat)^2 -> -51.944 | O5: =IF((currentsa)>(C_S_PRIN),1,-1) -> -1 | P5: SIGN OF DS | S5: find φ= | U5: =SUM(U7:U232) -> 0.2953283098 | V5: =SUM(V8:V232) -> 3.832743037 | Y5: epitaxynsh | Z5: =(O1-10)/10 -> -0.7 | AC5: dy/dx=dy/dφ/dx/dφ | AF5: d²y/dφ²=gama*(d²r/dφ²sin(pol_2*φ)+2*pol_2*dr/dφ*cos(pol_2*φ)-pol_2²*r*sin(pol_2*φ)) | AJ5: d²y/df²=12*alpha*(2*(cos(currentf))^3-(sin(currentf))^2)*sin(currentf)) | AR5: dy/df=12*alpha*(SIN(currentF))^2*COS(currentF) | BC5: =currentxn -> -11.2426567 | BD5: =currentyn -> -4.573425278 | BG5: =-1/20*BH1+18/20*BG1+BG3 -> -10.21942102 | BH5: =1/20*BG1+18/20*BH1+BH3 -> -4.652411401
A6: =VLOOKUP(1,A7:W239,2,FALSE) -> 77 | B6: =A6+7 -> 84 | C6: φ | D6: x | E6: r | F6: x | G6: y | H6: dr/dφ | I6: dx/dφ | J6: dy/dφ | K6: ds/dφ=sqrt(dx/dφ²+dy/dφ²) | L6: d²r/dφ² | M6: d²x/dφ² | N6: d²y/dφ² | O6: d²y/dx² | P6: R | Q6: s | R6: φ | S6: =MAX(S7:S232) -> 3.860721701 | T6: dy/dx | U6: dy/dx current | V6: φ(t-dt) | W6: =v²/R | X6: currentvx | Y6: =v0/SQRT(1+currentdy_dx^2)*AI6 -> -2.877151798 | AE6: rprin | AF6: =alpha-beta*COS(V5) -> 5.541026486 | AG6: xpin | AH6: =beta*AF6*COS(pol*V5) -> 2.076569654 | AI6: =IF(xpin>current_x,-1,1) -> -1 | AL6: x | AM6: y | AR6: d²y/df²=12*alpha*sin(currentf)*(2*(cos(currentf))^2-sin(currentf))^2) | BC6: =BC5+BC3 -> -11.63910831 | BD6: -7.547114253 | BG6: =1/20*BH1+18/20*BG1+BG3 -> -10.23446709 | BH6: =-1/20*BG1+18/20*BH1+BH3 -> -4.765268362
B7: =0 -> 0 | C7: 0 | D7: =alpha*(gama*COS(C7)-COS(beta*C7)) -> 4 | E7: =(alpha-beta*COS(C7)) -> 2 | F7: =beta*E7*COS(pol*C7) -> 4 | G7: =gama*E7*SIN(pol_2*C7) -> 0 | H7: =beta*SIN(C7) -> 0 | I7: =beta*H7*COS(pol*C7)-beta*E7*pol*SIN(pol*C7) -> 0 | J7: =gama*H7*SIN(pol_2*C7)+gama*E7*pol_2*COS(pol_2*C7) -> 4 | K7: =SQRT(I7^2+J7^2) -> 4 | L7: =beta*COS(C7) -> 2 | M7: =beta*(L7*COS(pol*C7)-2*pol*H7*SIN(pol*C7)-pol^2*E7*COS(pol*C7)) -> -12 | N7: =gama*(L7*SIN(pol_2*C7)+2*pol_2*H7*COS(pol_2*C7)-pol_2^2*E7*SIN(pol_2*C7)) -> 0 | O7: =(N7*I7-M7*J7)/I7^2 ->  | P7: =IF(I7<>0,(1+(J7/I7)^2)^1.5/ABS(O7),"") ->  | Q7: 0 | R7: =C7 -> 0 | T7: =-J7/I7 ->  | U7: =IF(S7<>"",T6+(scurrent-Q6)*(T7-T6)/(Q7-Q6),"") ->  | V7: =IF(v0*($M$2-deltat)<Q7,IF(v0*($M$2-deltat)>Q6,R6,""),"") ->  | W7: =v0^2/P7 ->  | X7: currnentvy | Y7: =v0*ABS(currentdy_dx)/SQRT(1+currentdy_dx^2)*AI7 -> -0.8497043775 | Z7: =vxacurrent -> -8.707848059 | AA7: =vyacurrent -> 2.555192201 | AB7: =currentvx -> -2.877151798 | AC7: =currnentvy -> -0.8497043775 | AG7: YPRIN | AH7: =gama*AF6*SIN(pol_2*V5) -> -7.063966419 | AI7: =IF(YPRIN>currenty,-1,1) -> -1 | AL7: =alpha*(3*COS($C7)-COS(3*$C7)) -> 8 | AM7: =4*alpha*(SIN($C7))^3 -> 0 | AO7: =alpha*(3*COS(currentF)-COS(3*currentF)) -> -11.2426567 | AP7: =4*alpha*(SIN(currentF))^3 -> -4.573425278 | AR7: d²y/dx²=d/dx(dy/dx))=d/dx(dy/df/dx/df)=d/df(dy/df/dx/df)*1/dx/df=((d²y/df²*dx/df-dy/df*d²x/df²)/(dx/df)^3 | BC7: =-1/20*BD3+18/20*BC3+BC5 -> -11.4507787 | BD7: =1/20*BC3+18/20*BD3+BD5 -> -7.269567936 | BG7: =BG4 -> -10.1140871 | BH7: -4.723885949
A8: =IF(AND(REMAIN_S>Q8,REMAIN_S<Q9),1,0) -> 0 | B8: =B7+1 -> 1 | C8: =C7+dt -> 0.03141592654 | D8: 4.003945569 | E8: 2.000986879 | F8: 3.994076777 | G8: 0.1257050336 | H8: 0.06282151816 | I8: -0.3771769144 | J8: 4.003945569 | K8: =SQRT(I8^2+J8^2) -> 4.021671611 | L8: 1.999013121 | M8: -12.01772683 | N8: 0.2510380836 | O8: =(N8*I8-M8*J8)/I8^3 -> -894.9932285 | P8: =IF(I8<>0,(1+(J8/I8)^2)^1.5/ABS(O8),"") -> 1.354455549 | Q8: =Q7+dt*K7 -> 0.1256637061 | R8: =C8 -> 0.03141592654 | S8: =IF(scurrent>Q7,(IF(scurrent<Q8,(scurrent-Q7)*(R8-R7)/(Q8-Q7)+R7,""))) ->  | T8: =J8/I8 -> -10.61556372 | W8: 6.644736333 | X8: currentva | Y8: =(v0+epitaxynsh*t)*SIIGN_OF_DS -> 9.075 | Z8: vxa | AA8: vya | AB8: vx | AC8: vy | AE8: dr/dφ current | AF8: =beta*SIN(S6) -> -1.317459269 | AG8: row prina | AH8: =row_cura-SIIGN_DS*1 -> 85 | AI8: ROW_CURA | AJ8: =row_cura -> 84 | AL8: 8.011830866 | AM8: 0.0004958556635 | AX8: nephroid curvature | BC8: =1/20*BD3+18/20*BC3+BC5 -> -11.7481476 | BD8: =-1/20*BC3+18/20*BD3+BD5 -> -7.229922775
A9: 0 | B9: =B8+1 -> 2 | C9: 0.06283185307 | D9: 4.015755022 | E9: 2.003946543 | F9: 3.976289652 | G9: 0.2516576891 | H9: 0.1255810391 | I9: -0.7554628105 | J9: 4.015755022 | K9: =SQRT(I9^2+J9^2) -> 4.086197799 | L9: 1.996053457 | M9: -12.07044647 | N9: 0.5003417123 | O9: =(N9*I9-M9*J9)/I9^3 -> -111.545313 | P9: 1.418624841 | Q9: 0.252008246 | R9: =C9 -> 0.06283185307 | S9: =IF(scurrent>Q8,(IF(scurrent<Q9,(scurrent-Q8)*(R9-R8)/(Q9-Q8)+R8,""))) ->  | T9: -5.31562238 | W9: 6.344172004 | X9: vxacurrent | Y9: =SIGN(xcurrenta-xprina)*ABS(currentva)/SQRT(1+dydxa^2) -> -8.707848059 | Z9: =xcurrenta -> 1.378721252 | AA9: =ycurrenta -> 7.274724325 | AB9: =current_x -> 1.45491384 | AC9: =currenty -> -7.252296394 | AE9: dx/dφ current | AF9: =beta*(AF8*COS(pol*S6)-R1*pol*SIN(pol*S6)) -> -22.17412931 | AH9: =INDEX(A1:Y239,row_prin_a,3) -> 2.45044227 | AI9: =INDEX(A1:Y239,row_prin_a,6) -> 2.076569654 | AJ9: beta*r*COS(pol*φ) | AL9: 8.047171738 | AM9: 0.003960976009 | AR9: d²x/dφ²=alpha*(-3*cos(currentf)+9*cos(3*currentf) | AX9: =0 -> 0 | AY9: =rxn+currentrn*COS(AX9) -> -11.31198411 | AZ9: =ryn+currentrn*SIN(AX9) -> -5.618042977 | BC9: =BC6 -> -11.63910831 | BD9: -7.547114253
A10: 0 | B10: 3 | C10: 0.09424777961 | D10: 4.035346714 | E10: 2.008876071 | F10: 3.946586705 | G10: 0.3781038774 | H10: 0.1882166266 | I10: -1.13593777 | J10: 4.035346714 | K10: 4.192180545 | L10: 1.991123929 | M10: -12.15678175 | N10: 0.7461840101 | O10: =(N10*I10-M10*J10)/I10^3 -> -32.89019135 | P10: =IF(I10<>0,(1+(J10/I10)^2)^1.5/ABS(O10),"") -> 1.528234196 | Q10: 0.3803799359 | R10: =C10 -> 0.09424777961 | S10: =IF(scurrent>Q9,(IF(scurrent<Q10,(scurrent-Q9)*(R10-R9)/(Q10-Q9)+R9,"")),"") ->  | T10: -3.552436426 | W10: 5.889149727 | X10: vyacurrent | Y10: =ABS(Y9*dydxa)*SIGN(ycurrenta-yprina) -> 2.555192201 | Z10: =Z9+Z7 -> -7.329126807 | AA10: 9.829916526 | AB10: =AB9+AB7 -> -1.422237958 | AC10: -8.102000771 | AE10: dy/dφ current | AF10: =gama*(AF8*SIN(pol_2*S6)+current_r*pol_2*COS(pol_2*S6)) -> -6.547640043 | AH10: =currentfa -> 2.419026343 | AI10: =xcurrenta -> 1.378721252 | AL10: 8.105568833 | AM10: 0.01333533567 | AR10: d²y/df²=12*alpha*(2*(cos(currentf))^3-(sin(currentf))^2)*sin(currentf)) | AX10: =AX9+2*PI()/80 -> 0.07853981634 | AY10: -11.28761638 | AZ10: -6.238242954
A11: 0 | B11: 4 | C11: 0.1256637061 | D11: 4.062584966 | E11: 2.015770597 | F11: 3.904882915 | G11: 0.5052860942 | H11: 0.2506664671 | I11: -1.519624411 | J11: 4.062584966 | K11: 4.337494087 | L11: 1.984229403 | M11: -12.27445501 | N11: 0.9868532288 | O11: -13.78271293 | P11: 1.68722574 | Q11: 0.5120811719 | R11: 0.1256637061 | T11: -2.673413862 | W11: 5.33420027 | X11: drdfa | Y11: =beta*SIN(currentfa) -> 1.322623731 | Z11: =-1/20*AA7+18/20*Z7+Z9 -> -6.586101611 | AA11: =1/20*Z7+18/20*AA7+AA9 -> 9.139004903 | AB11: =-1/20*AC7+18/20*AB7+AB9 -> -1.09203756 | AC11: =1/20*AB7+18/20*AC7+AC9 -> -8.160887923 | AE11: d²r/dφ²current | AF11: =beta*COS(S6) -> -1.504759474 | AH11: yprin | AI11: =INDEX(A1:W239,row_prin_a,7) -> 7.063966419 | AL11: 8.186270472 | AM11: 0.03150059203 | AX11: =AX10+2*PI()/80 -> 0.1570796327 | AY11: -11.21466345 | AZ11: -6.854619193
A12: 0 | B12: 5 | C12: 0.1570796327 | D12: 4.09728066 | E12: 2.024623319 | F12: 3.851062401 | G12: 0.6334417316 | H12: 0.3128689301 | I12: -1.907459981 | J12: 4.09728066 | K12: 4.519525681 | L12: 1.975376681 | M12: -12.4203144 | N12: 1.220660235 | O12: -6.997174232 | P12: 1.901032676 | Q12: 0.6483475675 | R12: 0.1570796327 | T12: -2.148029683 | W12: 4.734268965 | X12: dxdfa | Y12: =INDEX(A1:W239,row_cura,9) -> 22.1589424 | Z12: =1/20*AA7+18/20*Z7+Z9 -> -6.330582391 | AA12: =-1/20*Z7+18/20*AA7+AA9 -> 10.00978971 | AB12: =1/20*AC7+18/20*AB7+AB9 -> -1.177007997 | AC12: =-1/20*AB7+18/20*AC7+AC9 -> -7.873172744 | AE12: d²x/dφ² current = | AF12: =beta*(AF11*COS(pol*S6)-2*pol*AF8*SIN(pol*S6)-pol^2*current_r*COS(pol*S6)) -> 4.229872706 | AH12: ycurrenta | AI12: =ycurrenta -> 7.274724325 | AL12: 8.28823399 | AM12: 0.06125158152 | AX12: 0.235619449 | AY12: -11.09357508 | AZ12: -7.463371528
A13: 0 | B13: 6 | C13: 0.1884955592 | D13: 4.139192062 | E13: 2.035425499 | F13: 3.784981535 | G13: 0.7628014113 | H13: 0.3747626292 | I13: -2.300269444 | J13: 4.139192062 | K13: 4.735414495 | L13: 1.964574501 | M13: -12.59037039 | N13: 1.445945905 | O13: -4.008445267 | P13: 2.176516222 | Q13: 0.7903326543 | R13: 0.1884955592 | T13: -1.799437919 | W13: 4.135048436 | X13: dydfa | Y13: =INDEX(A1:P239,row_cura,10) -> -6.502221491 | Z13: =Z10 -> -7.329126807 | AA13: 9.829916526 | AB13: =AB10 -> -1.422237958 | AC13: -8.102000771 | AE13: d²y/dφ²current | AF13: =gama*(d2rdfa2*SIN(pol_2*currentfa)+2*pol_2*drdfa*COS(pol_2*currentfa)-pol_2^2*current_r*SIN(pol_2*currentfa)) -> -13.23341372 | AL13: 8.410135307 | AM13: 0.1052685951 | AX13: 0.3141592654 | AY13: -10.92509783 | AZ13: -8.060746798
A14: 0 | B14: 7 | C14: 0.2199114858 | D14: 4.188025886 | E14: 2.048166476 | F14: 3.706472871 | G14: 0.893587348 | H14: 0.4362864828 | I14: -2.69873986 | J14: 4.188025886 | K14: 4.982244239 | L14: 1.951833524 | M14: -12.77984193 | N14: 1.661088401 | O14: -2.494954547 | P14: 2.521908538 | Q14: 0.9391000882 | R14: 0.2199114858 | T14: -1.551844973 | W14: 3.568725775 | X14: dydxa | Y14: =dydfa/dxdfa -> -0.2934355519 | AA14: V²/r | AE14: d²y/dx²current | AF14: =(AF13*AF9-AF12*AF10)/AF9^3 -> -0.02945425645 | AH14: =SQRT(R_current^2-(rx-current_x)^2)+ry -> -1.499255524 | AI14: =currenty -> -7.252296394 | AJ14: =AI14-AH14 -> -5.75304087 | AL14: 8.550381094 | AM14: 0.1660906821 | AX14: 0.3926990817 | AY14: -10.71027042 | AZ14: -8.643061988
A15: 0 | B15: 8 | C15: 0.2513274123 | D15: 4.243438569 | E15: 2.062833678 | F15: 3.615349863 | G15: 1.026011749 | H15: 0.4973797743 | I15: -3.103396376 | J15: 4.243438569 | K15: 5.257170337 | L15: 1.937166322 | M15: -12.98321215 | N15: 1.864510295 | O15: -1.649674051 | P15: 2.946770119 | Q15: 1.095621907 | R15: 0.2513274123 | T15: -1.367353072 | W15: 3.054191415 | X15: d2rdfa2 | Y15: =beta*COS(currentfa) -> -1.500222139 | AE15: R current | AF15: =(1+(AF10/AF9)^2)^1.5/AF14 -> -38.48675403 | AL15: 8.707123424 | AM15: 0.2460902223 | AX15: 0.471238898 | AY15: -10.45041732 | AZ15: -9.206726929
A16: 0 | B16: 9 | C16: 0.2827433388 | D16: 4.305037783 | E16: 2.079412629 | F16: 3.511412302 | G16: 1.160275258 | H16: 0.5579822121 | I16: -3.51458009 | J16: 4.305037783 | K16: 5.55748356 | L16: 1.920587371 | M16: -13.19429267 | N16: 2.054685512 | O16: -1.142065985 | P16: 3.461967847 | Q16: 1.260780784 | R16: 0.2827433388 | T16: -1.224908146 | W16: 2.599677524 | X16: d2xdfa2 | Y16: =beta*(d2rdfa2*COS(pol*currentfa)-2*pol*drdfa*SIN(pol*currentfa)-pol^2*rfa*COS(pol*currentfa)) -> 4.606615188 | Z16: dydta | AE16: inclination of R | AF16: =-1/currentdy_dx -> -3.386062111 | AL16: 8.878276767 | AM16: 0.3474489939 | AX16: 0.5497787144 | AY16: -10.14714062 | AZ16: -9.74826644
A17: 0 | B17: 10 | C17: 0.3141592654 | D17: 4.372384153 | E17: 2.097886967 | F17: 3.394452418 | G17: 1.29656545 | H17: 0.6180339887 | I17: -3.932428082 | J17: 4.372384153 | K17: 5.880623589 | L17: 1.902113033 | M17: -13.40629625 | N17: 2.230146063 | O17: -0.8197129281 | P17: 4.079679011 | Q17: 1.43537428 | R17: 0.3141592654 | T17: -1.111878987 | W17: 2.206055912 | X17: d2ydfa2 | Y17: =gama*(d2rdfa2*SIN(pol_2*currentfa)+2*pol_2*drdfa*COS(pol_2*currentfa)-pol_2^2*rfa*SIN(pol_2*currentfa)) -> -13.22741253 | AC17: synima | AD17: =1/SQRT(1+dydxa^2) -> 0.9595424858 | AE17: synim = 1 / Sqr(1 + paragogos ^ 2) | AH17: =1/SQRT(1+currentdy_dx^2) -> 0.9590505995 | AL17: 9.061537186 | AM17: 0.472135955 | AX17: 0.6283185307 | AY17: -9.802310122 | AZ17: -10.26434175
A18: 0 | B18: 11 | C18: 0.3455751919 | D18: 4.444993181 | E18: 2.118238462 | F18: 3.264261573 | G18: 1.435055382 | H18: 0.6774758405 | I18: -4.356855833 | J18: 4.444993181 | K18: 6.22415915 | L18: 1.881761538 | M18: -13.61191675 | N18: 2.389488556 | O18: -0.6057146109 | P18: 4.81342765 | Q18: 1.620119518 | R18: 0.3455751919 | T18: -1.020229576 | W18: 1.869769456 | X18: d2ydxa2 | Y18: =INDEX(A1:W239,row_cura,15) -> -0.02418577374 | AC18: hmitona | AD18: =dydxa*AD17 -> -0.2815638789 | AE18: hmiton = paragogos * synim | AH18: =currentdy_dx*AH17 -> 0.2832347925 | AL18: 9.254403564 | AM18: 0.6218869349 | AX18: 0.7068583471 | AY18: -9.418051819 | AZ18: -10.75177108
A19: 0 | B19: 12 | C19: 0.3769911184 | D19: 4.522337377 | E19: 2.140447028 | F19: 3.120637464 | G19: 1.57590221 | H19: 0.7362491054 | I19: -4.787542275 | J19: 4.522337377 | K19: 6.585749493 | L19: 1.859552972 | M19: -13.80341586 | N19: 2.531380426 | O19: -0.4584267418 | P19: 5.678162432 | Q19: 1.815657245 | R19: 0.3769911184 | T19: -0.9446052103 | W19: 1.585019821 | X19: inclinea | Y19: =1/dydxa -> -3.407903349 | AA19: a_centripta | AB19: ata | AD19: =IF(ABS(current_r-(alpha-beta))<0.1,-ABS(AD20),IF(ABS(current_r-(alpha+beta))<0.1,-ABS(AD20),AD20)) -> 0.06623351844 | AE19: ax | AF19: 13 | AG19: rx | AH19: ry | AL19: 9.454200664 | AM19: 0.7981864224 | AX19: 0.7853981634 | AY19: -8.996734792 | AZ19: -11.20754928
A20: 0 | B20: 13 | C20: 0.408407045 | D20: 4.603848582 | E20: 2.164490749 | F20: 2.963391756 | G20: 1.71924587 | H20: 0.7942957813 | I20: -5.223917644 | J20: 4.603848582 | K20: 6.963098255 | L20: 1.835509251 | M20: -13.97271557 | N20: 2.654565894 | O20: -0.353970585 | P20: 6.690389962 | Q20: 2.022554667 | R20: 0.408407045 | T20: -0.8813019071 | W20: 1.345213067 | X20: Rcurrenta | Y20: =(1+dydxa^2)^1.5/D2YDXA2 -> -46.80016538 | AA20: =ABS(currentva^2/Rcurrenta) -> 1.759729358 | AD20: =-(v0^2/$AF$15*hmiton) -> 0.06623351844 | AE20: =AD19 -> 0.06623351844 | AF20: =v0^2/AF15*SYNIM -> -0.2242708073 | AG20: =xcurrenta-(Rcurrenta)*hmitona -> -11.79851484 | AH20: =ycurrenta+Rcurrenta*synima -> -37.6320227 | AL20: 9.658103827 | AM20: 1.002251612 | AX20: 0.8639379797 | AY20: -8.540956599 | AZ20: -11.6288663
A21: 0 | B21: 14 | C21: 0.4398229715 | D21: 4.688920461 | E21: 2.190345895 | F21: 2.792358039 | G21: 1.865207847 | H21: 0.8515585831 | I21: -5.665154335 | J21: 4.688920461 | K21: 7.353907038 | L21: 1.809654105 | M21: -14.1114956 | N21: 2.75787161 | O21: -0.2779928439 | P21: 7.868384118 | Q21: 2.24130685 | R21: 0.4398229715 | T21: -0.8276774442 | W21: 1.143818078 | Z21: =epitaxynsh -> -0.7 | AA21: atotala | AD21: centripetal | AE21: ax | AF21: ay | AL21: 9.863165081 | AM21: 1.235018854 | AX21: 0.9424777961 | AY21: -8.053527266 | AZ21: -12.01312461
A22: 0 | B22: 15 | C22: 0.471238898 | D22: 4.776911184 | E22: 2.217986952 | F22: 2.60740004 | G22: 2.013890009 | H22: 0.9079809995 | I22: =L4=beta*H22*COS(pol*C22)-beta*E22*pol*SIN(pol*C22) -> FALSE | J22: 4.776911184 | K22: 4.776911184 | L22: 1.782013048 | M22: -14.21129465 | N22: 2.840211957 | Q22: 2.472336654 | R22: 0.471238898 | Y22: =IF(ABS(current_r-(alpha-beta))<0.1,-ABS(AA22),IF(ABS(current_r-(alpha+beta))<0.1,-ABS(AA22),AA22)) -> 1.893844612 | AA22: =SQRT(a_centa^2+epitaxynsh^2) -> 1.893844612 | AE22: =current_x -> 1.45491384 | AF22: =currenty -> -7.252296394 | AG22: FI | AH22: X | AI22: Y | AL22: 10.06634043 | AM22: 1.497132634 | AX22: 1.021017612 | AY22: -7.537451956 | AZ22: -12.3579551
A23: 0 | B23: 16 | C23: 0.5026548246 | D23: 4.86714626 | E23: 2.24738664 | F23: 2.408419961 | G23: 2.165373542 | H23: 0.9635073482 | I23: -6.557579089 | J23: 4.86714626 | K23: 8.1664531 | L23: 1.75261336 | M23: -14.26361473 | N23: 2.900594011 | O23: -0.1787389047 | P23: 10.80564543 | Q23: 2.622407744 | R23: 0.5026548246 | T23: -0.7422169362 | W23: 0.8328979568 | X23: A_CENTAX | Y23: A_CENTAY | AE23: =AE22+AE20 -> 1.521147359 | AF23: -7.476567201 | AG23: 0 | AH23: =rx+ABS(Rcurrenta)*COS(AG23) -> 35.00165054 | AI23: =IF(ABS(Rcurrenta)<500,ry+ABS(Rcurrenta)*SIN(AG23),currenty+currentdy_dx*(AH23-current_x)) -> -37.6320227 | AJ23: =currenty+currentdy_dx*(AH23-current_x) -> 2.655004652 | AL23: 10.26451808 | AM23: 1.788937176 | AX23: 1.099557429 | AY23: -6.995912445 | AZ23: -12.6612318
A24: 0 | B24: 17 | C24: 0.5340707511 | D24: 4.95892152 | E24: 2.278515946 | F24: 2.195366857 | G24: 2.319717966 | H24: 1.018082832 | I24: -7.005784687 | J24: 4.95892152 | K24: 8.583234922 | L24: 1.721484054 | M24: -14.26002718 | N24: 2.938122114 | O24: -0.1457913374 | P24: 12.61394463 | Q24: 2.878964435 | R24: 0.5340707511 | T24: -0.7078324187 | W24: 0.7134960761 | X24: =IF(AND(ycurrenta<0,D2YDXA2>0,SIGN(xcurrenta-xprina)>0),-SIGN(xcurrenta-xprina)*ABS(a_centa)*(hmitona),IF(AND(ycurrenta>0,D2YDXA2<0,SIGN(xcurrenta-xprina)<0),SIGN(xcurrenta-xprina)*ABS(a_centa*hmitona),SIGN(xcurrenta-xprina)*ABS(a_centa)*(hmitona))) -> -0.4954762239 | Y24: =IF(AND(ycurrenta<0,D2YDXA2>0),ABS(a_centa*synima),IF(AND(ycurrenta>0,D2YDXA2>0),ABS(a_centa*synima),-ABS(a_centa*synima))) -> -1.688535083 | AA24: =X24+epitaxynsh*ABS(synima)*SIGN(xcurrenta-xprina)*SIIGN_DS -> -1.167155964 | AB24: =Y24+epitaxynsh*ABS(hmitona)*SIGN(ycurrenta-yprina)*SIIGN_DS -> -1.491440368 | AE24: =-1/20*AF20+18/20*AE20+AE22 -> 1.525737547 | AF24: =1/20*AE20+18/20*AF20+AF22 -> -7.450828444 | AG24: =AG23+2*PI()/150 -> 0.04188790205 | AH24: 34.96059884 | AI24: -35.67223518 | AL24: 10.45454736 | AM24: 2.110470748 | AX24: 1.178097245 | AY24: -6.432247503 | AZ24: -12.9210849
A25: 0 | B25: 18 | C25: 0.5654866776 | D25: 5.051506238 | E25: 2.311344149 | F25: 1.968244949 | G25: 2.476960255 | H25: 1.07165359 | I25: -7.452891042 | J25: 5.051506238 | K25: 9.003515988 | L25: 1.688655851 | M25: -14.19227968 | N25: 2.95200206 | O25: -0.1200348248 | P25: 14.68773544 | Q25: 3.148614713 | R25: 0.5654866776 | T25: -0.6777915053 | W25: 0.6127561351 | X25: A_CENTAX | Y25: A_CENTAY | AA25: axa | AB25: aya | AE25: =1/20*AF20+18/20*AE20+AE22 -> 1.503310466 | AF25: =-1/20*AE20+18/20*AF20+AF22 -> -7.457451796 | AG25: =AG24+2*PI()/150 -> 0.0837758041 | AH25: 34.83751577 | AI25: -33.71588579 | AL25: 10.63326804 | AM25: 2.461462734 | AX25: 1.256637061 | AY25: -5.849932314 | AZ25: -13.13591231
A26: 0 | B26: 19 | C26: 0.5969026042 | D26: 5.144146383 | E26: 2.345838851 | F26: 1.727121756 | G26: 2.637114051 | H26: 1.124166756 | I26: -7.896756447 | J26: 5.144146383 | K26: 9.424489609 | L26: 1.654161149 | M26: -14.05240288 | N26: 2.941544864 | O26: -0.09962585331 | P26: 17.06299387 | Q26: 3.43146851 | R26: 0.5969026042 | T26: -0.6514252298 | W26: 0.5274572603 | X26: =xcurrenta -> 1.378721252 | Y26: =ycurrenta -> 7.274724325 | AA26: =xcurrenta -> 1.378721252 | AB26: =ycurrenta -> 7.274724325 | AE26: =AE23 -> 1.521147359 | AF26: -7.476567201 | AG26: 0.1256637061 | AH26: 34.63261725 | AI26: -31.76640664 | AL26: 10.79753986 | AM26: 2.841333486 | AX26: 1.335176878 | AY26: -5.252557043 | AZ26: -13.30438957
A27: 0 | B27: 20 | C27: 0.6283185307 | D27: 5.236067977 | E27: 2.381966011 | F27: 1.472135955 | G27: 2.800168986 | H27: 1.175570505 | I27: -8.334994658 | J27: 5.236067977 | K27: 9.843197845 | L27: 1.618033989 | M27: -13.83281573 | N27: 2.906170112 | O27: -0.08325129253 | P27: 19.7834341 | Q27: 3.727547583 | R27: 0.6283185307 | T27: -0.6282029194 | W27: 0.4549260737 | X27: =X26+X24 -> 0.8832450281 | Y27: 5.586189242 | AA27: =AA26+AA24 -> 0.211565288 | AB27: 5.783283957 | AG27: 0.1675516082 | AH27: 34.34626275 | AI27: -29.82721777 | AL27: 10.94427191 | AM27: 3.249196962 | AX27: 1.413716694 | AY27: -4.643804708 | AZ27: -13.42547793
A28: 0 | B28: 21 | C28: 0.6597344573 | D28: 5.32648055 | E28: 2.419689975 | F28: 1.203504854 | G28: 2.966090107 | H28: 1.225814107 | I28: -8.764988717 | J28: 5.32648055 | K28: 10.25653071 | L28: 1.580310025 | M28: -13.5264284 | N28: 2.84540886 | O28: -0.06995893265 | P28: 22.90362348 | Q28: 4.036780763 | R28: 0.6597344573 | T28: -0.6076996471 | W28: 0.3929509236 | X28: =-1/20*Y24+18/20*X24+X26 -> 1.017219405 | Y28: =1/20*X24+18/20*Y24+Y26 -> 5.730268939 | AA28: =-1/20*AB24+18/20*AA24+AA26 -> 0.4028529028 | AB28: =1/20*AA24+18/20*AB24+AB26 -> 5.874070196 | AG28: 0.2094395102 | AH28: 33.97895464 | AI28: -27.90172119 | AL28: 11.07045171 | AM28: 3.683866141 | AX28: 1.49225651 | AY28: -4.02742847 | AZ28: -13.49843087
A29: 0 | B29: 22 | C29: 0.6911503838 | D29: 5.414580684 | E29: 2.458973514 | F29: 0.9215313793 | G29: 3.134817417 | H29: 1.274847979 | I29: -9.183907952 | J29: 5.414580684 | K29: 10.66123113 | L29: 1.541026486 | M29: -13.12674172 | N29: 2.758906088 | O29: -0.05904689929 | P29: 26.49368773 | Q29: 4.358999179 | R29: 0.6911503838 | T29: -0.5895726212 | W29: 0.3397035586 | X29: =1/20*Y24+18/20*X24+X26 -> 0.8483658964 | Y29: =-1/20*X24+18/20*Y24+Y26 -> 5.779816562 | AA29: =1/20*AB24+18/20*AA24+AA26 -> 0.2537088661 | AB29: =-1/20*AA24+18/20*AB24+AB26 -> 5.990785792 | AG29: 0.2513274123 | AH29: 33.53133728 | AI29: -25.99329485 | AL29: 11.17317361 | AM29: 4.143861157 | AX29: 1.570796327 | AY29: -3.407228492 | AZ29: -13.52279859
A30: 0 | B30: 23 | C30: 0.7225663103 | D30: 5.499555623 | E30: 2.499777861 | F30: 0.626610485 | G30: 3.30626552 | H30: 1.322623731 | I30: -9.588728045 | J30: 5.499555623 | K30: 11.05390508 | L30: 1.500222139 | M30: -12.62794214 | N30: 2.646422688 | O30: -0.0499898861 | P30: 30.64658179 | Q30: 4.693931633 | R30: 0.7225663103 | T30: -0.5735438107 | W30: 0.293670598 | X30: =X27 -> 0.8832450281 | Y30: 5.586189242 | AA30: =AA27 -> 0.211565288 | AB30: 5.783283957 | AG30: 0.2932153143 | AH30: 33.00419596 | AI30: -24.1052868 | AL30: 11.24966635 | AM30: 4.627420087 | AX30: 1.649336143 | AY30: -2.787028515 | AZ30: -13.49843087
A31: 0 | B31: 24 | C31: 0.7539822369 | D31: 5.580586941 | E31: 2.542062745 | F31: 0.3192348809 | G31: 3.480323391 | H31: 1.369094212 | I31: -9.976253986 | J31: 5.580586941 | K31: 11.43103645 | L31: 1.457937255 | M31: -12.02499119 | N31: 2.50783698 | O31: -0.04238894415 | P31: 35.48965169 | Q31: 5.041200303 | R31: 0.7539822369 | T31: -0.5593870153 | W31: 0.2535950501 | AG31: 0.3351032164 | AH31: 32.39845546 | AI31: -22.24100925 | AL31: 11.29731949 | AM31: 5.1325123 | AX31: 1.727875959 | AY31: -2.170652276 | AZ31: -13.42547793
A32: 0 | B32: 25 | C32: 0.7853981634 | D32: 5.656854249 | E32: 2.585786438 | F32: -3.128162342e-15 | G32: 3.656854249 | H32: 1.414213562 | I32: -10.34314575 | J32: 5.656854249 | K32: 11.78900607 | L32: 1.414213562 | M32: -11.3137085 | N32: 2.343145751 | O32: -0.03593665199 | P32: 41.20368191 | Q32: 5.400316904 | R32: 0.7853981634 | T32: -0.5469181607 | W32: 0.2184270818 | AG32: 0.3769911184 | AH32: 31.71517846 | AI32: -20.40373275 | AL32: 11.3137085 | AM32: 5.656854249 | AX32: 1.806415776 | AY32: -1.561899941 | AZ32: -13.30438957
A33: 0 | B33: 26 | C33: 0.8168140899 | D33: 5.727538926 | E33: 2.630905788 | F33: -0.3303918825 | G33: 3.835695563 | H33: 1.457937255 | I33: -10.68594646 | J33: 5.727538926 | K33: 12.12411456 | L33: 1.369094212 | M33: -10.49084753 | N33: 2.152464808 | O33: -0.03039250458 | P33: 48.05566834 | Q33: 5.770679452 | R33: 0.8168140899 | T33: -0.5359879863 | W33: 0.1872827975 | AG33: 0.4188790205 | AH33: 30.95556366 | AI33: -18.59668054 | AL33: 11.29661824 | AM33: 6.19792757 | AX33: 1.884955592 | AY33: -0.9645246707 | AZ33: -13.13591231
A34: 0 | B34: 27 | C34: 0.8482300165 | D34: 5.791827857 | E34: 2.677376269 | F34: -0.6711284506 | G34: 4.016659154 | H34: 1.500222139 | I34: -11.00111281 | J34: 5.791827857 | K34: 12.43260846 | L34: 1.322623731 | M34: -9.554163132 | N34: 1.936029053 | O34: -0.02556518858 | P34: 56.45831522 | Q34: 6.151569745 | R34: 0.8482300165 | T34: -0.5264765442 | W34: 0.1594096452 | AG34: 0.4607669225 | AH34: 30.12094367 | AI34: -16.82302278 | AL34: 11.24406468 | AM34: 6.752999324 | AX34: 1.963495408 | AY34: -0.3822094813 | AZ34: -12.9210849
A35: 0 | B35: 28 | C35: 0.879645943 | D35: 5.848917176 | E35: 2.725152021 | F35: -1.021285136 | G35: 4.199531441 | H35: 1.541026486 | I35: -11.28504748 | J35: 5.848917176 | K35: 12.71070922 | L35: 1.274847979 | M35: -8.502470195 | N35: 1.694192064 | O35: -0.0212995422 | P35: 67.08553835 | Q35: 6.542151659 | R35: 0.879645943 | T35: -0.5182891065 | W35: 0.134157081 | AG35: 0.5026548246 | AH35: 29.21278271 | AI35: -15.08587108 | AL35: 11.1543146 | AM35: 7.319144217 | AX35: 2.042035225 | AY35: 0.1814554599 | AZ35: -12.6612318
A36: 0 | B36: 29 | C36: 0.9110618695 | D36: 5.898015978 | E36: 2.774185893 | F36: -1.379823953 | G36: 4.384073777 | H36: 1.580310025 | I36: -11.53413321 | J36: 5.898015978 | K36: 12.95464478 | L36: 1.225814107 | M36: -7.335692766 | N36: 1.42742519 | O36: -0.01746670687 | P36: 81.11676207 | Q36: 6.941470366 | R36: 0.9110618695 | T36: -0.5113532045 | W36: 0.1109511742 | AG36: 0.5445427266 | AH36: 28.23267399 | AI36: -13.38827299 | AL36: 11.02590315 | AM36: 7.893268586 | AX36: 2.120575041 | AY36: 0.7229949713 | AZ36: -12.3579551
A37: 0 | B37: 30 | C37: 0.9424777961 | D37: 5.938349996 | E37: 2.824429495 | F37: -1.745593427 | G37: 4.570022922 | H37: 1.618033989 | I37: -11.74476831 | J37: 5.938349996 | K37: 13.16068324 | L37: 1.175570505 | M37: -6.054902969 | N37: 1.136316175 | O37: -0.01395642449 | P37: 100.8156089 | Q37: 7.348452534 | R37: 0.9424777961 | T37: -0.5056166151 | W37: 0.08927189055 | AG37: 0.5864306287 | AH37: 27.18233697 | AI37: -11.73320668 | AL37: 10.85764909 | AM37: 8.472135955 | AX37: 2.199114858 | AY37: 1.239070282 | AZ37: -12.01312461
A38: 0 | B38: 31 | C38: 0.9738937226 | D38: 5.969165234 | E38: 2.875833244 | F38: -2.117329653 | G38: 4.757091622 | H38: 1.654161149 | I38: -11.91340318 | J38: 5.969165234 | K38: 13.32516825 | L38: 1.124166756 | M38: -4.662349273 | N38: 0.8215672929 | O38: -0.01067070973 | P38: 131.1345949 | Q38: 7.761907592 | R38: 0.9738937226 | T38: -0.5010461868 | W38: 0.06863177492 | AG38: 0.6283185307 | AH38: 26.06361429 | AI38: -10.12357569 | AL38: 10.64866758 | AM38: 9.052393926 | AX38: 2.277654674 | AY38: 1.726499615 | AZ38: -11.6288663
A39: 0 | B39: 32 | C39: 1.005309649 | D39: 5.989731526 | E39: 2.92834641 | F39: -2.49365852 | G39: 4.944969299 | H39: 1.688655851 | I39: -12.03657759 | J39: 5.989731526 | K39: 13.44455592 | L39: 1.07165359 | M39: -3.161473704 | N39: 0.4839930157 | O39: -0.007518284969 | P39: 185.358089 | Q39: 8.180530099 | R39: 1.005309649 | T39: -0.4976274595 | W39: 0.04855466546 | AG39: 0.6702064328 | AH39: 24.87846857 | AI39: -8.562203858 | AL39: 10.39838035 | AM39: 9.630602172 | AX39: 2.35619449 | AY39: 2.182277807 | AZ39: -11.20754928
A40: 0 | B40: 33 | C40: 1.036725576 | D40: 5.999346022 | E40: 2.981917168 | F40: -2.873099104 | G40: 5.133322856 | H40: 1.721484054 | I40: -12.11095827 | J40: 5.999346022 | K40: 13.51545275 | L40: 1.018082832 | M40: -1.556917684 | N40: 0.1245172243 | O40: -0.00440923189 | P40: 315.2051701 | Q40: 8.60290328 | R40: 1.036725576 | T40: -0.4953650973 | W40: 0.02855283115 | AG40: 0.7120943348 | AH40: 23.62897895 | AI40: -7.051830371 | AL40: 10.10652323 | AM40: 10.20326129 | AX40: 2.434734307 | AY40: 2.603594834 | AZ40: -10.75177108
A41: 0 | B41: 34 | C41: 1.068141502 | D41: 5.997336573 | E41: 3.036492652 | F41: -3.254068251 | G41: 5.321797589 | H41: 1.75261336 | I41: -12.13337657 | J41: 5.997336573 | K41: 13.53465451 | L41: 0.9635073482 | M41: 0.1454836758 | N41: -0.2558300363 | O41: -0.001249295046 | P41: 1111.044558 | Q41: 9.02750375 | R41: 1.068141502 | T41: -0.4942842201 | W41: 0.008100485201 | AG41: 0.7539822369 | AH41: 22.31733748 | AI41: -5.595104933 | AL41: 9.773151003 | AM41: 10.76684224 | AX41: 2.513274123 | AY41: =rxn+currentrn*COS(AX41) -> 2.987853137 | AZ41: =ryn+currentrn*SIN(AX41) -> -10.26434175
A42: 0 | B42: 35 | C42: 1.099557429 | D42: 5.983065007 | E42: 3.092019001 | F42: -3.634886337 | G42: 5.510018205 | H42: 1.782013048 | I42: -12.10086565 | J42: 5.983065007 | K42: 13.49918577 | L42: 0.9079809995 | M42: 1.938718942 | N42: -0.6559162385 | O42: 0.002066844589 | P42: 671.6848945 | Q42: 9.452707462 | R42: 1.099557429 | T42: -0.49443281 | W42: 0.01339914009 | AG42: 0.7958701389 | AH42: 20.9458452 | AI42: -4.194583134 | AL42: 9.398639359 | AM42: 11.31781615 | AX42: 2.591813939 | AY42: 3.332683635 | AZ42: -9.74826644
A43: 0 | B43: 36 | C43: 1.130973355 | D43: 5.955930292 | E43: 3.148441417 | F43: -4.013784179 | G43: 5.697589934 | H43: 1.809654105 | I43: -12.0106971 | J43: 5.955930292 | K43: 13.40633994 | L43: 0.8515585831 | M43: 3.814629355 | N43: -1.074510478 | O43: 0.005664263833 | P43: 245.5175628 | Q43: 9.876796891 | R43: 1.130973355 | T43: -0.4958854795 | W43: 0.03665725538 | AG43: 0.837758041 | AH43: 19.51690819 | AI43: -2.852721967 | AL43: 8.983684143 | AM43: 11.85268418 | AX43: 2.670353756 | AY43: 3.635960333 | AZ43: -9.206726929
A44: 0 | B44: 37 | C44: 1.162389282 | D44: 5.915371549 | E44: 3.205704219 | F44: -4.388911091 | G44: 5.884099751 | H44: 1.835509251 | I44: -11.86041631 | J44: 5.915371549 | K44: 13.25372007 | L44: 0.7942957813 | M44: 5.76394933 | N44: -1.510287986 | O44: 0.00969987522 | P44: 143.8624437 | Q44: 10.29796948 | R44: 1.162389282 | T44: -0.4987490654 | W44: 0.06255976034 | AG44: 0.879645943 | AH44: 18.03303329 | AI44: -1.571875511 | AL44: 8.529297763 | AM44: 12.36800719 | AX44: 2.748893572 | AY44: 3.89581343 | AZ44: -8.643061988
A45: 0 | B45: 38 | C45: 1.193805208 | D45: 5.860870931 | E45: 3.263750895 | F45: -4.75834402 | G45: 6.069117675 | H45: 1.859552972 | I45: -11.64787647 | J45: 5.860870931 | K45: 13.03928044 | L45: 0.7362491054 | M45: 7.776358238 | N45: -1.96183504 | O45: 0.01438016935 | P45: 97.55658931 | Q45: 10.71434738 | R45: 1.193805208 | T45: -0.5031707664 | W45: 0.0922541477 | AG45: 0.9215338451 | AH45: 16.49682372 | AI45: -0.354290807 | AL45: 8.036802842 | AM45: 12.860435 | AX45: 2.827433388 | AY45: 4.110640846 | AZ45: -8.060746798
A46: 0 | B46: 39 | C46: 1.225221135 | D46: 5.791956333 | E46: 3.32252416 | F46: -5.120097729 | G46: 6.252198172 | H46: 1.881761538 | I46: -11.37127079 | J46: 5.791956333 | K46: 12.76136974 | L46: 0.6774758405 | M46: 9.840543123 | N46: -2.427654234 | O46: 0.01998847718 | P46: 70.71070401 | Q46: 11.12398845 | R46: 1.225221135 | T46: -0.5093499609 | W46: 0.127279174 | AG46: 0.9634217471 | AH46: 14.91097451 | AI46: 0.7978960884 | AL46: 7.507823151 | AM46: 13.32673489 | AX46: 2.905973205 | AY46: 4.279118096 | AZ46: -7.463371528
A47: 0 | B47: 40 | C47: 1.256637061 | D47: 5.708203932 | E47: 3.381966011 | F47: -5.472135955 | G47: 6.432881626 | H47: 1.902113033 | I47: -11.02916252 | J47: 5.708203932 | K47: 12.41877683 | L47: 0.6180339887 | M47: 11.94427191 | N47: -2.906170112 | O47: 0.02692854663 | P47: 53.01465566 | Q47: 11.52489871 | R47: 1.256637061 | T47: -0.5175555191 | W47: 0.1697643772 | AG47: 1.005309649 | AH47: 13.27826778 | AI47: 1.882663848 | AL47: 6.94427191 | AM47: 13.7638192 | AX47: 2.984513021 | AY47: 4.400206464 | AZ47: -6.854619193
A48: 0 | B48: 41 | C48: 1.288052988 | D48: 5.60924055 | E48: 3.442017788 | F48: -5.812383477 | G48: 6.610695895 | H48: 1.920587371 | I48: -10.62051254 | J48: 5.60924055 | K48: 12.01078125 | L48: 0.5579822121 | M48: 14.07447657 | N48: -3.395735126 | O48: 0.03579690368 | P48: 40.40469942 | Q48: 11.91504609 | R48: 1.288052988 | T48: -0.5281515868 | W48: 0.2227463668 | AG48: 1.047197551 | AH48: 11.60156785 | AI48: 2.89810942 | AL48: 6.348337551 | AM48: 14.16877169 | AX48: 3.063052837 | AY48: 4.4731594 | AZ48: -6.238242954
A49: 0 | B49: 42 | C49: 1.319468915 | D49: 5.494745817 | E49: 3.502620226 | F49: -6.138739003 | G49: 6.785157941 | H49: 1.937166322 | I49: -10.14470423 | J49: 5.494745817 | K49: 11.53721177 | L49: 0.4973797743 | M49: 16.21734563 | N49: -3.894635896 | O49: 0.04750789731 | P49: 30.96125922 | Q49: 12.29237591 | R49: 1.319468915 | T49: -0.5416368673 | W49: 0.2906858515 | AG49: 1.089085453 | AH49: 9.883816219 | AI49: 3.842451368 | AL49: 5.72246707 | AM49: 14.53887244 | AX49: 3.141592654 | AY49: 4.497527123 | AZ49: -5.618042977
A50: 0 | B50: 43 | C50: 1.350884841 | D50: 5.364454141 | E50: 3.563713517 | F50: -6.449088795 | G50: 6.955775512 | H50: 1.951833524 | I50: -9.601565215 | J50: 5.364454141 | K50: 10.99851912 | L50: 0.4362864828 | M50: 18.3584252 | N50: -4.401099763 | O50: 0.06351950308 | P50: 23.6629803 | Q50: 12.65482811 | R50: 1.350884841 | T50: -0.5587062131 | W50: 0.3803409327 | AG50: 1.130973355 | AH50: 8.128026416 | AI50: 4.714032995 | AL50: 5.069347111 | AM50: 14.87162119 | AX50: 3.22013247 | AY50: 4.4731594 | AZ50: -4.997842999
A51: 0 | B51: 44 | C51: 1.382300768 | D51: 5.21815646 | E51: 3.625237371 | F51: -6.741320926 | G51: 7.1220489 | H51: 1.964574501 | I51: -8.991385895 | J51: 5.21815646 | K51: 10.39587308 | L51: 0.3747626292 | M51: 20.48272787 | N51: -4.913301584 | O51: 0.08626211476 | P51: 17.91772612 | Q51: 13.00035678 | R51: 1.382300768 | T51: -0.5803506291 | W51: 0.5022958796 | AG51: 1.172861257 | AH51: 6.337278689 | AI51: 5.511325251 | AL51: 4.391882955 | AM51: 15.16475871 | AX51: 3.298672286 | AY51: 4.400206464 | AZ51: -4.381466761
A52: 0 | B52: 45 | C52: 1.413716694 | D52: 5.055701786 | E52: 3.68713107 | F52: -7.013340061 | G52: 7.283472736 | H52: 1.975376681 | I52: -8.314934374 | J52: 5.055701786 | K52: 9.7313028 | L52: 0.3128689301 | M52: 22.57484846 | N52: -5.42937077 | O52: 0.1200023565 | P52: 13.35816202 | Q52: 13.32695276 | R52: 1.413716694 | T52: -0.6080266612 | W52: 0.673745384 | X52: =v0*($M$2-deltat) -> 51.6 | AG52: 1.214749159 | AH52: 4.514714617 | AI52: 6.232929415 | AL52: 3.693175579 | AM52: 15.41628618 | AX52: 3.377212103 | AY52: 4.279118096 | AZ52: -3.772714426
A53: 0 | B53: 46 | C53: 1.445132621 | D53: 4.876998513 | E53: 3.749333533 | F53: -7.263082651 | G53: 7.439537836 | H53: 1.984229403 | I53: -7.573467707 | J53: 4.876998513 | K53: 9.00791472 | L53: 0.2506664671 | M53: 24.61908567 | N53: -5.947398513 | O53: 0.1727112357 | P53: 9.742442978 | Q53: 13.63267065 | R53: 1.445132621 | T53: -0.6439584483 | W53: 0.9237929357 | AG53: 1.256637061 | AH53: 2.663531598 | AI53: 6.877579548 | AL53: 2.976497014 | AM53: 15.62448236 | AX53: 3.455751919 | AY53: 4.110640846 | AZ53: -3.175339155
A54: 0 | B54: 47 | C54: 1.476548547 | D54: 4.682015509 | E54: 3.811783373 | F54: -7.48853242 | G54: 7.589733088 | H54: 1.991123929 | I54: -6.768739218 | J54: 4.682015509 | K54: 8.23025515 | L54: 0.1882166266 | M54: 26.59956874 | N54: -6.4654452 | O54: 0.2604729673 | P54: 6.901665289 | Q54: 13.91566264 | R54: 1.476548547 | T54: -0.6917116111 | W54: 1.304033103 | AG54: 1.298524963 | AH54: 0.7869772344 | AI54: 7.444144713 | AL54: 2.245264184 | AM54: 15.78791832 | AX54: 3.534291735 | AY54: 3.89581343 | AZ54: -2.593023966
A55: 0 | B55: 48 | C55: 1.507964474 | D55: 4.470782961 | E55: 3.874418961 | F55: -7.68773602 | G55: 7.73354736 | H55: 1.996053457 | I55: -5.903001785 | J55: 4.470782961 | K55: 7.404953096 | L55: 0.1255810391 | M55: 28.50038782 | N55: -6.981547959 | O55: 0.41910571 | P55: 4.710040209 | Q55: 14.17422373 | R55: 1.507964474 | T55: -0.7573744892 | W55: 1.910811713 | AG55: 1.340412866 | AH55: =rx+ABS(Rcurrenta)*COS(AG55) -> -1.111656358 | AI55: =IF(ABS(Rcurrenta)<500,ry+ABS(Rcurrenta)*SIN(AG55),currenty+currentdy_dx*(AH55-current_x)) -> 7.931630964 | AL55: 1.503011493 | AM55: 15.90546974 | AX55: 3.612831552 | AY55: 3.635960333 | AZ55: -2.029359024
A56: 0 | B56: 49 | C56: 1.5393804 | D56: 4.243392986 | E56: 3.937178482 | F56: -7.858818719 | G56: 7.870471444 | H56: 1.999013121 | I56: -4.979006979 | J56: 4.243392986 | K56: 6.541933547 | L56: 0.06282151816 | M56: 30.30572719 | N56: -7.493728327 | O56: 0.7395788147 | P56: 3.06694309 | Q56: 14.4068572 | R56: 1.5393804 | T56: -0.8522568866 | W56: 2.934518097 | AG56: 1.382300768 | AH56: -3.029038333 | AI56: 8.339183084 | AL56: 0.7533623622 | AM56: 15.97632658 | AX56: 3.691371368 | AY56: 3.332683635 | AZ56: -1.487819513
A57: 0 | B57: 50 | C57: 1.570796327 | D57: 4 | E57: 4 | F57: -8 | G57: 8 | H57: 2 | I57: -4 | J57: 4 | K57: 5.656854249 | L57: -2.542020414e-15 | M57: 32 | N57: -8 | O57: 1.5 | P57: 1.885618083 | Q57: 14.6123781 | R57: 1.570796327 | T57: -1 | W57: 4.772970773 | AG57: 1.42418867 | AH57: -4.961804948 | AI57: 8.666086088 | AL57: -2.872788812e-14 | AM57: 16 | AX57: 3.769911184 | AY57: 2.987853137 | AZ57: -0.9717442028
A58: 0 | B58: 51 | C58: 1.602212253 | D58: 3.740820841 | E58: 4.062821518 | F58: -8.109608936 | G58: 8.121633522 | H58: 1.999013121 | I58: -2.969710354 | J58: 3.740820841 | K58: 4.776287277 | L58: -0.06282151816 | M58: 33.56798343 | N58: -8.498376639 | O58: 3.830948006 | P58: 1.085982391 | Q58: 14.79009342 | R58: 1.602212253 | T58: -1.259658483 | W58: 8.287427195 | AG58: 1.466076572 | AH58: -6.906565476 | AI58: 8.911766477 | AL58: -0.7533623622 | AM58: 15.97632658 | AX58: 3.848451001 | AY58: 2.603594834 | AZ58: -0.4843148696
A59: 0 | B59: 52 | C59: 1.63362818 | D59: 3.466134649 | E59: 4.125581039 | F59: -8.186099201 | G59: 8.234880295 | H59: 1.996053457 | I59: -1.89233831 | J59: 3.466134649 | K59: 3.949054784 | L59: -0.1255810391 | M59: 34.99495307 | N59: -8.986879696 | O59: 15.39042091 | P59: 0.5905173106 | Q59: 14.94014491 | R59: 1.63362818 | T59: -1.831667535 | W59: 15.24087413 | AG59: 1.507964474 | AH59: -8.859908146 | AI59: 9.075793243 | AL59: -1.503011493 | AM59: 15.90546974 | AX59: 3.926990817 | AY59: 2.182277807 | AZ59: -0.02853667726
A60: 0 | B60: 53 | C60: 1.665044106 | D60: 3.176282496 | E60: 4.188216627 | F60: -8.228063591 | G60: 8.339258346 | H60: 1.991123929 | I60: -0.7725371515 | J60: 3.176282496 | K60: 3.268881177 | L60: -0.1882166266 | M60: 36.26681531 | N60: -9.463546234 | O60: 233.9880747 | P60: 0.3237766738 | Q60: 15.06420812 | R60: 1.665044106 | T60: -4.11149482 | W60: 27.7969376 | AG60: 1.549852376 | AH60: -10.81840613 | AI60: 9.15787863 | AL60: -2.245264184 | AM60: 15.78791832 | AX60: 4.005530633 | AY60: 1.726499615 | AZ60: 0.39278035
A61: 0 | B61: 54 | C61: 1.696460033 | D61: 2.871666776 | E61: 4.250666467 | F61: -8.234247927 | G61: 8.434297385 | H61: 1.984229403 | I61: 0.3846086819 | J61: 2.871666776 | K61: 2.897308046 | L61: -0.2506664671 | M61: 37.37023664 | N61: -9.926436708 | O61: -1953.369767 | P61: 0.2188478604 | Q61: 15.16690305 | R61: 1.696460033 | T61: 7.466463735 | W61: 41.12445963 | AG61: 1.591740278 | AH61: -12.77862356 | AI61: 9.15787863 | AL61: -2.976497014 | AM61: 15.62448236 | AX61: 4.08407045 | AY61: 1.239070282 | AZ61: 0.7770386527
A62: 0 | B62: 55 | C62: 1.727875959 | D62: 2.552750345 | E62: 4.31286893 | F62: -8.2035642 | G62: 8.519540714 | H62: 1.975376681 | I62: 1.573609446 | J62: 2.552750345 | K62: 2.998796594 | L62: -0.3128689301 | M62: 38.29276859 | N62: -10.37364268 | O62: -29.27542413 | P62: 0.2363997263 | Q62: 15.25792467 | R62: 1.727875959 | T62: 1.622226119 | W62: 38.07111007 | AG62: 1.63362818 | AH62: -14.73712154 | AI62: 9.075793243 | AL62: -3.693175579 | AM62: 15.41628618 | AX62: 4.162610266 | AY62: 0.7229949713 | AZ62: 1.121869151
A63: 0 | B63: 56 | C63: 1.759291886 | D63: 2.220055427 | E63: 4.374762629 | F63: -8.135102848 | G63: 8.594547111 | H63: 1.964574501 | I63: 2.788599791 | J63: 2.220055427 | K63: 3.564398251 | L63: -0.3747626292 | M63: 39.02296723 | N63: -10.80329443 | O63: -5.384341461 | P63: 0.3878533084 | Q63: 15.35213464 | R63: 1.759291886 | T63: 0.7961183364 | W63: 23.2046493 | AG63: 1.675516082 | AH63: -16.69046421 | AI63: 8.911766477 | AL63: -4.391882955 | AM63: 15.16475871 | AX63: 4.241150082 | AY63: 0.1814554599 | AZ63: 1.425145849
A64: 0 | B64: 57 | C64: 1.790707813 | D64: 1.874162279 | E64: 4.436286483 | F64: -8.028144044 | G64: 8.658892679 | H64: 1.951833524 | I64: 4.023372115 | J64: 1.874162279 | K64: 4.43846904 | L64: -0.4362864828 | M64: 39.55050616 | N64: -11.21356843 | O64: -1.830850621 | P64: 0.7332905164 | Q64: 15.46411352 | R64: 1.790707813 | T64: 0.4658187772 | W64: 12.27344388 | AG64: 1.717403984 | AH64: -18.63522474 | AI64: 8.666086088 | AL64: -5.069347111 | AM64: 14.87162119 | AX64: 4.319689899 | AY64: -0.3822094813 | AZ64: 1.684998946
A65: 0 | B65: 58 | C65: 1.822123739 | D65: 1.515707623 | E65: 4.497379774 | F65: -7.882167878 | G65: 8.712172637 | H65: 1.937166322 | I65: 5.271413343 | J65: 1.515707623 | K65: 5.484994825 | L65: -0.4973797743 | M65: 39.86628189 | N65: -11.60269468 | O65: -0.8300615762 | P65: 1.357179032 | Q65: 15.60355213 | R65: 1.822123739 | T65: 0.287533442 | W65: 6.631402188 | AG65: 1.759291886 | AH65: -20.56799136 | AI65: 8.339183084 | AL65: -5.72246707 | AM65: 14.53887244 | AX65: 4.398229715 | AY65: -0.9645246707 | AZ65: 1.899826361
A66: 0 | B66: 59 | C66: 1.853539666 | D66: 1.145382854 | E66: 4.557982212 | F66: -7.696863331 | G66: 8.754003075 | H66: 1.920587371 | I66: 6.525944899 | J66: 1.145382854 | K66: 6.625696847 | L66: -0.5579822121 | M66: 39.96251066 | N66: -11.96896385 | O66: -0.4457333212 | P66: 2.347952867 | Q66: 15.77586833 | R66: 1.853539666 | T66: 0.1755121858 | W66: 3.833126349 | AG66: 1.801179788 | AH66: -22.48537333 | AI66: 7.931630964 | AL66: -6.348337551 | AM66: 14.16877169 | AX66: 4.476769531 | AY66: -1.561899941 | AZ66: 2.068303612
A67: 0 | B67: 60 | C67: 1.884955592 | D67: 0.7639320225 | E67: 4.618033989 | F67: -7.472135955 | G67: 8.784022635 | H67: 1.902113033 | I67: 7.779965556 | J67: 0.7639320225 | K67: 7.81738167 | L67: -0.6180339887 | M67: 39.83281573 | N67: -12.31073415 | O67: -0.2680089025 | P67: 3.785312209 | Q67: 15.98402073 | R67: 1.884955592 | T67: 0.0981922114 | W67: 2.377611014 | AG67: 1.84306769 | AH67: -24.38400692 | AI67: 7.444144713 | AL67: -6.94427191 | AM67: 13.7638192 | AX67: 4.555309348 | AY67: -2.170652276 | AZ67: 2.18939198
A68: 0 | B68: 61 | C68: 1.916371519 | D68: 0.3721496091 | E68: 4.67747584 | F68: -7.208114156 | G68: 8.801894131 | H68: 1.881761538 | I68: 9.026296879 | J68: 0.3721496091 | K68: 9.033965391 | L68: -0.6774758405 | M68: 39.47230441 | N68: -12.62643807 | O68: -0.1749497365 | P68: 5.730508142 | Q68: 16.22961102 | R68: 1.916371519 | T68: 0.04122948914 | W68: 1.570541351 | AG68: 1.884955592 | AH68: -26.26056129 | AI68: 6.877579548 | AL68: -7.507823151 | AM68: 13.32673489 | AX68: 4.633849164 | AY68: -2.787028515 | AZ68: 2.262344915
A69: 0 | B69: 62 | C69: 1.947787445 | D69: -0.02912191179 | E69: 4.736249105 | F69: -6.905154019 | G69: 8.807306099 | H69: 1.859552972 | I69: 10.25763092 | J69: -0.02912191179 | K69: 10.25767226 | L69: -0.7362491054 | M69: 38.87763392 | N69: -12.91458873 | O69: -0.1216910845 | P69: 8.217628225 | Q69: 16.51342142 | R69: 1.947787445 | T69: -0.002839048512 | W69: 1.095206519 | AG69: 1.926843494 | AH69: -28.11174431 | AI69: 6.232929415 | AL69: -8.036802842 | AM69: 12.860435 | AX69: 4.71238898 | AY69: -3.407228492 | AZ69: 2.286712639
A70: 0 | B70: 63 | C70: 1.979203372 | D70: -0.4389947014 | E70: 4.794295781 | F70: -6.563842604 | G70: 8.79997426 | H70: 1.835509251 | I70: 11.46657977 | J70: -0.4389947014 | K70: 11.47498008 | L70: -0.7942957813 | M70: 38.04706545 | N70: -13.17378602 | O70: -0.08911580936 | P70: 11.24603357 | Q70: 16.83567569 | R70: 1.979203372 | T70: -0.03828471176 | W70: 0.8002821564 | AG70: 1.968731396 | AH70: -29.93430838 | AI70: 5.511325251 | AL70: -8.529297763 | AM70: 12.36800719 | AX70: 4.790928797 | AY70: -4.02742847 | AZ70: 2.262344915
A71: 0 | B71: 64 | C71: 2.010619298 | D71: =alpha*(gama*COS(C71)-COS(beta*C71)) -> -0.8565383735 | E71: =(alpha-beta*COS(C71)) -> 4.851558583 | F71: =beta*E71*COS(pol*C71) -> -6.184999657 | G71: =gama*E71*SIN(pol_2*C71) -> 8.779642905 | H71: =beta*SIN(C71) -> 1.809654105 | I71: =beta*H71*COS(pol*C71)-beta*E71*pol*SIN(pol*C71) -> 12.64572667 | J71: =gama*H71*SIN(pol_2*C71)+gama*E71*pol_2*COS(pol_2*C71) -> -0.8565383735 | K71: 12.67470161 | L71: =beta*COS(C71) -> -0.8515585831 | M71: =beta*(L71*COS(pol*C71)-2*pol*H71*SIN(pol*C71)-pol^2*E71*COS(pol*C71)) -> 36.98050599 | N71: =gama*(L71*SIN(pol_2*C71)+2*pol_2*H71*COS(pol_2*C71)-pol_2^2*E71*SIN(pol_2*C71)) -> -13.40272236 | O71: -0.06814837094 | P71: 14.77496231 | Q71: 17.19617282 | R71: 2.010619298 | T71: -0.06773342459 | U71: =IF(S71<>"",T70+(scurrent-Q70)*(T71-T70)/(Q71-Q70),"") ->  | V71: =IF(v0*($M$2-deltat)<Q71,IF(v0*($M$2-deltat)>Q70,R70,""),"") ->  | W71: =v0^2/P71 -> 0.6091386096 | AG71: 2.010619298 | AH71: -31.7250561 | AI71: 4.714032995 | AL71: =alpha*(3*COS($C71)-COS(3*$C71)) -> -8.983684143 | AM71: =4*alpha*(SIN($C71))^3 -> 11.85268418 | AX71: 4.869468613 | AY71: -4.643804708 | AZ71: 2.18939198
A72: =IF(AND(REMAIN_S>Q72,REMAIN_S<Q73),1,0) -> 0 | B72: 65 | C72: =C71+dt -> 2.042035225 | D72: -1.280782989 | E72: 4.907980999 | F72: -5.7696777 | G72: 8.746086182 | H72: 1.782013048 | I72: 13.78767817 | J72: -1.280782989 | K72: 13.84703847 | L72: -0.9079809995 | M72: 35.6795372 | N72: -13.60018815 | O72: -0.05410728185 | P72: 18.72153983 | Q72: =Q71+dt*K71 -> 17.59436032 | R72: 2.042035225 | T72: =J72/I72 -> -0.09289330467 | W72: 0.4807296879 | AG72: 2.0525072 | AH72: -33.48084591 | AI72: 3.842451368 | AL72: -9.398639359 | AM72: 11.31781615 | AX72: 4.948008429 | AY72: -5.252557043 | AZ72: 2.068303612
A73: 0 | B73: =B72+1 -> 66 | C73: 2.073451151 | D73: -1.710722213 | E73: 4.963507348 | F73: -5.319160468 | G73: 8.699109291 | H73: 1.75261336 | I73: 14.88511705 | J73: -1.710722213 | K73: =SQRT(I73^2+J73^2) -> 14.98309982 | L73: -0.9635073482 | M73: 34.1474312 | N73: -13.76507684 | O73: =(N73*I73-M73*J73)/I73^3 -> -0.04441356879 | P73: 22.9632093 | Q73: 18.02937786 | R73: 2.073451151 | T73: -0.1149283682 | W73: 0.3919312794 | AG73: 2.094395102 | AH73: -35.19859753 | AI73: 2.89810942 | AL73: -9.773151003 | AM73: 10.76684224 | AX73: 5.026548246 | AY73: =rxn+currentrn*COS(AX73) -> -5.849932314 | AZ73: =ryn+currentrn*SIN(AX73) -> 1.899826361
A74: 0 | B74: 67 | C74: 2.104867078 | D74: -2.14531663 | E74: 5.018082832 | F74: -4.834959682 | G74: 8.638549576 | H74: 1.721484054 | I74: 15.93085549 | J74: -2.14531663 | K74: 16.07465521 | L74: -1.018082832 | M74: 32.38915283 | N74: -13.89638966 | O74: -0.03756904455 | P74: =IF(I74<>0,(1+(J74/I74)^2)^1.5/ABS(O74),"") -> 27.34497649 | Q74: 18.50008583 | R74: =C74 -> 2.104867078 | S74: =IF(scurrent>Q73,(IF(scurrent<Q74,(scurrent-Q73)*(R74-R73)/(Q74-Q73)+R73,"")),"") ->  | T74: -0.1346642452 | W74: 0.3291280942 | AG74: =AG73+2*PI()/150 -> 2.136283004 | AH74: -36.87529746 | AI74: 1.882663848 | AL74: -10.10652323 | AM74: 10.20326129 | AX74: 5.105088062 | AY74: -6.432247503 | AZ74: 1.684998946
A75: 0 | B75: 68 | C75: 2.136283004 | D75: -2.583497194 | E75: 5.07165359 | F75: -4.318810145 | G75: 8.564277509 | H75: 1.688655851 | I75: 16.91788809 | J75: -2.583497194 | K75: 17.11401166 | L75: -1.07165359 | M75: 30.41134836 | N75: -13.99323982 | O75: -0.03266490251 | P75: 31.69097939 | Q75: 19.00508601 | R75: 2.136283004 | T75: -0.15270802 | W75: 0.2839924853 | AG75: 2.178170906 | AH75: -38.5080042 | AI75: 0.7978960884 | AL75: -10.39838035 | AM75: 9.630602172 | AX75: =AX74+2*PI()/80 -> 5.183627878 | AY75: -6.995912445 | AZ75: 1.425145849
A76: 0 | B76: 69 | C76: 2.167698931 | D76: -3.024168812 | E76: 5.124166756 | F76: -3.77266319 | G76: 8.476197566 | H76: 1.654161149 | I76: 17.83944437 | J76: -3.024168812 | K76: 18.09395956 | L76: -1.124166756 | M76: 28.22232065 | N76: -14.05485648 | O76: -0.02913021302 | P76: 35.81897998 | Q76: 19.54273855 | R76: 2.167698931 | T76: -0.1695214688 | W76: 0.2512634364 | AG76: 2.220058809 | AH76: -40.09385341 | AI76: -0.354290807 | AL76: -10.64866758 | AM76: 9.052393926 | AX76: 5.262167695 | AY76: -7.537451956 | AZ76: 1.121869151
A77: 0 | B77: 70 | C77: 2.199114858 | D77: -3.466214041 | E77: 5.175570505 | F77: -3.198678483 | G77: 8.374248988 | H77: 1.618033989 | I77: 18.68904022 | J77: -3.466214041 | K77: 19.00775799 | L77: -1.175570505 | M77: 25.83199061 | N77: -14.08058809 | O77: -0.02659637317 | P77: 39.55571766 | Q77: 20.11117705 | R77: 2.199114858 | T77: -0.1854677394 | W77: 0.2275271575 | AG77: 2.261946711 | AH77: -41.63006298 | AI77: -1.571875511 | AL77: -10.85764909 | AM77: 8.472135955 | AX77: 5.340707511 | AY77: -8.053527266 | AZ77: 0.7770386527
A78: 0 | B78: 71 | C78: 2.230530784 | D78: -3.908496881 | E78: 5.225814107 | F78: -2.599214241 | G78: 8.258406421 | H78: 1.580310025 | I78: 19.46052795 | J78: -3.908496881 | K78: 19.84914345 | L78: -1.225814107 | M78: 23.25184554 | N78: -14.06990539 | O78: -0.0248208347 | P78: 42.75088158 | Q78: 20.70832338 | R78: 2.230530784 | T78: -0.200842284 | W78: 0.2105219745 | AG78: 2.303834613 | AH78: -43.11393788 | AI78: -2.852721967 | AL78: -11.02590315 | AM78: 7.893268586 | AX78: 5.419247327 | AY78: -8.540956599 | AZ78: 0.39278035
A79: 0 | B79: 72 | C79: 2.261946711 | D79: -4.34986666 | E79: 5.274847979 | F79: -1.976815897 | G79: 8.128680444 | H79: 1.541026486 | I79: 20.14814454 | J79: -4.34986666 | K79: 20.61235233 | L79: -1.274847979 | M79: 20.49487433 | N79: -14.02240395 | O79: -0.02364265072 | P79: 45.28781127 | Q79: 21.33190261 | R79: 2.261946711 | T79: -0.2158941559 | W79: 0.1987289681 | AG79: 2.345722515 | AH79: -44.54287489 | AI79: -4.194583134 | AL79: -11.1543146 | AM79: 7.319144217 | AX79: 5.497787144 | AY79: -8.996734792 | AZ79: -0.02853667726
A80: 0 | B80: 73 | C80: 2.293362637 | D80: -4.789161988 | E80: 5.322623731 | F80: -1.334203286 | G80: 7.98511796 | H80: 1.500222139 | I80: 20.74655763 | J80: -4.789161988 | K80: 21.29215175 | L80: -1.322623731 | M80: 17.57549008 | N80: -13.93780617 | O80: -0.0229558697 | P80: 47.08979141 | Q80: 21.97945876 | R80: 2.293362637 | T80: -0.2308412834 | W80: 0.1911242273 | AG80: 2.387610417 | AH80: -45.91436716 | AI80: -5.595104933 | AL80: -11.24406468 | AM80: 6.752999324 | AX80: 5.57632696 | AY80: -9.418051819 | AZ80: -0.4843148696
A81: 0 | B81: 74 | C81: 2.324778564 | D81: -5.225214769 | E81: 5.369094212 | F81: -0.6742564299 | G81: 7.827802476 | H81: 1.457937255 | I81: 21.25090885 | J81: -5.225214769 | K81: 21.88387526 | L81: -1.369094212 | M81: 14.50944078 | N81: -13.81596285 | O81: -0.02269337417 | P81: 48.12171452 | Q81: 22.64837143 | R81: 2.324778564 | T81: -0.2458819435 | W81: 0.1870257552 | AG81: 2.429498319 | AH81: -47.22600864 | AI81: -7.051830371 | AL81: -11.29661824 | AM81: 6.19792757 | AX81: 5.654866776 | AY81: -9.802310122 | AZ81: -0.9717442028
A82: 0 | B82: 75 | C82: 2.35619449 | D82: -5.656854249 | E82: 5.414213562 | F82: -1.989964614e-15 | G82: 7.656854249 | H82: 1.414213562 | I82: 21.65685425 | J82: -5.656854249 | K82: 22.38346122 | L82: -1.414213562 | M82: 11.3137085 | N82: -13.65685425 | O82: -0.02281711846 | P82: 48.38768137 | Q82: 23.33587365 | R82: 2.35619449 | T82: -0.261203875 | W82: 0.1859977528 | AG82: 2.471386221 | AH82: -48.47549825 | AI82: -8.562203858 | AL82: -11.3137085 | AM82: 5.656854249 | AX82: 5.733406593 | AY82: -10.14714062 | AZ82: -1.487819513
A83: 0 | B83: 76 | C83: 2.387610417 | D83: -6.082911097 | E83: 5.457937255 | F83: 0.6854134316 | G83: 7.472430304 | H83: 1.369094212 | I83: 21.96060132 | J83: -6.082911097 | K83: 22.78749258 | L83: -1.457937255 | M83: 8.006397936 | N83: -13.46059067 | O83: -0.02331251954 | P83: 47.92561825 | Q83: 24.03907082 | R83: 2.387610417 | T83: -0.2769920098 | W83: 0.1877910047 | AG83: 2.513274123 | AH83: -49.66064398 | AI83: -10.12357569 | AL83: -11.29731949 | AM83: 5.1325123 | AX83: 5.811946409 | AY83: -10.45041732 | AZ83: -2.029359024
A84: 1 | B84: 77 | C84: 2.419026343 | D84: -6.502221491 | E84: 5.500222139 | F84: 1.378721252 | G84: 7.274724325 | H84: 1.322623731 | I84: 22.1589424 | J84: -6.502221491 | K84: 23.09323738 | L84: -1.500222139 | M84: 4.606615188 | N84: -13.22741253 | O84: -0.02418577374 | P84: 46.80016538 | Q84: 24.75496102 | R84: 2.419026343 | T84: -0.2934355519 | W84: 0.1923070127 | AG84: 2.555162025 | AH84: -50.77936666 | AI84: -11.73320668 | AL84: -11.24966635 | AM84: 4.627420087 | AX84: 5.890486225 | AY84: -10.71027042 | AZ84: -2.593023966
A85: 0 | B85: 78 | C85: 2.45044227 | D85: -6.913631201 | E85: 5.541026486 | F85: 2.076569654 | G85: 7.063966419 | H85: 1.274847979 | I85: 22.24928407 | J85: -6.913631201 | K85: 23.29868962 | L85: -1.541026486 | M85: 1.134337582 | N85: -12.95768992 | O85: -0.02546349757 | P85: 45.09499138 | Q85: 25.48045646 | R85: 2.45044227 | T85: -0.3107349962 | W85: 0.1995787054 | AG85: 2.597049927 | AH85: -51.82970368 | AI85: -13.38827299 | AL85: -11.17317361 | AM85: 4.143861157 | AX85: 5.969026042 | AY85: -10.92509783 | AZ85: -3.175339155
A86: 0 | B86: 79 | C86: 2.481858196 | D86: -7.315999648 | E86: 5.580310025 | F86: 2.775533341 | G86: 6.840422751 | H86: 1.225814107 | I86: 22.22967244 | J86: -7.315999648 | K86: 23.4026107 | L86: -1.580310025 | M86: -2.389724383 | N86: -12.65192172 | O86: -0.02719452869 | P86: 42.90542403 | Q86: 26.21240639 | R86: 2.481858196 | T86: -0.3291096469 | W86: 0.2097636885 | AG86: 2.638937829 | AH86: -52.80981239 | AI86: -15.08587108 | AL86: -11.07045171 | AM86: 3.683866141 | AX86: =AX85+2*PI()/80 -> 6.047565858 | AY86: -11.09357508 | AZ86: -3.772714426
A87: 0 | B87: 80 | C87: 2.513274123 | D87: -7.708203932 | E87: 5.618033989 | F87: 3.472135955 | G87: 6.604395051 | H87: 1.175570505 | I87: 22.09881386 | J87: -7.708203932 | K87: 23.40457182 | L87: -1.618033989 | M87: -5.94427191 | N87: -12.31073415 | O87: -0.02945410081 | P87: 40.33197043 | Q87: 26.94762108 | R87: 2.513274123 | T87: -0.3488062292 | W87: 0.2231480362 | AG87: 2.680825731 | AH87: =rx+ABS(Rcurrenta)*COS(AG87) -> -53.71797336 | AI87: =IF(ABS(Rcurrenta)<500,ry+ABS(Rcurrenta)*SIN(AG87),currenty+currentdy_dx*(AH87-current_x)) -> -16.82302278 | AL87: -10.94427191 | AM87: 3.249196962 | AX87: 6.126105675 | AY87: -11.21466345 | AZ87: -4.381466761
A88: 0 | B88: 81 | C88: 2.544690049 | D88: -8.089142805 | E88: 5.654161149 | F88: 4.162871087 | G88: 6.356219995 | H88: 1.124166756 | I88: 21.8560911 | J88: -8.089142805 | K88: 23.30499838 | L88: -1.654161149 | M88: -9.507568489 | N88: -11.93487891 | O88: -0.03235102262 | P88: 37.47500861 | Q88: 27.68289739 | R88: 2.544690049 | T88: -0.3701093104 | W88: 0.2401600516 | AG88: 2.722713633 | AH88: -54.55259334 | AI88: -18.59668054 | AL88: -10.79753986 | AM88: 2.841333486 | AX88: 6.204645491 | AY88: -11.28761638 | AZ88: -4.997842999
A89: 0 | B89: 82 | C89: 2.576105976 | D89: -8.45774057 | E89: 5.688655851 | F89: 4.844223716 | G89: 6.096268465 | H89: 1.07165359 | I89: 21.50157464 | J89: -8.45774057 | K89: 23.10521775 | L89: -1.688655851 | M89: -13.05759498 | N89: -11.52523078 | O89: -0.03603905658 | P89: 34.43071059 | Q89: 28.41504551 | R89: 2.576105976 | T89: -0.3933544735 | W89: 0.2613945471 | AG89: 2.764601535 | AH89: -55.31220815 | AI89: -20.40373275 | AL89: -10.63326804 | AM89: 2.461462734 | AX89: 6.283185307 | AY89: -11.31198411 | AZ89: -5.618042977
A90: 0 | B90: 83 | C90: 2.607521902 | D90: -8.812950912 | E90: 5.721484054 | F90: 5.512691929 | G90: 5.824944686 | H90: 1.018082832 | I90: 21.03602907 | J90: -8.812950912 | K90: 22.80751242 | L90: -1.721484054 | M90: -16.57220796 | N90: -11.08278477 | O90: -0.04073456774 | P90: 31.28811226 | Q90: 29.14091733 | R90: 2.607521902 | T90: -0.4189455568 | W90: 0.2876491853 | AG90: 2.806489437 | AH90: -55.99548515 | AI90: -22.24100925 | AL90: -10.45454736 | AM90: 2.110470748
A91: 0 | B91: 84 | C91: 2.638937829 | D91: -9.15376062 | E91: 5.75261336 | F91: 6.164808759 | G91: 5.542685244 | H91: 0.9635073482 | I91: 20.46091453 | J91: -9.15376062 | K91: 22.41518139 | L91: -1.75261336 | M91: -20.02930015 | N91: -10.6086528 | O91: -0.04674397312 | P91: 28.12716921 | Q91: 29.85743647 | R91: 2.638937829 | T91: -0.4473778828 | W91: 0.3199753211 | AG91: 2.848377339 | AH91: -56.60122565 | AI91: -24.1052868 | AL91: -10.26451808 | AM91: 1.788937176
A92: 0 | B92: 85 | C92: 2.670353756 | D92: -9.479193203 | E92: 5.782013048 | F92: 6.797163997 | G92: 5.249957987 | H92: 0.9079809995 | I92: 19.77838295 | J92: -9.479193203 | K92: 21.93261352 | L92: -1.782013048 | M92: -23.40696149 | N92: -10.10405995 | O92: -0.05450708574 | P92: 25.01761187 | Q92: 30.56163016 | R92: 2.670353756 | T92: -0.4792703845 | W92: 0.3597465676 | AG92: 2.890265241 | AH92: -57.12836697 | AI92: -25.99329485 | AL92: -10.06634043 | AM92: 1.497132634
A93: 0 | B93: 86 | C93: 2.701769682 | D93: -9.788312379 | E93: 5.809654105 | F93: 7.406425797 | G93: 4.947260818 | H93: 0.8515585831 | I93: 18.99126943 | J93: -9.788312379 | K93: 21.36537793 | L93: -1.809654105 | M93: -26.68363975 | N93: -9.570340275 | O93: -0.06466713397 | P93: 22.01841934 | Q93: 31.25066354 | R93: 2.701769682 | T93: -0.5154111689 | W93: 0.4087486872 | AG93: 2.932153143 | AH93: -57.57598432 | AI93: -27.90172119 | AL93: -9.863165081 | AM93: 1.235018854
A94: 0 | B94: 87 | C94: 2.733185609 | D94: -10.08022543 | E94: 5.835509251 | F94: 7.989361939 | G94: 4.63512038 | H94: 0.7942957813 | I94: 18.10307843 | J94: -10.08022543 | K94: 20.72033768 | L94: -1.835509251 | M94: -29.83829921 | N94: -9.008932144 | O94: -0.07818715626 | P94: 19.17775515 | Q94: 31.92187668 | R94: 2.733185609 | T94: -0.5568238278 | W94: 0.4692937171 | AG94: 2.974041045 | AH94: -57.94329244 | AI94: -29.82721777 | AL94: -9.658103827 | AM94: 1.002251612
A95: 0 | B95: 88 | C95: 2.764601535 | D95: -10.3540864 | E95: 5.859552972 | F95: 8.542860574 | G95: 4.314090633 | H95: 0.7362491054 | I95: 17.11796512 | J95: -10.3540864 | K95: 20.00579503 | L95: -1.859552972 | M95: -32.8505763 | N95: -8.421373269 | O95: -0.0965501843 | P95: 16.53323835 | Q95: 32.57282529 | R95: 2.764601535 | T95: -0.6048666607 | W95: 0.5443579661 | AG95: 3.015928947 | AH95: -58.22964694 | AI95: -31.76640664 | AL95: -9.454200664 | AM95: 0.7981864224
A96: 0 | B96: 89 | C96: 2.796017462 | D96: -10.60909912 | E96: 5.881761538 | F96: 9.063950312 | G96: 3.984751341 | H96: 0.6774758405 | I96: 16.04071184 | J96: -10.60909912 | K96: 19.23167753 | L96: -1.881761538 | M96: -35.70093079 | N96: -7.80929528 | O96: -0.1221175375 | P96: 14.11245452 | Q96: 33.20132587 | R96: 2.796017462 | T96: -0.6613858057 | W96: 0.6377345621 | AG96: 3.057816849 | AH96: -58.43454546 | AI96: -33.71588579 | AL96: -9.254403564 | AM96: 0.6218869349
A97: 0 | B97: 90 | C97: 2.827433388 | D97: -10.84452011 | E97: 5.902113033 | F97: 9.549819492 | G97: 3.64770646 | H97: 0.6180339887 | I97: 14.87669999 | J97: -10.84452011 | K97: 18.40977509 | L97: -1.902113033 | M97: -38.37079139 | N97: -7.174417973 | O97: -0.1588008104 | P97: 11.93363964 | Q97: 33.80550684 | R97: 2.827433388 | T97: -0.7289600593 | W97: 0.754170586 | AG97: 3.099704752 | AH97: -58.55762853 | AI97: -35.67223518 | AL97: -9.061537186 | AM97: 0.472135955
A98: 0 | B98: 91 | C98: 2.858849315 | D98: -11.05966119 | E98: 5.920587371 | F98: 9.997834506 | G98: 3.303582438 | H98: 0.5579822121 | I98: 13.63187735 | J98: -11.05966119 | K98: 17.55403616 | L98: -1.920587371 | M98: -40.84269456 | N98: -6.518543208 | O98: -0.2133938967 | P98: 10.00649453 | Q98: 34.38386698 | R98: 2.858849315 | T98: -0.8113087364 | W98: 0.8994158715 | AG98: 3.141592654 | AH98: -58.59868022 | AI98: -37.6320227 | AL98: -8.878276767 | AM98: 0.3474489939
A99: 0 | B99: 92 | C99: 2.890265241 | D99: -11.25389201 | E99: 5.937166322 | F99: 10.40555702 | G99: 2.953026446 | H99: 0.4973797743 | I99: 12.3127212 | J99: -11.25389201 | K99: 16.68092289 | L99: -1.937166322 | M99: -43.10041538 | N99: -5.84354849 | O99: -0.2983946511 | P99: 8.333108834 | Q99: 34.93534329 | R99: 2.890265241 | T99: -0.9140052658 | W99: 1.080029096 | AG99: 3.183480556 | AH99: -58.55762853 | AI99: -39.59181022 | AL99: -8.707123424 | AM99: 0.2460902223
A100: 0 | B100: 93 | C100: 2.921681168 | D100: -11.42664231 | E100: 5.951833524 | F100: 10.77075997 | G100: 2.596704514 | H100: 0.4362864828 | I100: 10.92619747 | J100: -11.42664231 | K100: 15.80980536 | L100: -1.951833524 | M100: -45.12908943 | N100: -5.151380264 | O100: -0.4384880199 | P100: 6.908992186 | Q100: 35.45938994 | R100: 2.921681168 | T100: -1.045802287 | W100: 1.302650192 | AG100: 3.225368458 | AH100: -58.43454546 | AI100: -41.54815961 | AL100: -8.550381094 | AM100: 0.1660906821
A101: 0 | B101: 94 | C101: 2.953097094 | D101: -11.57740395 | E101: 5.964574501 | F101: 11.09144224 | G101: 2.235299622 | H101: 0.3747626292 | I101: 9.479716242 | J101: -11.57740395 | K101: 14.96333192 | L101: -1.964574501 | M101: -46.91532471 | N101: -4.444046938 | O101: -0.6870401225 | P101: 5.72422658 | Q101: 35.95606963 | R101: 2.953097094 | T101: -1.221281698 | W101: 1.572264807 | AG101: 3.26725636 | AH101: -58.22964694 | AI101: -43.49763876 | AL101: -8.410135307 | AM101: 0.1052685951
A102: 0 | B102: 95 | C102: 2.984513021 | D102: -11.70573279 | E102: 5.975376681 | F102: 11.36584186 | G102: 1.869509709 | H102: 0.3128689301 | I102: 7.981083839 | J102: -11.70573279 | K102: 14.16763493 | L102: -1.975376681 | M102: -48.44730264 | N102: -3.723611675 | O102: -1.173990983 | P102: 4.764767259 | Q102: 36.42615656 | R102: 2.984513021 | T102: -1.466684604 | W102: 1.888864558 | AG102: 3.309144262 | AH102: -57.94329244 | AI102: -45.43682763 | AL102: -8.28823399 | AM102: 0.06125158152
A103: 0 | B103: 96 | C103: 3.015928947 | D103: -11.81125026 | E103: 5.984229403 | F103: 11.59244766 | G103: 1.500045643 | H103: 0.2506664671 | I103: 6.438451978 | J103: -11.81125026 | K103: 13.45211123 | L103: -1.984229403 | M103: -49.7148673 | N103: -2.992184966 | O103: -2.272257892 | P103: 4.013925854 | Q103: 36.87124594 | R103: 3.015928947 | T103: -1.834486037 | W103: 2.242193884 | AG103: 3.351032164 | AH103: -57.57598432 | AI103: -47.36232422 | AL103: -8.186270472 | AM103: 0.03150059203
A104: 0 | B104: 97 | C104: 3.047344874 | D104: -11.89364472 | E104: 5.991123929 | F104: 11.77000931 | G104: 1.127629136 | H104: 0.1882166266 | I104: 4.860264296 | J104: -11.89364472 | K104: 12.84838331 | L104: -1.991123929 | M104: -50.70960229 | N104: -2.251917023 | O104: -5.348549666 | P104: 3.454059081 | Q104: 37.29385648 | R104: 3.047344874 | T104: -2.447118921 | W104: 2.60563001 | AG104: 3.392920066 | AH104: -57.12836697 | AI104: -49.27075055 | AL104: -8.105568833 | AM104: 0.01333533567
A105: 0 | B105: 98 | C105: 3.078760801 | D105: -11.95267263 | E105: 5.996053457 | F105: 11.89754557 | G105: 0.7529906234 | H105: 0.1255810391 | I105: 3.255200664 | J105: -11.95267263 | K105: 12.38800688 | L105: -1.996053457 | M105: -51.42489441 | N105: -1.504990025 | O105: -17.96192421 | P105: 3.068443689 | Q105: 37.69750034 | R105: 3.078760801 | T105: -3.671869684 | W105: 2.933082993 | AG105: 3.434807968 | AH105: -56.60122565 | AI105: -51.1587586 | AL105: -8.047171738 | AM105: 0.003960976009
A106: 0 | B106: 99 | C106: 3.110176727 | D106: -11.9881594 | E106: 5.999013121 | F106: 11.97435088 | G106: 0.3768671117 | H106: 0.06282151816 | I106: 1.632119711 | J106: -11.9881594 | K106: 12.09875119 | L106: -1.999013121 | M106: -51.85598379 | N106: -0.7536102289 | O106: -143.2695124 | P106: 2.843228903 | Q106: 38.08668106 | R106: 3.110176727 | T106: -7.345147123 | W106: 3.165415204 | AG106: 3.47669587 | AH106: -55.99548515 | AI106: -53.02303616 | AL106: -8.011830866 | AM106: 0.0004958556635
A107: 0 | B107: 100 | C107: 3.141592654 | D107: -12 | E107: 6 | F107: 12 | G107: 5.476088333e-14 | H107: 9.126813888e-15 | I107: 2.372971611e-13 | J107: -12 | K107: 12 | L107: -2 | M107: -52 | N107: -1.095217667e-13 | O107: -4.669893346e+40 | P107: 2.769230769 | Q107: 38.46677454 | R107: 3.141592654 | T107: -5.056950511e+13 | W107: 3.25 | AG107: 3.518583772 | AH107: -55.31220815 | AI107: -54.86031265 | AL107: -8 | AM107: 1.520504043e-42
A108: 0 | B108: 101 | C108: 3.17300858 | D108: -11.9881594 | E108: 5.999013121 | F108: 11.97435088 | G108: -0.3768671117 | H108: -0.06282151816 | I108: -1.632119711 | J108: -11.9881594 | K108: 12.09875119 | L108: -1.999013121 | M108: -51.85598379 | N108: 0.7536102289 | O108: 143.2695124 | P108: 2.843228903 | Q108: 38.84376566 | R108: 3.17300858 | T108: 7.345147123 | W108: 3.165415204 | AG108: 3.560471674 | AH108: -54.55259334 | AI108: -56.66736486 | AL108: -8.011830866 | AM108: -0.0004958556635
A109: 0 | B109: 102 | C109: 3.204424507 | D109: -11.95267263 | E109: 5.996053457 | F109: 11.89754557 | G109: -0.7529906234 | H109: -0.1255810391 | I109: -3.255200664 | J109: -11.95267263 | K109: 12.38800688 | L109: -1.996053457 | M109: -51.42489441 | N109: 1.504990025 | O109: 17.96192421 | P109: 3.068443689 | Q109: 39.22385913 | R109: 3.204424507 | T109: 3.671869684 | W109: 2.933082993 | AG109: 3.602359576 | AH109: -53.71797336 | AI109: -58.44102262 | AL109: -8.047171738 | AM109: -0.003960976009
A110: 0 | B110: 103 | C110: 3.235840433 | D110: -11.89364472 | E110: 5.991123929 | F110: 11.77000931 | G110: -1.127629136 | H110: -0.1882166266 | I110: -4.860264296 | J110: -11.89364472 | K110: 12.84838331 | L110: -1.991123929 | M110: -50.70960229 | N110: 2.251917023 | O110: 5.348549666 | P110: 3.454059081 | Q110: 39.61303985 | R110: 3.235840433 | T110: 2.447118921 | W110: 2.60563001 | AG110: 3.644247478 | AH110: -52.80981239 | AI110: -60.17817432 | AL110: -8.105568833 | AM110: -0.01333533567
A111: 0 | B111: 104 | C111: 3.26725636 | D111: -11.81125026 | E111: 5.984229403 | F111: 11.59244766 | G111: -1.500045643 | H111: -0.2506664671 | I111: -6.438451978 | J111: -11.81125026 | K111: 13.45211123 | L111: -1.984229403 | M111: -49.7148673 | N111: 2.992184966 | O111: 2.272257892 | P111: 4.013925854 | Q111: 40.01668371 | R111: 3.26725636 | T111: 1.834486037 | W111: 2.242193884 | AG111: 3.68613538 | AH111: -51.82970368 | AI111: -61.87577241 | AL111: -8.186270472 | AM111: -0.03150059203
A112: 0 | B112: 105 | C112: 3.298672286 | D112: -11.70573279 | E112: 5.975376681 | F112: 11.36584186 | G112: -1.869509709 | H112: -0.3128689301 | I112: -7.981083839 | J112: -11.70573279 | K112: 14.16763493 | L112: -1.975376681 | M112: -48.44730264 | N112: 3.723611675 | O112: 1.173990983 | P112: 4.764767259 | Q112: 40.43929425 | R112: 3.298672286 | T112: 1.466684604 | W112: 1.888864558 | AG112: 3.728023282 | AH112: -50.77936666 | AI112: -63.53083872 | AL112: -8.28823399 | AM112: -0.06125158152
A113: 0 | B113: 106 | C113: 3.330088213 | D113: -11.57740395 | E113: 5.964574501 | F113: 11.09144224 | G113: -2.235299622 | H113: -0.3747626292 | I113: -9.479716242 | J113: -11.57740395 | K113: 14.96333192 | L113: -1.964574501 | M113: -46.91532471 | N113: 4.444046938 | O113: 0.6870401225 | P113: 5.72422658 | Q113: 40.88438363 | R113: 3.330088213 | T113: 1.221281698 | W113: 1.572264807 | AG113: 3.769911184 | AH113: -49.66064398 | AI113: -65.14046972 | AL113: -8.410135307 | AM113: -0.1052685951
A114: 0 | B114: 107 | C114: 3.361504139 | D114: -11.42664231 | E114: 5.951833524 | F114: 10.77075997 | G114: -2.596704514 | H114: -0.4362864828 | I114: -10.92619747 | J114: -11.42664231 | K114: 15.80980536 | L114: -1.951833524 | M114: -45.12908943 | N114: 5.151380264 | O114: 0.4384880199 | P114: 6.908992186 | Q114: 41.35447057 | R114: 3.361504139 | T114: 1.045802287 | W114: 1.302650192 | AG114: 3.811799086 | AH114: -48.47549825 | AI114: -66.70184154 | AL114: -8.550381094 | AM114: -0.1660906821
A115: 0 | B115: 108 | C115: 3.392920066 | D115: -11.25389201 | E115: 5.937166322 | F115: 10.40555702 | G115: -2.953026446 | H115: -0.4973797743 | I115: -12.3127212 | J115: -11.25389201 | K115: 16.68092289 | L115: -1.937166322 | M115: -43.10041538 | N115: 5.84354849 | O115: 0.2983946511 | P115: 8.333108834 | Q115: 41.85115025 | R115: 3.392920066 | T115: 0.9140052658 | W115: 1.080029096 | AG115: 3.853686988 | AH115: -47.22600864 | AI115: -68.21221503 | AL115: -8.707123424 | AM115: -0.2460902223
A116: 0 | B116: 109 | C116: 3.424335992 | D116: -11.05966119 | E116: 5.920587371 | F116: 9.997834506 | G116: -3.303582438 | H116: -0.5579822121 | I116: -13.63187735 | J116: -11.05966119 | K116: 17.55403616 | L116: -1.920587371 | M116: -40.84269456 | N116: 6.518543208 | O116: 0.2133938967 | P116: 10.00649453 | Q116: 42.3751969 | R116: 3.424335992 | T116: 0.8113087364 | W116: 0.8994158715 | AG116: 3.89557489 | AH116: -45.91436716 | AI116: -69.66894047 | AL116: -8.878276767 | AM116: -0.3474489939
A117: 0 | B117: 110 | C117: 3.455751919 | D117: -10.84452011 | E117: 5.902113033 | F117: 9.549819492 | G117: -3.64770646 | H117: -0.6180339887 | I117: -14.87669999 | J117: -10.84452011 | K117: 18.40977509 | L117: -1.902113033 | M117: -38.37079139 | N117: 7.174417973 | O117: 0.1588008104 | P117: 11.93363964 | Q117: 42.92667321 | R117: 3.455751919 | T117: 0.7289600593 | W117: 0.754170586 | AG117: 3.937462792 | AH117: -44.54287489 | AI117: -71.06946227 | AL117: -9.061537186 | AM117: -0.472135955
A118: 0 | B118: 111 | C118: 3.487167845 | D118: -10.60909912 | E118: 5.881761538 | F118: 9.063950312 | G118: -3.984751341 | H118: -0.6774758405 | I118: -16.04071184 | J118: -10.60909912 | K118: 19.23167753 | L118: -1.881761538 | M118: -35.70093079 | N118: 7.80929528 | O118: 0.1221175375 | P118: 14.11245452 | Q118: 43.50503335 | R118: 3.487167845 | T118: 0.6613858057 | W118: 0.6377345621 | AG118: 3.979350695 | AH118: -43.11393788 | AI118: -72.41132343 | AL118: -9.254403564 | AM118: -0.6218869349
A119: 0 | B119: 112 | C119: 3.518583772 | D119: -10.3540864 | E119: 5.859552972 | F119: 8.542860574 | G119: -4.314090633 | H119: -0.7362491054 | I119: -17.11796512 | J119: -10.3540864 | K119: 20.00579503 | L119: -1.859552972 | M119: -32.8505763 | N119: 8.421373269 | O119: 0.0965501843 | P119: 16.53323835 | Q119: 44.10921432 | R119: 3.518583772 | T119: 0.6048666607 | W119: 0.5443579661 | AG119: 4.021238597 | AH119: =rx+ABS(Rcurrenta)*COS(AG119) -> -41.63006298 | AI119: =IF(ABS(Rcurrenta)<500,ry+ABS(Rcurrenta)*SIN(AG119),currenty+currentdy_dx*(AH119-current_x)) -> -73.69216989 | AL119: -9.454200664 | AM119: -0.7981864224
A120: 0 | B120: 113 | C120: 3.549999699 | D120: -10.08022543 | E120: 5.835509251 | F120: 7.989361939 | G120: -4.63512038 | H120: -0.7942957813 | I120: -18.10307843 | J120: -10.08022543 | K120: 20.72033768 | L120: -1.835509251 | M120: -29.83829921 | N120: 9.008932144 | O120: 0.07818715626 | P120: 19.17775515 | Q120: 44.73771491 | R120: 3.549999699 | T120: 0.5568238278 | W120: 0.4692937171 | AG120: 4.063126499 | AH120: -40.09385341 | AI120: -74.90975459 | AL120: -9.658103827 | AM120: -1.002251612
A121: 0 | B121: 114 | C121: 3.581415625 | D121: -9.788312379 | E121: 5.809654105 | F121: 7.406425797 | G121: -4.947260818 | H121: -0.8515585831 | I121: -18.99126943 | J121: -9.788312379 | K121: 21.36537793 | L121: -1.809654105 | M121: -26.68363975 | N121: 9.570340275 | O121: 0.06466713397 | P121: 22.01841934 | Q121: 45.38866351 | R121: 3.581415625 | T121: 0.5154111689 | W121: 0.4087486872 | AG121: 4.105014401 | AH121: -38.5080042 | AI121: -76.06194149 | AL121: -9.863165081 | AM121: -1.235018854
A122: 0 | B122: 115 | C122: 3.612831552 | D122: -9.479193203 | E122: 5.782013048 | F122: 6.797163997 | G122: -5.249957987 | H122: -0.9079809995 | I122: -19.77838295 | J122: -9.479193203 | K122: 21.93261352 | L122: -1.782013048 | M122: -23.40696149 | N122: 10.10405995 | O122: 0.05450708574 | P122: 25.01761187 | Q122: 46.05987666 | R122: 3.612831552 | T122: 0.4792703845 | W122: 0.3597465676 | AG122: 4.146902303 | AH122: -36.87529746 | AI122: -77.14670925 | AL122: -10.06634043 | AM122: -1.497132634
A123: 0 | B123: 116 | C123: 3.644247478 | D123: -9.15376062 | E123: 5.75261336 | F123: 6.164808759 | G123: -5.542685244 | H123: -0.9635073482 | I123: -20.46091453 | J123: -9.15376062 | K123: 22.41518139 | L123: -1.75261336 | M123: -20.02930015 | N123: 10.6086528 | O123: 0.04674397312 | P123: 28.12716921 | Q123: 46.74891003 | R123: 3.644247478 | T123: 0.4473778828 | W123: 0.3199753211 | AG123: 4.188790205 | AH123: -35.19859753 | AI123: -78.16215482 | AL123: -10.26451808 | AM123: -1.788937176
A124: 0 | B124: 117 | C124: 3.675663405 | D124: -8.812950912 | E124: 5.721484054 | F124: 5.512691929 | G124: -5.824944686 | H124: -1.018082832 | I124: -21.03602907 | J124: -8.812950912 | K124: 22.80751242 | L124: -1.721484054 | M124: -16.57220796 | N124: 11.08278477 | O124: 0.04073456774 | P124: 31.28811226 | Q124: 47.45310372 | R124: 3.675663405 | T124: 0.4189455568 | W124: 0.2876491853 | AG124: 4.230678107 | AH124: -33.48084591 | AI124: -79.10649677 | AL124: -10.45454736 | AM124: -2.110470748
A125: 0 | B125: 118 | C125: 3.707079331 | D125: -8.45774057 | E125: 5.688655851 | F125: 4.844223716 | G125: -6.096268465 | H125: -1.07165359 | I125: -21.50157464 | J125: -8.45774057 | K125: 23.10521775 | L125: -1.688655851 | M125: -13.05759498 | N125: 11.52523078 | O125: 0.03603905658 | P125: 34.43071059 | Q125: 48.16962286 | R125: 3.707079331 | T125: 0.3933544735 | W125: 0.2613945471 | AG125: 4.272566009 | AH125: -31.7250561 | AI125: -79.9780784 | AL125: -10.63326804 | AM125: -2.461462734
A126: 0 | B126: 119 | C126: 3.738495258 | D126: -8.089142805 | E126: 5.654161149 | F126: 4.162871087 | G126: -6.356219995 | H126: -1.124166756 | I126: -21.8560911 | J126: -8.089142805 | K126: 23.30499838 | L126: -1.654161149 | M126: -9.507568489 | N126: 11.93487891 | O126: 0.03235102262 | P126: 37.47500861 | Q126: 48.89549468 | R126: 3.738495258 | T126: 0.3701093104 | W126: 0.2401600516 | AG126: 4.314453911 | AH126: -29.93430838 | AI126: -80.77537065 | AL126: -10.79753986 | AM126: -2.841333486
A127: 0 | B127: 120 | C127: 3.769911184 | D127: -7.708203932 | E127: 5.618033989 | F127: 3.472135955 | G127: -6.604395051 | H127: -1.175570505 | I127: -22.09881386 | J127: -7.708203932 | K127: 23.40457182 | L127: -1.618033989 | M127: -5.94427191 | N127: 12.31073415 | O127: 0.02945410081 | P127: 40.33197043 | Q127: 49.6276428 | R127: 3.769911184 | T127: 0.3488062292 | W127: 0.2231480362 | AG127: 4.356341813 | AH127: -28.11174431 | AI127: -81.49697482 | AL127: -10.94427191 | AM127: -3.249196962
A128: 0 | B128: 121 | C128: 3.801327111 | D128: -7.315999648 | E128: 5.580310025 | F128: 2.775533341 | G128: -6.840422751 | H128: -1.225814107 | I128: -22.22967244 | J128: -7.315999648 | K128: 23.4026107 | L128: -1.580310025 | M128: -2.389724383 | N128: 12.65192172 | O128: 0.02719452869 | P128: 42.90542403 | Q128: 50.36291911 | R128: 3.801327111 | T128: 0.3291096469 | W128: 0.2097636885 | AG128: 4.398229715 | AH128: -26.26056129 | AI128: -82.14162495 | AL128: -11.07045171 | AM128: -3.683866141
A129: 0 | B129: 122 | C129: 3.832743037 | D129: -6.913631201 | E129: 5.541026486 | F129: 2.076569654 | G129: -7.063966419 | H129: -1.274847979 | I129: -22.24928407 | J129: -6.913631201 | K129: 23.29868962 | L129: -1.541026486 | M129: 1.134337582 | N129: 12.95768992 | O129: 0.02546349757 | P129: 45.09499138 | Q129: 51.09813381 | R129: 3.832743037 | T129: 0.3107349962 | W129: 0.1995787054 | AG129: 4.440117617 | AH129: -24.38400692 | AI129: -82.70819011 | AL129: -11.17317361 | AM129: -4.143861157
A130: 0 | B130: 123 | C130: 3.864158964 | D130: -6.502221491 | E130: 5.500222139 | F130: 1.378721252 | G130: -7.274724325 | H130: -1.322623731 | I130: -22.1589424 | J130: -6.502221491 | K130: 23.09323738 | L130: -1.500222139 | M130: 4.606615188 | N130: 13.22741253 | O130: 0.02418577374 | P130: 46.80016538 | Q130: 51.83008373 | R130: 3.864158964 | S130: 3.860721701 | T130: 0.2934355519 | U130: 0.2953283098 | V130: 3.832743037 | W130: 0.1923070127 | AG130: 4.482005519 | AH130: -22.48537333 | AI130: -83.19567636 | AL130: -11.24966635 | AM130: -4.627420087
A131: 0 | B131: 124 | C131: 3.89557489 | D131: -6.082911097 | E131: 5.457937255 | F131: 0.6854134316 | G131: -7.472430304 | H131: -1.369094212 | I131: -21.96060132 | J131: -6.082911097 | K131: 22.78749258 | L131: -1.457937255 | M131: 8.006397936 | N131: 13.46059067 | O131: 0.02331251954 | P131: 47.92561825 | Q131: 52.55557918 | R131: 3.89557489 | T131: 0.2769920098 | W131: 0.1877910047 | AG131: 4.523893421 | AH131: -20.56799136 | AI131: -83.60322848 | AL131: -11.29731949 | AM131: -5.1325123
A132: 0 | B132: 125 | C132: 3.926990817 | D132: -5.656854249 | E132: 5.414213562 | F132: 1.956681135e-13 | G132: -7.656854249 | H132: -1.414213562 | I132: -21.65685425 | J132: -5.656854249 | K132: 22.38346122 | L132: -1.414213562 | M132: 11.3137085 | N132: 13.65685425 | O132: 0.02281711846 | P132: 48.38768137 | Q132: 53.27146937 | R132: 3.926990817 | T132: 0.261203875 | W132: 0.1859977528 | AG132: 4.565781323 | AH132: -18.63522474 | AI132: -83.93013149 | AL132: -11.3137085 | AM132: -5.656854249
A133: 0 | B133: 126 | C133: 3.958406744 | D133: -5.225214769 | E133: 5.369094212 | F133: -0.6742564299 | G133: -7.827802476 | H133: -1.457937255 | I133: -21.25090885 | J133: -5.225214769 | K133: 21.88387526 | L133: -1.369094212 | M133: 14.50944078 | N133: 13.81596285 | O133: 0.02269337417 | P133: 48.12171452 | Q133: 53.97466654 | R133: 3.958406744 | T133: 0.2458819435 | W133: 0.1870257552 | AG133: 4.607669225 | AH133: -16.69046421 | AI133: -84.17581188 | AL133: -11.29661824 | AM133: -6.19792757
A134: 0 | B134: 127 | C134: 3.98982267 | D134: -4.789161988 | E134: 5.322623731 | F134: -1.334203286 | G134: -7.98511796 | H134: -1.500222139 | I134: -20.74655763 | J134: -4.789161988 | K134: 21.29215175 | L134: -1.322623731 | M134: 17.57549008 | N134: 13.93780617 | O134: 0.0229558697 | P134: 47.08979141 | Q134: 54.66216876 | R134: 3.98982267 | T134: 0.2308412834 | W134: 0.1911242273 | AG134: 4.649557127 | AH134: -14.73712154 | AI134: -84.33983864 | AL134: -11.24406468 | AM134: -6.752999324
A135: 0 | B135: 128 | C135: 4.021238597 | D135: =alpha*(gama*COS(C135)-COS(beta*C135)) -> -4.34986666 | E135: =(alpha-beta*COS(C135)) -> 5.274847979 | F135: =beta*E135*COS(pol*C135) -> -1.976815897 | G135: =gama*E135*SIN(pol_2*C135) -> -8.128680444 | H135: =beta*SIN(C135) -> -1.541026486 | I135: =beta*H135*COS(pol*C135)-beta*E135*pol*SIN(pol*C135) -> -20.14814454 | J135: =gama*H135*SIN(pol_2*C135)+gama*E135*pol_2*COS(pol_2*C135) -> -4.34986666 | K135: 20.61235233 | L135: =beta*COS(C135) -> -1.274847979 | M135: =beta*(L135*COS(pol*C135)-2*pol*H135*SIN(pol*C135)-pol^2*E135*COS(pol*C135)) -> 20.49487433 | N135: =gama*(L135*SIN(pol_2*C135)+2*pol_2*H135*COS(pol_2*C135)-pol_2^2*E135*SIN(pol_2*C135)) -> 14.02240395 | O135: 0.02364265072 | P135: 45.28781127 | Q135: 55.33108143 | R135: 4.021238597 | T135: 0.2158941559 | U135: =IF(S135<>"",T134+(scurrent-Q134)*(T135-T134)/(Q135-Q134),"") ->  | V135: =IF(v0*($M$2-deltat)<Q135,IF(v0*($M$2-deltat)>Q134,R134,""),"") ->  | W135: =v0^2/P135 -> 0.1987289681 | AG135: 4.691445029 | AH135: -12.77862356 | AI135: -84.42192403 | AL135: =alpha*(3*COS($C135)-COS(3*$C135)) -> -11.1543146 | AM135: =4*alpha*(SIN($C135))^3 -> -7.319144217
A136: =IF(AND(REMAIN_S>Q136,REMAIN_S<Q137),1,0) -> 0 | B136: 129 | C136: =C135+dt -> 4.052654523 | D136: -3.908496881 | E136: 5.225814107 | F136: -2.599214241 | G136: -8.258406421 | H136: -1.580310025 | I136: -19.46052795 | J136: -3.908496881 | K136: 19.84914345 | L136: -1.225814107 | M136: 23.25184554 | N136: 14.06990539 | O136: 0.0248208347 | P136: 42.75088158 | Q136: =Q135+dt*K135 -> 55.97863758 | R136: 4.052654523 | T136: =J136/I136 -> 0.200842284 | W136: 0.2105219745 | AG136: 4.733332931 | AH136: -10.81840613 | AI136: -84.42192403 | AL136: -11.02590315 | AM136: -7.893268586
A137: 0 | B137: =B136+1 -> 130 | C137: 4.08407045 | D137: -3.466214041 | E137: 5.175570505 | F137: -3.198678483 | G137: -8.374248988 | H137: -1.618033989 | I137: -18.68904022 | J137: -3.466214041 | K137: =SQRT(I137^2+J137^2) -> 19.00775799 | L137: -1.175570505 | M137: 25.83199061 | N137: 14.08058809 | O137: =(N137*I137-M137*J137)/I137^3 -> 0.02659637317 | P137: 39.55571766 | Q137: 56.60221681 | R137: 4.08407045 | T137: 0.1854677394 | W137: 0.2275271575 | AG137: 4.775220833 | AH137: -8.859908146 | AI137: -84.33983864 | AL137: -10.85764909 | AM137: -8.472135955
A138: 0 | B138: 131 | C138: 4.115486376 | D138: -3.024168812 | E138: 5.124166756 | F138: -3.77266319 | G138: -8.476197566 | H138: -1.654161149 | I138: -17.83944437 | J138: -3.024168812 | K138: 18.09395956 | L138: -1.124166756 | M138: 28.22232065 | N138: 14.05485648 | O138: 0.02913021302 | P138: =IF(I138<>0,(1+(J138/I138)^2)^1.5/ABS(O138),"") -> 35.81897998 | Q138: 57.19936314 | R138: =C138 -> 4.115486376 | S138: =IF(scurrent>Q137,(IF(scurrent<Q138,(scurrent-Q137)*(R138-R137)/(Q138-Q137)+R137,"")),"") ->  | T138: 0.1695214688 | W138: 0.2512634364 | AG138: =AG137+2*PI()/150 -> 4.817108736 | AH138: -6.906565476 | AI138: -84.17581188 | AL138: -10.64866758 | AM138: -9.052393926
A139: 0 | B139: 132 | C139: 4.146902303 | D139: -2.583497194 | E139: 5.07165359 | F139: -4.318810145 | G139: -8.564277509 | H139: -1.688655851 | I139: -16.91788809 | J139: -2.583497194 | K139: 17.11401166 | L139: -1.07165359 | M139: 30.41134836 | N139: 13.99323982 | O139: 0.03266490251 | P139: 31.69097939 | Q139: 57.76780165 | R139: 4.146902303 | T139: 0.15270802 | W139: 0.2839924853 | AG139: 4.858996638 | AH139: -4.961804948 | AI139: -83.93013149 | AL139: -10.39838035 | AM139: -9.630602172
A140: 0 | B140: 133 | C140: 4.178318229 | D140: -2.14531663 | E140: 5.018082832 | F140: -4.834959682 | G140: -8.638549576 | H140: -1.721484054 | I140: -15.93085549 | J140: -2.14531663 | K140: 16.07465521 | L140: -1.018082832 | M140: 32.38915283 | N140: 13.89638966 | O140: 0.03756904455 | P140: 27.34497649 | Q140: 58.30545418 | R140: 4.178318229 | T140: 0.1346642452 | W140: 0.3291280942 | AG140: 4.90088454 | AH140: -3.029038333 | AI140: -83.60322848 | AL140: -10.10652323 | AM140: -10.20326129
A141: 0 | B141: 134 | C141: 4.209734156 | D141: -1.710722213 | E141: 4.963507348 | F141: -5.319160468 | G141: -8.699109291 | H141: -1.75261336 | I141: -14.88511705 | J141: -1.710722213 | K141: 14.98309982 | L141: -0.9635073482 | M141: 34.1474312 | N141: 13.76507684 | O141: 0.04441356879 | P141: 22.9632093 | Q141: 58.81045437 | R141: 4.209734156 | T141: 0.1149283682 | W141: 0.3919312794 | AG141: 4.942772442 | AH141: -1.111656358 | AI141: -83.19567636 | AL141: -9.773151003 | AM141: -10.76684224
A142: 0 | B142: 135 | C142: 4.241150082 | D142: -1.280782989 | E142: 4.907980999 | F142: -5.7696777 | G142: -8.746086182 | H142: -1.782013048 | I142: -13.78767817 | J142: -1.280782989 | K142: 13.84703847 | L142: -0.9079809995 | M142: 35.6795372 | N142: 13.60018815 | O142: 0.05410728185 | P142: 18.72153983 | Q142: 59.28116233 | R142: 4.241150082 | T142: 0.09289330467 | W142: 0.4807296879 | AG142: 4.984660344 | AH142: 0.7869772344 | AI142: -82.70819011 | AL142: -9.398639359 | AM142: -11.31781615
A143: 0 | B143: 136 | C143: 4.272566009 | D143: -0.8565383735 | E143: 4.851558583 | F143: -6.184999657 | G143: -8.779642905 | H143: -1.809654105 | I143: -12.64572667 | J143: -0.8565383735 | K143: 12.67470161 | L143: -0.8515585831 | M143: 36.98050599 | N143: 13.40272236 | O143: 0.06814837094 | P143: 14.77496231 | Q143: 59.71617987 | R143: 4.272566009 | T143: 0.06773342459 | W143: 0.6091386096 | AG143: 5.026548246 | AH143: 2.663531598 | AI143: -82.14162495 | AL143: -8.983684143 | AM143: -11.85268418
A144: 0 | B144: 137 | C144: 4.303981935 | D144: -0.4389947014 | E144: 4.794295781 | F144: -6.563842604 | G144: -8.79997426 | H144: -1.835509251 | I144: -11.46657977 | J144: -0.4389947014 | K144: 11.47498008 | L144: -0.7942957813 | M144: 38.04706545 | N144: 13.17378602 | O144: 0.08911580936 | P144: 11.24603357 | Q144: 60.11436737 | R144: 4.303981935 | T144: 0.03828471176 | W144: 0.8002821564 | AG144: 5.068436148 | AH144: 4.514714617 | AI144: -81.49697482 | AL144: -8.529297763 | AM144: -12.36800719
A145: 0 | B145: 138 | C145: 4.335397862 | D145: -0.02912191179 | E145: 4.736249105 | F145: -6.905154019 | G145: -8.807306099 | H145: -1.859552972 | I145: -10.25763092 | J145: -0.02912191179 | K145: 10.25767226 | L145: -0.7362491054 | M145: 38.87763392 | N145: 12.91458873 | O145: 0.1216910845 | P145: 8.217628225 | Q145: 60.4748645 | R145: 4.335397862 | T145: 0.002839048512 | W145: 1.095206519 | AG145: 5.11032405 | AH145: 6.337278689 | AI145: -80.77537065 | AL145: -8.036802842 | AM145: -12.860435
A146: 0 | B146: 139 | C146: 4.366813788 | D146: 0.3721496091 | E146: 4.67747584 | F146: -7.208114156 | G146: -8.801894131 | H146: -1.881761538 | I146: -9.026296879 | J146: 0.3721496091 | K146: 9.033965391 | L146: -0.6774758405 | M146: 39.47230441 | N146: 12.62643807 | O146: 0.1749497365 | P146: 5.730508142 | Q146: 60.79711878 | R146: 4.366813788 | T146: -0.04122948914 | W146: 1.570541351 | AG146: 5.152211952 | AH146: 8.128026416 | AI146: -79.9780784 | AL146: -7.507823151 | AM146: -13.32673489
A147: 0 | B147: 140 | C147: 4.398229715 | D147: 0.7639320225 | E147: 4.618033989 | F147: -7.472135955 | G147: -8.784022635 | H147: -1.902113033 | I147: -7.779965556 | J147: 0.7639320225 | K147: 7.81738167 | L147: -0.6180339887 | M147: 39.83281573 | N147: 12.31073415 | O147: 0.2680089025 | P147: 3.785312209 | Q147: 61.08092917 | R147: 4.398229715 | T147: -0.0981922114 | W147: 2.377611014 | AG147: 5.194099854 | AH147: 9.883816219 | AI147: -79.10649677 | AL147: -6.94427191 | AM147: -13.7638192
A148: 0 | B148: 141 | C148: 4.429645642 | D148: 1.145382854 | E148: 4.557982212 | F148: -7.696863331 | G148: -8.754003075 | H148: -1.920587371 | I148: -6.525944899 | J148: 1.145382854 | K148: 6.625696847 | L148: -0.5579822121 | M148: 39.96251066 | N148: 11.96896385 | O148: 0.4457333212 | P148: 2.347952867 | Q148: 61.32651946 | R148: 4.429645642 | T148: -0.1755121858 | W148: 3.833126349 | AG148: 5.235987756 | AH148: 11.60156785 | AI148: -78.16215482 | AL148: -6.348337551 | AM148: -14.16877169
A149: 0 | B149: 142 | C149: 4.461061568 | D149: 1.515707623 | E149: 4.497379774 | F149: -7.882167878 | G149: -8.712172637 | H149: -1.937166322 | I149: -5.271413343 | J149: 1.515707623 | K149: 5.484994825 | L149: -0.4973797743 | M149: 39.86628189 | N149: 11.60269468 | O149: 0.8300615762 | P149: 1.357179032 | Q149: 61.53467186 | R149: 4.461061568 | T149: -0.287533442 | W149: 6.631402188 | AG149: 5.277875658 | AH149: 13.27826778 | AI149: -77.14670925 | AL149: -5.72246707 | AM149: -14.53887244
A150: 0 | B150: 143 | C150: 4.492477495 | D150: 1.874162279 | E150: 4.436286483 | F150: -8.028144044 | G150: -8.658892679 | H150: -1.951833524 | I150: -4.023372115 | J150: 1.874162279 | K150: 4.43846904 | L150: -0.4362864828 | M150: 39.55050616 | N150: 11.21356843 | O150: 1.830850621 | P150: 0.7332905164 | Q150: 61.70698806 | R150: 4.492477495 | T150: -0.4658187772 | W150: 12.27344388 | AG150: 5.31976356 | AH150: 14.91097451 | AI150: -76.06194149 | AL150: -5.069347111 | AM150: -14.87162119
A151: 0 | B151: 144 | C151: 4.523893421 | D151: 2.220055427 | E151: 4.374762629 | F151: -8.135102848 | G151: -8.594547111 | H151: -1.964574501 | I151: -2.788599791 | J151: 2.220055427 | K151: 3.564398251 | L151: -0.3747626292 | M151: 39.02296723 | N151: 10.80329443 | O151: 5.384341461 | P151: 0.3878533084 | Q151: 61.84642668 | R151: 4.523893421 | T151: -0.7961183364 | W151: 23.2046493 | AG151: 5.361651462 | AH151: =rx+ABS(Rcurrenta)*COS(AG151) -> 16.49682372 | AI151: =IF(ABS(Rcurrenta)<500,ry+ABS(Rcurrenta)*SIN(AG151),currenty+currentdy_dx*(AH151-current_x)) -> -74.90975459 | AL151: -4.391882955 | AM151: -15.16475871
A152: 0 | B152: 145 | C152: 4.555309348 | D152: 2.552750345 | E152: 4.31286893 | F152: -8.2035642 | G152: -8.519540714 | H152: -1.975376681 | I152: -1.573609446 | J152: 2.552750345 | K152: 2.998796594 | L152: -0.3128689301 | M152: 38.29276859 | N152: 10.37364268 | O152: 29.27542413 | P152: 0.2363997263 | Q152: 61.95840555 | R152: 4.555309348 | T152: -1.622226119 | W152: 38.07111007 | AG152: 5.403539364 | AH152: 18.03303329 | AI152: -73.69216989 | AL152: -3.693175579 | AM152: -15.41628618
A153: 0 | B153: 146 | C153: 4.586725274 | D153: 2.871666776 | E153: 4.250666467 | F153: -8.234247927 | G153: -8.434297385 | H153: -1.984229403 | I153: -0.3846086819 | J153: 2.871666776 | K153: 2.897308046 | L153: -0.2506664671 | M153: 37.37023664 | N153: 9.926436708 | O153: 1953.369767 | P153: 0.2188478604 | Q153: 62.05261552 | R153: 4.586725274 | T153: -7.466463735 | W153: 41.12445963 | AG153: 5.445427266 | AH153: 19.51690819 | AI153: -72.41132343 | AL153: -2.976497014 | AM153: -15.62448236
A154: 0 | B154: 147 | C154: 4.618141201 | D154: 3.176282496 | E154: 4.188216627 | F154: -8.228063591 | G154: -8.339258346 | H154: -1.991123929 | I154: 0.7725371515 | J154: 3.176282496 | K154: 3.268881177 | L154: -0.1882166266 | M154: 36.26681531 | N154: 9.463546234 | O154: -233.9880747 | P154: 0.3237766738 | Q154: 62.14363714 | R154: 4.618141201 | T154: 4.11149482 | W154: 27.7969376 | AG154: =AG153+2*PI()/150 -> 5.487315168 | AH154: 20.9458452 | AI154: -71.06946227 | AL154: -2.245264184 | AM154: -15.78791832
A155: 0 | B155: 148 | C155: 4.649557127 | D155: 3.466134649 | E155: 4.125581039 | F155: -8.186099201 | G155: -8.234880295 | H155: -1.996053457 | I155: 1.89233831 | J155: 3.466134649 | K155: 3.949054784 | L155: -0.1255810391 | M155: 34.99495307 | N155: 8.986879696 | O155: -15.39042091 | P155: 0.5905173106 | Q155: 62.24633207 | R155: 4.649557127 | T155: 1.831667535 | W155: 15.24087413 | AG155: 5.52920307 | AH155: 22.31733748 | AI155: -69.66894047 | AL155: -1.503011493 | AM155: -15.90546974
A156: 0 | B156: 149 | C156: 4.680973054 | D156: 3.740820841 | E156: 4.062821518 | F156: -8.109608936 | G156: -8.121633522 | H156: -1.999013121 | I156: 2.969710354 | J156: 3.740820841 | K156: 4.776287277 | L156: -0.06282151816 | M156: 33.56798343 | N156: 8.498376639 | O156: -3.830948006 | P156: 1.085982391 | Q156: 62.37039529 | R156: 4.680973054 | T156: 1.259658483 | W156: 8.287427195 | AG156: 5.571090972 | AH156: 23.62897895 | AI156: -68.21221503 | AL156: -0.7533623622 | AM156: -15.97632658
A157: 0 | B157: 150 | C157: 4.71238898 | D157: 4 | E157: 4 | F157: -8 | G157: -8 | H157: -2 | I157: 4 | J157: 4 | K157: 5.656854249 | L157: -2.701289713e-14 | M157: 32 | N157: 8 | O157: -1.5 | P157: 1.885618083 | Q157: 62.52044678 | R157: 4.71238898 | T157: 1 | W157: 4.772970773 | AG157: 5.612978874 | AH157: 24.87846857 | AI157: -66.70184154 | AL157: -3.277074792e-13 | AM157: -16
A158: 0 | B158: 151 | C158: 4.743804907 | D158: 4.243392986 | E158: 3.937178482 | F158: -7.858818719 | G158: -7.870471444 | H158: -1.999013121 | I158: 4.979006979 | J158: 4.243392986 | K158: 6.541933547 | L158: 0.06282151816 | M158: 30.30572719 | N158: 7.493728327 | O158: -0.7395788147 | P158: 3.06694309 | Q158: 62.69816209 | R158: 4.743804907 | T158: 0.8522568866 | W158: 2.934518097 | AG158: 5.654866776 | AH158: 26.06361429 | AI158: -65.14046972 | AL158: 0.7533623622 | AM158: -15.97632658
A159: 0 | B159: 152 | C159: 4.775220833 | D159: 4.470782961 | E159: 3.874418961 | F159: -7.68773602 | G159: -7.73354736 | H159: -1.996053457 | I159: 5.903001785 | J159: 4.470782961 | K159: 7.404953096 | L159: 0.1255810391 | M159: 28.50038782 | N159: 6.981547959 | O159: -0.41910571 | P159: 4.710040209 | Q159: 62.903683 | R159: 4.775220833 | T159: 0.7573744892 | W159: 1.910811713 | AG159: 5.696754679 | AH159: 27.18233697 | AI159: -63.53083872 | AL159: 1.503011493 | AM159: -15.90546974
A160: 0 | B160: 153 | C160: 4.80663676 | D160: 4.682015509 | E160: 3.811783373 | F160: -7.48853242 | G160: -7.589733088 | H160: -1.991123929 | I160: 6.768739218 | J160: 4.682015509 | K160: 8.23025515 | L160: 0.1882166266 | M160: 26.59956874 | N160: 6.4654452 | O160: -0.2604729673 | P160: 6.901665289 | Q160: 63.13631646 | R160: 4.80663676 | T160: 0.6917116111 | W160: 1.304033103 | AG160: 5.738642581 | AH160: 28.23267399 | AI160: -61.87577241 | AL160: 2.245264184 | AM160: -15.78791832
A161: 0 | B161: 154 | C161: 4.838052687 | D161: 4.876998513 | E161: 3.749333533 | F161: -7.263082651 | G161: -7.439537836 | H161: -1.984229403 | I161: 7.573467707 | J161: 4.876998513 | K161: 9.00791472 | L161: 0.2506664671 | M161: 24.61908567 | N161: 5.947398513 | O161: -0.1727112357 | P161: 9.742442978 | Q161: 63.39487755 | R161: 4.838052687 | T161: 0.6439584483 | W161: 0.9237929357 | AG161: 5.780530483 | AH161: 29.21278271 | AI161: -60.17817432 | AL161: 2.976497014 | AM161: -15.62448236
A162: 0 | B162: 155 | C162: 4.869468613 | D162: 5.055701786 | E162: 3.68713107 | F162: -7.013340061 | G162: -7.283472736 | H162: -1.975376681 | I162: 8.314934374 | J162: 5.055701786 | K162: 9.7313028 | L162: 0.3128689301 | M162: 22.57484846 | N162: 5.42937077 | O162: -0.1200023565 | P162: 13.35816202 | Q162: 63.67786954 | R162: 4.869468613 | T162: 0.6080266612 | W162: 0.673745384 | AG162: 5.822418385 | AH162: 30.12094367 | AI162: -58.44102262 | AL162: 3.693175579 | AM162: -15.41628618
A163: 0 | B163: 156 | C163: 4.90088454 | D163: 5.21815646 | E163: 3.625237371 | F163: -6.741320926 | G163: -7.1220489 | H163: -1.964574501 | I163: 8.991385895 | J163: 5.21815646 | K163: 10.39587308 | L163: 0.3747626292 | M163: 20.48272787 | N163: 4.913301584 | O163: -0.08626211476 | P163: 17.91772612 | Q163: 63.98358743 | R163: 4.90088454 | T163: 0.5803506291 | W163: 0.5022958796 | AG163: 5.864306287 | AH163: 30.95556366 | AI163: -56.66736486 | AL163: 4.391882955 | AM163: -15.16475871
A164: 0 | B164: 157 | C164: 4.932300466 | D164: 5.364454141 | E164: 3.563713517 | F164: -6.449088795 | G164: -6.955775512 | H164: -1.951833524 | I164: 9.601565215 | J164: 5.364454141 | K164: 10.99851912 | L164: 0.4362864828 | M164: 18.3584252 | N164: 4.401099763 | O164: -0.06351950308 | P164: 23.6629803 | Q164: 64.31018342 | R164: 4.932300466 | T164: 0.5587062131 | W164: 0.3803409327 | AG164: 5.906194189 | AH164: 31.71517846 | AI164: -54.86031265 | AL164: 5.069347111 | AM164: -14.87162119
A165: 0 | B165: 158 | C165: 4.963716393 | D165: 5.494745817 | E165: 3.502620226 | F165: -6.138739003 | G165: -6.785157941 | H165: -1.937166322 | I165: 10.14470423 | J165: 5.494745817 | K165: 11.53721177 | L165: 0.4973797743 | M165: 16.21734563 | N165: 3.894635896 | O165: -0.04750789731 | P165: 30.96125922 | Q165: 64.65571209 | R165: 4.963716393 | T165: 0.5416368673 | W165: 0.2906858515 | AG165: 5.948082091 | AH165: 32.39845546 | AI165: -53.02303616 | AL165: 5.72246707 | AM165: -14.53887244
A166: 0 | B166: 159 | C166: 4.995132319 | D166: 5.60924055 | E166: 3.442017788 | F166: -5.812383477 | G166: -6.610695895 | H166: -1.920587371 | I166: 10.62051254 | J166: 5.60924055 | K166: 12.01078125 | L166: 0.5579822121 | M166: 14.07447657 | N166: 3.395735126 | O166: -0.03579690368 | P166: 40.40469942 | Q166: 65.01816428 | R166: 4.995132319 | T166: 0.5281515868 | W166: 0.2227463668 | AG166: 5.989969993 | AH166: 33.00419596 | AI166: -51.1587586 | AL166: 6.348337551 | AM166: -14.16877169
A167: 0 | B167: 160 | C167: 5.026548246 | D167: 5.708203932 | E167: 3.381966011 | F167: -5.472135955 | G167: -6.432881626 | H167: -1.902113033 | I167: 11.02916252 | J167: 5.708203932 | K167: 12.41877683 | L167: 0.6180339887 | M167: 11.94427191 | N167: 2.906170112 | O167: -0.02692854663 | P167: 53.01465566 | Q167: 65.3954941 | R167: 5.026548246 | T167: 0.5175555191 | W167: 0.1697643772 | AG167: 6.031857895 | AH167: 33.53133728 | AI167: -49.27075055 | AL167: 6.94427191 | AM167: -13.7638192
A168: 0 | B168: 161 | C168: 5.057964172 | D168: 5.791956333 | E168: 3.32252416 | F168: -5.120097729 | G168: -6.252198172 | H168: -1.881761538 | I168: 11.37127079 | J168: 5.791956333 | K168: 12.76136974 | L168: 0.6774758405 | M168: 9.840543123 | N168: 2.427654234 | O168: -0.01998847718 | P168: 70.71070401 | Q168: 65.78564148 | R168: 5.057964172 | T168: 0.5093499609 | W168: 0.127279174 | AG168: 6.073745797 | AH168: 33.97895464 | AI168: -47.36232422 | AL168: 7.507823151 | AM168: -13.32673489
A169: 0 | B169: 162 | C169: 5.089380099 | D169: 5.860870931 | E169: 3.263750895 | F169: -4.75834402 | G169: -6.069117675 | H169: -1.859552972 | I169: 11.64787647 | J169: 5.860870931 | K169: 13.03928044 | L169: 0.7362491054 | M169: 7.776358238 | N169: 1.96183504 | O169: -0.01438016935 | P169: 97.55658931 | Q169: 66.18655174 | R169: 5.089380099 | T169: 0.5031707664 | W169: 0.0922541477 | AG169: 6.115633699 | AH169: 34.34626275 | AI169: -45.43682763 | AL169: 8.036802842 | AM169: -12.860435
A170: 0 | B170: 163 | C170: 5.120796025 | D170: 5.915371549 | E170: 3.205704219 | F170: -4.388911091 | G170: -5.884099751 | H170: -1.835509251 | I170: 11.86041631 | J170: 5.915371549 | K170: 13.25372007 | L170: 0.7942957813 | M170: 5.76394933 | N170: 1.510287986 | O170: -0.00969987522 | P170: 143.8624437 | Q170: 66.59619282 | R170: 5.120796025 | T170: 0.4987490654 | W170: 0.06255976034 | AG170: 6.157521601 | AH170: 34.63261725 | AI170: -43.49763876 | AL170: 8.529297763 | AM170: -12.36800719
A171: 0 | B171: 164 | C171: 5.152211952 | D171: 5.955930292 | E171: 3.148441417 | F171: -4.013784179 | G171: -5.697589934 | H171: -1.809654105 | I171: 12.0106971 | J171: 5.955930292 | K171: 13.40633994 | L171: 0.8515585831 | M171: 3.814629355 | N171: 1.074510478 | O171: -0.005664263833 | P171: 245.5175628 | Q171: 67.01257071 | R171: 5.152211952 | T171: 0.4958854795 | W171: 0.03665725538 | AG171: 6.199409503 | AH171: 34.83751577 | AI171: -41.54815961 | AL171: 8.983684143 | AM171: -11.85268418
A172: 0 | B172: 165 | C172: 5.183627878 | D172: 5.983065007 | E172: 3.092019001 | F172: -3.634886337 | G172: -5.510018205 | H172: -1.782013048 | I172: 12.10086565 | J172: 5.983065007 | K172: 13.49918577 | L172: 0.9079809995 | M172: 1.938718942 | N172: 0.6559162385 | O172: -0.002066844589 | P172: 671.6848945 | Q172: 67.4337433 | R172: 5.183627878 | T172: 0.49443281 | W172: 0.01339914009 | AG172: 6.241297405 | AH172: 34.96059884 | AI172: -39.59181022 | AL172: 9.398639359 | AM172: -11.31781615
A173: 0 | B173: 166 | C173: 5.215043805 | D173: 5.997336573 | E173: 3.036492652 | F173: -3.254068251 | G173: -5.321797589 | H173: -1.75261336 | I173: 12.13337657 | J173: 5.997336573 | K173: 13.53465451 | L173: 0.9635073482 | M173: 0.1454836758 | N173: 0.2558300363 | O173: 0.001249295046 | P173: 1111.044558 | Q173: 67.85783273 | R173: 5.215043805 | T173: 0.4942842201 | W173: 0.008100485201 | AG173: 6.283185307 | AH173: 35.00165054 | AI173: -37.6320227 | AL173: 9.773151003 | AM173: -10.76684224
A174: 0 | B174: 167 | C174: 5.246459731 | D174: 5.999346022 | E174: 2.981917168 | F174: -2.873099104 | G174: -5.133322856 | H174: -1.721484054 | I174: 12.11095827 | J174: 5.999346022 | K174: 13.51545275 | L174: 1.018082832 | M174: -1.556917684 | N174: -0.1245172243 | O174: 0.00440923189 | P174: 315.2051701 | Q174: 68.28303644 | R174: 5.246459731 | T174: 0.4953650973 | W174: 0.02855283115 | AL174: 10.10652323 | AM174: -10.20326129
A175: 0 | B175: 168 | C175: 5.277875658 | D175: 5.989731526 | E175: 2.92834641 | F175: -2.49365852 | G175: -4.944969299 | H175: -1.688655851 | I175: 12.03657759 | J175: 5.989731526 | K175: 13.44455592 | L175: 1.07165359 | M175: -3.161473704 | N175: -0.4839930157 | O175: 0.007518284969 | P175: 185.358089 | Q175: 68.70763691 | R175: 5.277875658 | T175: 0.4976274595 | W175: 0.04855466546 | AL175: 10.39838035 | AM175: -9.630602172
A176: 0 | B176: 169 | C176: 5.309291585 | D176: 5.969165234 | E176: 2.875833244 | F176: -2.117329653 | G176: -4.757091622 | H176: -1.654161149 | I176: 11.91340318 | J176: 5.969165234 | K176: 13.32516825 | L176: 1.124166756 | M176: -4.662349273 | N176: -0.8215672929 | O176: 0.01067070973 | P176: 131.1345949 | Q176: 69.13001009 | R176: 5.309291585 | T176: 0.5010461868 | W176: 0.06863177492 | AL176: 10.64866758 | AM176: -9.052393926
A177: 0 | B177: 170 | C177: 5.340707511 | D177: 5.938349996 | E177: 2.824429495 | F177: -1.745593427 | G177: -4.570022922 | H177: -1.618033989 | I177: 11.74476831 | J177: 5.938349996 | K177: 13.16068324 | L177: 1.175570505 | M177: -6.054902969 | N177: -1.136316175 | O177: 0.01395642449 | P177: 100.8156089 | Q177: 69.5486326 | R177: 5.340707511 | T177: 0.5056166151 | W177: 0.08927189055 | AL177: 10.85764909 | AM177: -8.472135955
A178: 0 | B178: 171 | C178: 5.372123438 | D178: 5.898015978 | E178: 2.774185893 | F178: -1.379823953 | G178: -4.384073777 | H178: -1.580310025 | I178: 11.53413321 | J178: 5.898015978 | K178: 12.95464478 | L178: 1.225814107 | M178: -7.335692766 | N178: -1.42742519 | O178: 0.01746670687 | P178: 81.11676207 | Q178: 69.96208766 | R178: 5.372123438 | T178: 0.5113532045 | W178: 0.1109511742 | AL178: 11.02590315 | AM178: -7.893268586
A179: 0 | B179: 172 | C179: 5.403539364 | D179: 5.848917176 | E179: 2.725152021 | F179: -1.021285136 | G179: -4.199531441 | H179: -1.541026486 | I179: 11.28504748 | J179: 5.848917176 | K179: 12.71070922 | L179: 1.274847979 | M179: -8.502470195 | N179: -1.694192064 | O179: 0.0212995422 | P179: 67.08553835 | Q179: 70.36906983 | R179: 5.403539364 | T179: 0.5182891065 | W179: 0.134157081 | AL179: 11.1543146 | AM179: -7.319144217
A180: 0 | B180: 173 | C180: 5.434955291 | D180: 5.791827857 | E180: 2.677376269 | F180: -0.6711284506 | G180: -4.016659154 | H180: -1.500222139 | I180: 11.00111281 | J180: 5.791827857 | K180: 12.43260846 | L180: 1.322623731 | M180: -9.554163132 | N180: -1.936029053 | O180: 0.02556518858 | P180: 56.45831522 | Q180: 70.76838853 | R180: 5.434955291 | T180: 0.5264765442 | W180: 0.1594096452 | AL180: 11.24406468 | AM180: -6.752999324
A181: 0 | B181: 174 | C181: 5.466371217 | D181: 5.727538926 | E181: 2.630905788 | F181: -0.3303918825 | G181: -3.835695563 | H181: -1.457937255 | I181: 10.68594646 | J181: 5.727538926 | K181: 12.12411456 | L181: 1.369094212 | M181: -10.49084753 | N181: -2.152464808 | O181: 0.03039250458 | P181: 48.05566834 | Q181: 71.15897045 | R181: 5.466371217 | T181: 0.5359879863 | W181: 0.1872827975 | AL181: 11.29661824 | AM181: -6.19792757
A182: 0 | B182: 175 | C182: 5.497787144 | D182: 5.656854249 | E182: 2.585786438 | F182: -1.859487575e-13 | G182: -3.656854249 | H182: -1.414213562 | I182: 10.34314575 | J182: 5.656854249 | K182: 11.78900607 | L182: 1.414213562 | M182: -11.3137085 | N182: -2.343145751 | O182: 0.03593665199 | P182: 41.20368191 | Q182: 71.53986074 | R182: 5.497787144 | T182: 0.5469181607 | W182: 0.2184270818 | AL182: 11.3137085 | AM182: -5.656854249
A183: 0 | B183: 176 | C183: 5.52920307 | D183: 5.580586941 | E183: 2.542062745 | F183: 0.3192348809 | G183: -3.480323391 | H183: -1.369094212 | I183: 9.976253986 | J183: 5.580586941 | K183: 11.43103645 | L183: 1.457937255 | M183: -12.02499119 | N183: -2.50783698 | O183: 0.04238894415 | P183: 35.48965169 | Q183: 71.91022329 | R183: 5.52920307 | T183: 0.5593870153 | W183: 0.2535950501 | AL183: 11.29731949 | AM183: -5.1325123
A184: 0 | B184: 177 | C184: 5.560618997 | D184: 5.499555623 | E184: 2.499777861 | F184: 0.626610485 | G184: -3.30626552 | H184: -1.322623731 | I184: 9.588728045 | J184: 5.499555623 | K184: 11.05390508 | L184: 1.500222139 | M184: -12.62794214 | N184: -2.646422688 | O184: 0.0499898861 | P184: 30.64658179 | Q184: 72.26933989 | R184: 5.560618997 | T184: 0.5735438107 | W184: 0.293670598 | AL184: 11.24966635 | AM184: -4.627420087
A185: 0 | B185: 178 | C185: 5.592034923 | D185: 5.414580684 | E185: 2.458973514 | F185: 0.9215313793 | G185: -3.134817417 | H185: -1.274847979 | I185: 9.183907952 | J185: 5.414580684 | K185: 10.66123113 | L185: 1.541026486 | M185: -13.12674172 | N185: -2.758906088 | O185: 0.05904689929 | P185: 26.49368773 | Q185: 72.61660856 | R185: 5.592034923 | T185: 0.5895726212 | W185: 0.3397035586 | AL185: 11.17317361 | AM185: -4.143861157
A186: 0 | B186: 179 | C186: 5.62345085 | D186: 5.32648055 | E186: 2.419689975 | F186: 1.203504854 | G186: -2.966090107 | H186: -1.225814107 | I186: 8.764988717 | J186: 5.32648055 | K186: 10.25653071 | L186: 1.580310025 | M186: -13.5264284 | N186: -2.84540886 | O186: 0.06995893265 | P186: 22.90362348 | Q186: 72.95154101 | R186: 5.62345085 | T186: 0.6076996471 | W186: 0.3929509236 | AL186: 11.07045171 | AM186: -3.683866141
A187: 0 | B187: 180 | C187: 5.654866776 | D187: 5.236067977 | E187: 2.381966011 | F187: 1.472135955 | G187: -2.800168986 | H187: -1.175570505 | I187: 8.334994658 | J187: 5.236067977 | K187: 9.843197845 | L187: 1.618033989 | M187: -13.83281573 | N187: -2.906170112 | O187: 0.08325129253 | P187: 19.7834341 | Q187: 73.27375943 | R187: 5.654866776 | T187: 0.6282029194 | W187: 0.4549260737 | AL187: 10.94427191 | AM187: -3.249196962
A188: 0 | B188: 181 | C188: 5.686282703 | D188: 5.144146383 | E188: 2.345838851 | F188: 1.727121756 | G188: -2.637114051 | H188: -1.124166756 | I188: 7.896756447 | J188: 5.144146383 | K188: 9.424489609 | L188: 1.654161149 | M188: -14.05240288 | N188: -2.941544864 | O188: 0.09962585331 | P188: 17.06299387 | Q188: 73.58299261 | R188: 5.686282703 | T188: 0.6514252298 | W188: 0.5274572603 | AL188: 10.79753986 | AM188: -2.841333486
A189: 0 | B189: 182 | C189: 5.71769863 | D189: 5.051506238 | E189: 2.311344149 | F189: 1.968244949 | G189: -2.476960255 | H189: -1.07165359 | I189: 7.452891042 | J189: 5.051506238 | K189: 9.003515988 | L189: 1.688655851 | M189: -14.19227968 | N189: -2.95200206 | O189: 0.1200348248 | P189: 14.68773544 | Q189: 73.87907168 | R189: 5.71769863 | T189: 0.6777915053 | W189: 0.6127561351 | AL189: 10.63326804 | AM189: -2.461462734
A190: 0 | B190: 183 | C190: 5.749114556 | D190: 4.95892152 | E190: 2.278515946 | F190: 2.195366857 | G190: -2.319717966 | H190: -1.018082832 | I190: 7.005784687 | J190: 4.95892152 | K190: 8.583234922 | L190: 1.721484054 | M190: -14.26002718 | N190: -2.938122114 | O190: 0.1457913374 | P190: 12.61394463 | Q190: 74.16192548 | R190: 5.749114556 | T190: 0.7078324187 | W190: 0.7134960761 | AL190: 10.45454736 | AM190: -2.110470748
A191: 0 | B191: 184 | C191: 5.780530483 | D191: 4.86714626 | E191: 2.24738664 | F191: 2.408419961 | G191: -2.165373542 | H191: -0.9635073482 | I191: 6.557579089 | J191: 4.86714626 | K191: 8.1664531 | L191: 1.75261336 | M191: -14.26361473 | N191: -2.900594011 | O191: 0.1787389047 | P191: 10.80564543 | Q191: 74.43157576 | R191: 5.780530483 | T191: 0.7422169362 | W191: 0.8328979568 | AL191: 10.26451808 | AM191: -1.788937176
A192: 0 | B192: 185 | C192: 5.811946409 | D192: 4.776911184 | E192: 2.217986952 | F192: 2.60740004 | G192: -2.013890009 | H192: -0.9079809995 | I192: 6.110160867 | J192: 4.776911184 | K192: 7.755833049 | L192: 1.782013048 | M192: -14.21129465 | N192: -2.840211957 | O192: 0.2215175004 | P192: 9.232501362 | Q192: 74.68813245 | R192: 5.811946409 | T192: 0.7817979409 | W192: 0.974817078 | AL192: 10.06634043 | AM192: -1.497132634
A193: 0 | B193: 186 | C193: 5.843362336 | D193: 4.688920461 | E193: 2.190345895 | F193: 2.792358039 | G193: -1.865207847 | H193: -0.8515585831 | I193: 5.665154335 | J193: 4.688920461 | K193: 7.353907038 | L193: 1.809654105 | M193: -14.1114956 | N193: -2.75787161 | O193: 0.2779928439 | P193: 7.868384118 | Q193: 74.93178913 | R193: 5.843362336 | T193: 0.8276774442 | W193: 1.143818078 | AL193: 9.863165081 | AM193: -1.235018854
A194: 0 | B194: 187 | C194: 5.874778262 | D194: 4.603848582 | E194: 2.164490749 | F194: 2.963391756 | G194: -1.71924587 | H194: -0.7942957813 | I194: 5.223917644 | J194: 4.603848582 | K194: 6.963098255 | L194: 1.835509251 | M194: -13.97271557 | N194: -2.654565894 | O194: 0.353970585 | P194: 6.690389962 | Q194: 75.16281893 | R194: 5.874778262 | T194: 0.8813019071 | W194: 1.345213067 | AL194: 9.658103827 | AM194: -1.002251612
A195: 0 | B195: 188 | C195: 5.906194189 | D195: 4.522337377 | E195: 2.140447028 | F195: 3.120637464 | G195: -1.57590221 | H195: -0.7362491054 | I195: 4.787542275 | J195: 4.522337377 | K195: 6.585749493 | L195: 1.859552972 | M195: -13.80341586 | N195: -2.531380426 | O195: 0.4584267418 | P195: 5.678162432 | Q195: 75.38157112 | R195: 5.906194189 | T195: 0.9446052103 | W195: 1.585019821 | AL195: 9.454200664 | AM195: -0.7981864224
A196: 0 | B196: 189 | C196: 5.937610115 | D196: 4.444993181 | E196: 2.118238462 | F196: 3.264261573 | G196: -1.435055382 | H196: -0.6774758405 | I196: 4.356855833 | J196: 4.444993181 | K196: 6.22415915 | L196: 1.881761538 | M196: -13.61191675 | N196: -2.389488556 | O196: 0.6057146109 | P196: 4.81342765 | Q196: 75.58846854 | R196: 5.937610115 | T196: 1.020229576 | W196: 1.869769456 | AL196: 9.254403564 | AM196: -0.6218869349
A197: 0 | B197: 190 | C197: 5.969026042 | D197: 4.372384153 | E197: 2.097886967 | F197: 3.394452418 | G197: -1.29656545 | H197: -0.6180339887 | I197: 3.932428082 | J197: 4.372384153 | K197: 5.880623589 | L197: 1.902113033 | M197: -13.40629625 | N197: -2.230146063 | O197: 0.8197129281 | P197: 4.079679011 | Q197: 75.78400626 | R197: 5.969026042 | T197: 1.111878987 | W197: 2.206055912 | AL197: 9.061537186 | AM197: -0.472135955
A198: 0 | B198: 191 | C198: 6.000441968 | D198: 4.305037783 | E198: 2.079412629 | F198: 3.511412302 | G198: -1.160275258 | H198: -0.5579822121 | I198: 3.51458009 | J198: 4.305037783 | K198: 5.55748356 | L198: 1.920587371 | M198: -13.19429267 | N198: -2.054685512 | O198: 1.142065985 | P198: 3.461967847 | Q198: 75.9687515 | R198: 6.000441968 | T198: 1.224908146 | W198: 2.599677524 | AL198: 8.878276767 | AM198: -0.3474489939
A199: 0 | B199: 192 | C199: 6.031857895 | D199: =alpha*(gama*COS(C199)-COS(beta*C199)) -> 4.243438569 | E199: =(alpha-beta*COS(C199)) -> 2.062833678 | F199: =beta*E199*COS(pol*C199) -> 3.615349863 | G199: =gama*E199*SIN(pol_2*C199) -> -1.026011749 | H199: =beta*SIN(C199) -> -0.4973797743 | I199: =beta*H199*COS(pol*C199)-beta*E199*pol*SIN(pol*C199) -> 3.103396376 | J199: =gama*H199*SIN(pol_2*C199)+gama*E199*pol_2*COS(pol_2*C199) -> 4.243438569 | K199: 5.257170337 | L199: =beta*COS(C199) -> 1.937166322 | M199: =beta*(L199*COS(pol*C199)-2*pol*H199*SIN(pol*C199)-pol^2*E199*COS(pol*C199)) -> -12.98321215 | N199: =gama*(L199*SIN(pol_2*C199)+2*pol_2*H199*COS(pol_2*C199)-pol_2^2*E199*SIN(pol_2*C199)) -> -1.864510295 | O199: 1.649674051 | P199: 2.946770119 | Q199: 76.143345 | R199: 6.031857895 | T199: 1.367353072 | U199: =IF(S199<>"",T198+(scurrent-Q198)*(T199-T198)/(Q199-Q198),"") ->  | V199: =IF(v0*($M$2-deltat)<Q199,IF(v0*($M$2-deltat)>Q198,R198,""),"") ->  | W199: =v0^2/P199 -> 3.054191415 | AL199: =alpha*(3*COS($C199)-COS(3*$C199)) -> 8.707123424 | AM199: =4*alpha*(SIN($C199))^3 -> -0.2460902223
A200: =IF(AND(REMAIN_S>Q200,REMAIN_S<Q201),1,0) -> 0 | B200: 193 | C200: =C199+dt -> 6.063273821 | D200: 4.188025886 | E200: 2.048166476 | F200: 3.706472871 | G200: -0.893587348 | H200: -0.4362864828 | I200: 2.69873986 | J200: 4.188025886 | K200: 4.982244239 | L200: 1.951833524 | M200: -12.77984193 | N200: -1.661088401 | O200: 2.494954547 | P200: 2.521908538 | Q200: =Q199+dt*K199 -> 76.30850388 | R200: 6.063273821 | T200: =J200/I200 -> 1.551844973 | W200: 3.568725775 | AL200: 8.550381094 | AM200: -0.1660906821
... 42 more rows

Sheet calculations2
A1: neproid
A2: x | B2: y
A3: =IF(calculations!C7<currentF,alpha*(3*COS(calculations!C7)-COS(3*calculations!C7)),alpha*(3*COS(currentF)-COS(3*currentF))) -> 8 | B3: =IF(calculations!C7<currentF,4*alpha*(SIN(calculations!C7))^3,4*alpha*(SIN(currentF)^3)) -> 0
A4: =IF(calculations!C8<currentF,alpha*(3*COS(calculations!C8)-COS(3*calculations!C8)),alpha*(3*COS(currentF)-COS(3*currentF))) -> 8.011830866 | B4: =IF(calculations!C8<currentF,4*alpha*(SIN(calculations!C8))^3,4*alpha*(SIN(currentF)^3)) -> 0.0004958556635 | L4: =1 -> 1 | M4: 4 | N4: 0 | S4: =xcurrenta -> 1.378721252 | T4: =ycurrenta -> 7.274724325
A5: =IF(calculations!C9<currentF,alpha*(3*COS(calculations!C9)-COS(3*calculations!C9)),alpha*(3*COS(currentF)-COS(3*currentF))) -> 8.047171738 | B5: =IF(calculations!C9<currentF,4*alpha*(SIN(calculations!C9))^3,4*alpha*(SIN(currentF)^3)) -> 0.003960976009 | L5: =L4+1 -> 2 | M5: =IF(calculations!C8<currentfa,calculations!F8,xcurrenta) -> 3.994076777 | N5: =IF(calculations!C8<currentfa,calculations!G8,ycurrenta) -> 0.1257050336 | S5: =xcurrenta -> 1.378721252 | T5: =ycurrenta -> 7.274724325
A6: =IF(calculations!C10<currentF,alpha*(3*COS(calculations!C10)-COS(3*calculations!C10)),alpha*(3*COS(currentF)-COS(3*currentF))) -> 8.105568833 | B6: =IF(calculations!C10<currentF,4*alpha*(SIN(calculations!C10))^3,4*alpha*(SIN(currentF)^3)) -> 0.01333533567 | L6: =L5+1 -> 3 | M6: =IF(calculations!C9<currentfa,calculations!F9,xcurrenta) -> 3.976289652 | N6: =IF(calculations!C9<currentfa,calculations!G9,ycurrenta) -> 0.2516576891
A7: =IF(calculations!C11<currentF,alpha*(3*COS(calculations!C11)-COS(3*calculations!C11)),alpha*(3*COS(currentF)-COS(3*currentF))) -> 8.186270472 | B7: =IF(calculations!C11<currentF,4*alpha*(SIN(calculations!C11))^3,4*alpha*(SIN(currentF)^3)) -> 0.03150059203 | L7: 4 | M7: =IF(calculations!C10<currentfa,calculations!F10,xcurrenta) -> 3.946586705 | N7: =IF(calculations!C10<currentfa,calculations!G10,ycurrenta) -> 0.3781038774
A8: =IF(calculations!C12<currentF,alpha*(3*COS(calculations!C12)-COS(3*calculations!C12)),alpha*(3*COS(currentF)-COS(3*currentF))) -> 8.28823399 | B8: =IF(calculations!C12<currentF,4*alpha*(SIN(calculations!C12))^3,4*alpha*(SIN(currentF)^3)) -> 0.06125158152 | L8: 5 | M8: =IF(calculations!C11<currentfa,calculations!F11,xcurrenta) -> 3.904882915 | N8: =IF(calculations!C11<currentfa,calculations!G11,ycurrenta) -> 0.5052860942
A9: =IF(calculations!C13<currentF,alpha*(3*COS(calculations!C13)-COS(3*calculations!C13)),alpha*(3*COS(currentF)-COS(3*currentF))) -> 8.410135307 | B9: =IF(calculations!C13<currentF,4*alpha*(SIN(calculations!C13))^3,4*alpha*(SIN(currentF)^3)) -> 0.1052685951 | L9: 6 | M9: =IF(calculations!C12<currentfa,calculations!F12,xcurrenta) -> 3.851062401 | N9: =IF(calculations!C12<currentfa,calculations!G12,ycurrenta) -> 0.6334417316
A10: =IF(calculations!C14<currentF,alpha*(3*COS(calculations!C14)-COS(3*calculations!C14)),alpha*(3*COS(currentF)-COS(3*currentF))) -> 8.550381094 | B10: =IF(calculations!C14<currentF,4*alpha*(SIN(calculations!C14))^3,4*alpha*(SIN(currentF)^3)) -> 0.1660906821 | L10: 7 | M10: =IF(calculations!C13<currentfa,calculations!F13,xcurrenta) -> 3.784981535 | N10: =IF(calculations!C13<currentfa,calculations!G13,ycurrenta) -> 0.7628014113
A11: =IF(calculations!C15<currentF,alpha*(3*COS(calculations!C15)-COS(3*calculations!C15)),alpha*(3*COS(currentF)-COS(3*currentF))) -> 8.707123424 | B11: =IF(calculations!C15<currentF,4*alpha*(SIN(calculations!C15))^3,4*alpha*(SIN(currentF)^3)) -> 0.2460902223 | L11: 8 | M11: =IF(calculations!C14<currentfa,calculations!F14,xcurrenta) -> 3.706472871 | N11: =IF(calculations!C14<currentfa,calculations!G14,ycurrenta) -> 0.893587348
A12: =IF(calculations!C16<currentF,alpha*(3*COS(calculations!C16)-COS(3*calculations!C16)),alpha*(3*COS(currentF)-COS(3*currentF))) -> 8.878276767 | B12: =IF(calculations!C16<currentF,4*alpha*(SIN(calculations!C16))^3,4*alpha*(SIN(currentF)^3)) -> 0.3474489939 | L12: 9 | M12: =IF(calculations!C15<currentfa,calculations!F15,xcurrenta) -> 3.615349863 | N12: =IF(calculations!C15<currentfa,calculations!G15,ycurrenta) -> 1.026011749
A13: =IF(calculations!C17<currentF,alpha*(3*COS(calculations!C17)-COS(3*calculations!C17)),alpha*(3*COS(currentF)-COS(3*currentF))) -> 9.061537186 | B13: =IF(calculations!C17<currentF,4*alpha*(SIN(calculations!C17))^3,4*alpha*(SIN(currentF)^3)) -> 0.472135955 | L13: 10 | M13: =IF(calculations!C16<currentfa,calculations!F16,xcurrenta) -> 3.511412302 | N13: =IF(calculations!C16<currentfa,calculations!G16,ycurrenta) -> 1.160275258
A14: =IF(calculations!C18<currentF,alpha*(3*COS(calculations!C18)-COS(3*calculations!C18)),alpha*(3*COS(currentF)-COS(3*currentF))) -> 9.254403564 | B14: =IF(calculations!C18<currentF,4*alpha*(SIN(calculations!C18))^3,4*alpha*(SIN(currentF)^3)) -> 0.6218869349 | L14: 11 | M14: =IF(calculations!C17<currentfa,calculations!F17,xcurrenta) -> 3.394452418 | N14: =IF(calculations!C17<currentfa,calculations!G17,ycurrenta) -> 1.29656545
A15: =IF(calculations!C19<currentF,alpha*(3*COS(calculations!C19)-COS(3*calculations!C19)),alpha*(3*COS(currentF)-COS(3*currentF))) -> 9.454200664 | B15: =IF(calculations!C19<currentF,4*alpha*(SIN(calculations!C19))^3,4*alpha*(SIN(currentF)^3)) -> 0.7981864224 | L15: 12 | M15: =IF(calculations!C18<currentfa,calculations!F18,xcurrenta) -> 3.264261573 | N15: =IF(calculations!C18<currentfa,calculations!G18,ycurrenta) -> 1.435055382
A16: =IF(calculations!C20<currentF,alpha*(3*COS(calculations!C20)-COS(3*calculations!C20)),alpha*(3*COS(currentF)-COS(3*currentF))) -> 9.658103827 | B16: =IF(calculations!C20<currentF,4*alpha*(SIN(calculations!C20))^3,4*alpha*(SIN(currentF)^3)) -> 1.002251612 | L16: 13 | M16: =IF(calculations!C19<currentfa,calculations!F19,xcurrenta) -> 3.120637464 | N16: =IF(calculations!C19<currentfa,calculations!G19,ycurrenta) -> 1.57590221
A17: =IF(calculations!C21<currentF,alpha*(3*COS(calculations!C21)-COS(3*calculations!C21)),alpha*(3*COS(currentF)-COS(3*currentF))) -> 9.863165081 | B17: =IF(calculations!C21<currentF,4*alpha*(SIN(calculations!C21))^3,4*alpha*(SIN(currentF)^3)) -> 1.235018854 | L17: 14 | M17: =IF(calculations!C20<currentfa,calculations!F20,xcurrenta) -> 2.963391756 | N17: =IF(calculations!C20<currentfa,calculations!G20,ycurrenta) -> 1.71924587
A18: =IF(calculations!C22<currentF,alpha*(3*COS(calculations!C22)-COS(3*calculations!C22)),alpha*(3*COS(currentF)-COS(3*currentF))) -> 10.06634043 | B18: =IF(calculations!C22<currentF,4*alpha*(SIN(calculations!C22))^3,4*alpha*(SIN(currentF)^3)) -> 1.497132634 | L18: 15 | M18: =IF(calculations!C21<currentfa,calculations!F21,xcurrenta) -> 2.792358039 | N18: =IF(calculations!C21<currentfa,calculations!G21,ycurrenta) -> 1.865207847
A19: =IF(calculations!C23<currentF,alpha*(3*COS(calculations!C23)-COS(3*calculations!C23)),alpha*(3*COS(currentF)-COS(3*currentF))) -> 10.26451808 | B19: =IF(calculations!C23<currentF,4*alpha*(SIN(calculations!C23))^3,4*alpha*(SIN(currentF)^3)) -> 1.788937176 | L19: 16 | M19: =IF(calculations!C22<currentfa,calculations!F22,xcurrenta) -> 2.60740004 | N19: =IF(calculations!C22<currentfa,calculations!G22,ycurrenta) -> 2.013890009
A20: =IF(calculations!C24<currentF,alpha*(3*COS(calculations!C24)-COS(3*calculations!C24)),alpha*(3*COS(currentF)-COS(3*currentF))) -> 10.45454736 | B20: =IF(calculations!C24<currentF,4*alpha*(SIN(calculations!C24))^3,4*alpha*(SIN(currentF)^3)) -> 2.110470748 | L20: 17 | M20: =IF(calculations!C23<currentfa,calculations!F23,xcurrenta) -> 2.408419961 | N20: =IF(calculations!C23<currentfa,calculations!G23,ycurrenta) -> 2.165373542
A21: =IF(calculations!C25<currentF,alpha*(3*COS(calculations!C25)-COS(3*calculations!C25)),alpha*(3*COS(currentF)-COS(3*currentF))) -> 10.63326804 | B21: =IF(calculations!C25<currentF,4*alpha*(SIN(calculations!C25))^3,4*alpha*(SIN(currentF)^3)) -> 2.461462734 | L21: 18 | M21: =IF(calculations!C24<currentfa,calculations!F24,xcurrenta) -> 2.195366857 | N21: =IF(calculations!C24<currentfa,calculations!G24,ycurrenta) -> 2.319717966
A22: =IF(calculations!C26<currentF,alpha*(3*COS(calculations!C26)-COS(3*calculations!C26)),alpha*(3*COS(currentF)-COS(3*currentF))) -> 10.79753986 | B22: =IF(calculations!C26<currentF,4*alpha*(SIN(calculations!C26))^3,4*alpha*(SIN(currentF)^3)) -> 2.841333486 | L22: 19 | M22: =IF(calculations!C25<currentfa,calculations!F25,xcurrenta) -> 1.968244949 | N22: =IF(calculations!C25<currentfa,calculations!G25,ycurrenta) -> 2.476960255
A23: =IF(calculations!C27<currentF,alpha*(3*COS(calculations!C27)-COS(3*calculations!C27)),alpha*(3*COS(currentF)-COS(3*currentF))) -> 10.94427191 | B23: =IF(calculations!C27<currentF,4*alpha*(SIN(calculations!C27))^3,4*alpha*(SIN(currentF)^3)) -> 3.249196962 | L23: 20 | M23: =IF(calculations!C26<currentfa,calculations!F26,xcurrenta) -> 1.727121756 | N23: =IF(calculations!C26<currentfa,calculations!G26,ycurrenta) -> 2.637114051
A24: =IF(calculations!C28<currentF,alpha*(3*COS(calculations!C28)-COS(3*calculations!C28)),alpha*(3*COS(currentF)-COS(3*currentF))) -> 11.07045171 | B24: =IF(calculations!C28<currentF,4*alpha*(SIN(calculations!C28))^3,4*alpha*(SIN(currentF)^3)) -> 3.683866141 | L24: 21 | M24: =IF(calculations!C27<currentfa,calculations!F27,xcurrenta) -> 1.472135955 | N24: =IF(calculations!C27<currentfa,calculations!G27,ycurrenta) -> 2.800168986
A25: =IF(calculations!C29<currentF,alpha*(3*COS(calculations!C29)-COS(3*calculations!C29)),alpha*(3*COS(currentF)-COS(3*currentF))) -> 11.17317361 | B25: =IF(calculations!C29<currentF,4*alpha*(SIN(calculations!C29))^3,4*alpha*(SIN(currentF)^3)) -> 4.143861157 | L25: 22 | M25: =IF(calculations!C28<currentfa,calculations!F28,xcurrenta) -> 1.203504854 | N25: =IF(calculations!C28<currentfa,calculations!G28,ycurrenta) -> 2.966090107
A26: =IF(calculations!C30<currentF,alpha*(3*COS(calculations!C30)-COS(3*calculations!C30)),alpha*(3*COS(currentF)-COS(3*currentF))) -> 11.24966635 | B26: =IF(calculations!C30<currentF,4*alpha*(SIN(calculations!C30))^3,4*alpha*(SIN(currentF)^3)) -> 4.627420087 | L26: 23 | M26: =IF(calculations!C29<currentfa,calculations!F29,xcurrenta) -> 0.9215313793 | N26: =IF(calculations!C29<currentfa,calculations!G29,ycurrenta) -> 3.134817417
A27: =IF(calculations!C31<currentF,alpha*(3*COS(calculations!C31)-COS(3*calculations!C31)),alpha*(3*COS(currentF)-COS(3*currentF))) -> 11.29731949 | B27: =IF(calculations!C31<currentF,4*alpha*(SIN(calculations!C31))^3,4*alpha*(SIN(currentF)^3)) -> 5.1325123 | L27: 24 | M27: =IF(calculations!C30<currentfa,calculations!F30,xcurrenta) -> 0.626610485 | N27: =IF(calculations!C30<currentfa,calculations!G30,ycurrenta) -> 3.30626552
A28: =IF(calculations!C32<currentF,alpha*(3*COS(calculations!C32)-COS(3*calculations!C32)),alpha*(3*COS(currentF)-COS(3*currentF))) -> 11.3137085 | B28: =IF(calculations!C32<currentF,4*alpha*(SIN(calculations!C32))^3,4*alpha*(SIN(currentF)^3)) -> 5.656854249 | L28: 25 | M28: =IF(calculations!C31<currentfa,calculations!F31,xcurrenta) -> 0.3192348809 | N28: =IF(calculations!C31<currentfa,calculations!G31,ycurrenta) -> 3.480323391
A29: =IF(calculations!C33<currentF,alpha*(3*COS(calculations!C33)-COS(3*calculations!C33)),alpha*(3*COS(currentF)-COS(3*currentF))) -> 11.29661824 | B29: =IF(calculations!C33<currentF,4*alpha*(SIN(calculations!C33))^3,4*alpha*(SIN(currentF)^3)) -> 6.19792757 | L29: 26 | M29: =IF(calculations!C32<currentfa,calculations!F32,xcurrenta) -> -3.128162342e-15 | N29: =IF(calculations!C32<currentfa,calculations!G32,ycurrenta) -> 3.656854249
A30: =IF(calculations!C34<currentF,alpha*(3*COS(calculations!C34)-COS(3*calculations!C34)),alpha*(3*COS(currentF)-COS(3*currentF))) -> 11.24406468 | B30: =IF(calculations!C34<currentF,4*alpha*(SIN(calculations!C34))^3,4*alpha*(SIN(currentF)^3)) -> 6.752999324 | L30: 27 | M30: =IF(calculations!C33<currentfa,calculations!F33,xcurrenta) -> -0.3303918825 | N30: =IF(calculations!C33<currentfa,calculations!G33,ycurrenta) -> 3.835695563
A31: =IF(calculations!C35<currentF,alpha*(3*COS(calculations!C35)-COS(3*calculations!C35)),alpha*(3*COS(currentF)-COS(3*currentF))) -> 11.1543146 | B31: =IF(calculations!C35<currentF,4*alpha*(SIN(calculations!C35))^3,4*alpha*(SIN(currentF)^3)) -> 7.319144217 | L31: 28 | M31: =IF(calculations!C34<currentfa,calculations!F34,xcurrenta) -> -0.6711284506 | N31: =IF(calculations!C34<currentfa,calculations!G34,ycurrenta) -> 4.016659154
A32: =IF(calculations!C36<currentF,alpha*(3*COS(calculations!C36)-COS(3*calculations!C36)),alpha*(3*COS(currentF)-COS(3*currentF))) -> 11.02590315 | B32: =IF(calculations!C36<currentF,4*alpha*(SIN(calculations!C36))^3,4*alpha*(SIN(currentF)^3)) -> 7.893268586 | L32: 29 | M32: =IF(calculations!C35<currentfa,calculations!F35,xcurrenta) -> -1.021285136 | N32: =IF(calculations!C35<currentfa,calculations!G35,ycurrenta) -> 4.199531441
A33: =IF(calculations!C37<currentF,alpha*(3*COS(calculations!C37)-COS(3*calculations!C37)),alpha*(3*COS(currentF)-COS(3*currentF))) -> 10.85764909 | B33: =IF(calculations!C37<currentF,4*alpha*(SIN(calculations!C37))^3,4*alpha*(SIN(currentF)^3)) -> 8.472135955 | L33: 30 | M33: =IF(calculations!C36<currentfa,calculations!F36,xcurrenta) -> -1.379823953 | N33: =IF(calculations!C36<currentfa,calculations!G36,ycurrenta) -> 4.384073777
A34: =IF(calculations!C38<currentF,alpha*(3*COS(calculations!C38)-COS(3*calculations!C38)),alpha*(3*COS(currentF)-COS(3*currentF))) -> 10.64866758 | B34: =IF(calculations!C38<currentF,4*alpha*(SIN(calculations!C38))^3,4*alpha*(SIN(currentF)^3)) -> 9.052393926 | L34: 31 | M34: =IF(calculations!C37<currentfa,calculations!F37,xcurrenta) -> -1.745593427 | N34: =IF(calculations!C37<currentfa,calculations!G37,ycurrenta) -> 4.570022922
A35: =IF(calculations!C39<currentF,alpha*(3*COS(calculations!C39)-COS(3*calculations!C39)),alpha*(3*COS(currentF)-COS(3*currentF))) -> 10.39838035 | B35: =IF(calculations!C39<currentF,4*alpha*(SIN(calculations!C39))^3,4*alpha*(SIN(currentF)^3)) -> 9.630602172 | L35: 32 | M35: =IF(calculations!C38<currentfa,calculations!F38,xcurrenta) -> -2.117329653 | N35: =IF(calculations!C38<currentfa,calculations!G38,ycurrenta) -> 4.757091622
A36: =IF(calculations!C40<currentF,alpha*(3*COS(calculations!C40)-COS(3*calculations!C40)),alpha*(3*COS(currentF)-COS(3*currentF))) -> 10.10652323 | B36: =IF(calculations!C40<currentF,4*alpha*(SIN(calculations!C40))^3,4*alpha*(SIN(currentF)^3)) -> 10.20326129 | L36: 33 | M36: =IF(calculations!C39<currentfa,calculations!F39,xcurrenta) -> -2.49365852 | N36: =IF(calculations!C39<currentfa,calculations!G39,ycurrenta) -> 4.944969299
A37: =IF(calculations!C41<currentF,alpha*(3*COS(calculations!C41)-COS(3*calculations!C41)),alpha*(3*COS(currentF)-COS(3*currentF))) -> 9.773151003 | B37: =IF(calculations!C41<currentF,4*alpha*(SIN(calculations!C41))^3,4*alpha*(SIN(currentF)^3)) -> 10.76684224 | L37: 34 | M37: =IF(calculations!C40<currentfa,calculations!F40,xcurrenta) -> -2.873099104 | N37: =IF(calculations!C40<currentfa,calculations!G40,ycurrenta) -> 5.133322856
A38: =IF(calculations!C42<currentF,alpha*(3*COS(calculations!C42)-COS(3*calculations!C42)),alpha*(3*COS(currentF)-COS(3*currentF))) -> 9.398639359 | B38: =IF(calculations!C42<currentF,4*alpha*(SIN(calculations!C42))^3,4*alpha*(SIN(currentF)^3)) -> 11.31781615 | L38: 35 | M38: =IF(calculations!C41<currentfa,calculations!F41,xcurrenta) -> -3.254068251 | N38: =IF(calculations!C41<currentfa,calculations!G41,ycurrenta) -> 5.321797589
A39: =IF(calculations!C43<currentF,alpha*(3*COS(calculations!C43)-COS(3*calculations!C43)),alpha*(3*COS(currentF)-COS(3*currentF))) -> 8.983684143 | B39: =IF(calculations!C43<currentF,4*alpha*(SIN(calculations!C43))^3,4*alpha*(SIN(currentF)^3)) -> 11.85268418 | L39: 36 | M39: =IF(calculations!C42<currentfa,calculations!F42,xcurrenta) -> -3.634886337 | N39: =IF(calculations!C42<currentfa,calculations!G42,ycurrenta) -> 5.510018205
A40: =IF(calculations!C44<currentF,alpha*(3*COS(calculations!C44)-COS(3*calculations!C44)),alpha*(3*COS(currentF)-COS(3*currentF))) -> 8.529297763 | B40: =IF(calculations!C44<currentF,4*alpha*(SIN(calculations!C44))^3,4*alpha*(SIN(currentF)^3)) -> 12.36800719 | L40: 37 | M40: =IF(calculations!C43<currentfa,calculations!F43,xcurrenta) -> -4.013784179 | N40: =IF(calculations!C43<currentfa,calculations!G43,ycurrenta) -> 5.697589934
A41: =IF(calculations!C45<currentF,alpha*(3*COS(calculations!C45)-COS(3*calculations!C45)),alpha*(3*COS(currentF)-COS(3*currentF))) -> 8.036802842 | B41: =IF(calculations!C45<currentF,4*alpha*(SIN(calculations!C45))^3,4*alpha*(SIN(currentF)^3)) -> 12.860435 | L41: 38 | M41: =IF(calculations!C44<currentfa,calculations!F44,xcurrenta) -> -4.388911091 | N41: =IF(calculations!C44<currentfa,calculations!G44,ycurrenta) -> 5.884099751
A42: =IF(calculations!C46<currentF,alpha*(3*COS(calculations!C46)-COS(3*calculations!C46)),alpha*(3*COS(currentF)-COS(3*currentF))) -> 7.507823151 | B42: =IF(calculations!C46<currentF,4*alpha*(SIN(calculations!C46))^3,4*alpha*(SIN(currentF)^3)) -> 13.32673489 | L42: 39 | M42: =IF(calculations!C45<currentfa,calculations!F45,xcurrenta) -> -4.75834402 | N42: =IF(calculations!C45<currentfa,calculations!G45,ycurrenta) -> 6.069117675
A43: =IF(calculations!C47<currentF,alpha*(3*COS(calculations!C47)-COS(3*calculations!C47)),alpha*(3*COS(currentF)-COS(3*currentF))) -> 6.94427191 | B43: =IF(calculations!C47<currentF,4*alpha*(SIN(calculations!C47))^3,4*alpha*(SIN(currentF)^3)) -> 13.7638192 | L43: 40 | M43: =IF(calculations!C46<currentfa,calculations!F46,xcurrenta) -> -5.120097729 | N43: =IF(calculations!C46<currentfa,calculations!G46,ycurrenta) -> 6.252198172
A44: =IF(calculations!C48<currentF,alpha*(3*COS(calculations!C48)-COS(3*calculations!C48)),alpha*(3*COS(currentF)-COS(3*currentF))) -> 6.348337551 | B44: =IF(calculations!C48<currentF,4*alpha*(SIN(calculations!C48))^3,4*alpha*(SIN(currentF)^3)) -> 14.16877169 | L44: 41 | M44: =IF(calculations!C47<currentfa,calculations!F47,xcurrenta) -> -5.472135955 | N44: =IF(calculations!C47<currentfa,calculations!G47,ycurrenta) -> 6.432881626
A45: =IF(calculations!C49<currentF,alpha*(3*COS(calculations!C49)-COS(3*calculations!C49)),alpha*(3*COS(currentF)-COS(3*currentF))) -> 5.72246707 | B45: =IF(calculations!C49<currentF,4*alpha*(SIN(calculations!C49))^3,4*alpha*(SIN(currentF)^3)) -> 14.53887244 | L45: 42 | M45: =IF(calculations!C48<currentfa,calculations!F48,xcurrenta) -> -5.812383477 | N45: =IF(calculations!C48<currentfa,calculations!G48,ycurrenta) -> 6.610695895
A46: =IF(calculations!C50<currentF,alpha*(3*COS(calculations!C50)-COS(3*calculations!C50)),alpha*(3*COS(currentF)-COS(3*currentF))) -> 5.069347111 | B46: =IF(calculations!C50<currentF,4*alpha*(SIN(calculations!C50))^3,4*alpha*(SIN(currentF)^3)) -> 14.87162119 | L46: 43 | M46: =IF(calculations!C49<currentfa,calculations!F49,xcurrenta) -> -6.138739003 | N46: =IF(calculations!C49<currentfa,calculations!G49,ycurrenta) -> 6.785157941
A47: =IF(calculations!C51<currentF,alpha*(3*COS(calculations!C51)-COS(3*calculations!C51)),alpha*(3*COS(currentF)-COS(3*currentF))) -> 4.391882955 | B47: =IF(calculations!C51<currentF,4*alpha*(SIN(calculations!C51))^3,4*alpha*(SIN(currentF)^3)) -> 15.16475871 | L47: 44 | M47: =IF(calculations!C50<currentfa,calculations!F50,xcurrenta) -> -6.449088795 | N47: =IF(calculations!C50<currentfa,calculations!G50,ycurrenta) -> 6.955775512
A48: =IF(calculations!C52<currentF,alpha*(3*COS(calculations!C52)-COS(3*calculations!C52)),alpha*(3*COS(currentF)-COS(3*currentF))) -> 3.693175579 | B48: =IF(calculations!C52<currentF,4*alpha*(SIN(calculations!C52))^3,4*alpha*(SIN(currentF)^3)) -> 15.41628618 | L48: 45 | M48: =IF(calculations!C51<currentfa,calculations!F51,xcurrenta) -> -6.741320926 | N48: =IF(calculations!C51<currentfa,calculations!G51,ycurrenta) -> 7.1220489
A49: =IF(calculations!C53<currentF,alpha*(3*COS(calculations!C53)-COS(3*calculations!C53)),alpha*(3*COS(currentF)-COS(3*currentF))) -> 2.976497014 | B49: =IF(calculations!C53<currentF,4*alpha*(SIN(calculations!C53))^3,4*alpha*(SIN(currentF)^3)) -> 15.62448236 | L49: 46 | M49: =IF(calculations!C52<currentfa,calculations!F52,xcurrenta) -> -7.013340061 | N49: =IF(calculations!C52<currentfa,calculations!G52,ycurrenta) -> 7.283472736
A50: =IF(calculations!C54<currentF,alpha*(3*COS(calculations!C54)-COS(3*calculations!C54)),alpha*(3*COS(currentF)-COS(3*currentF))) -> 2.245264184 | B50: =IF(calculations!C54<currentF,4*alpha*(SIN(calculations!C54))^3,4*alpha*(SIN(currentF)^3)) -> 15.78791832 | L50: 47 | M50: =IF(calculations!C53<currentfa,calculations!F53,xcurrenta) -> -7.263082651 | N50: =IF(calculations!C53<currentfa,calculations!G53,ycurrenta) -> 7.439537836
A51: =IF(calculations!C55<currentF,alpha*(3*COS(calculations!C55)-COS(3*calculations!C55)),alpha*(3*COS(currentF)-COS(3*currentF))) -> 1.503011493 | B51: =IF(calculations!C55<currentF,4*alpha*(SIN(calculations!C55))^3,4*alpha*(SIN(currentF)^3)) -> 15.90546974 | L51: 48 | M51: =IF(calculations!C54<currentfa,calculations!F54,xcurrenta) -> -7.48853242 | N51: =IF(calculations!C54<currentfa,calculations!G54,ycurrenta) -> 7.589733088
A52: =IF(calculations!C56<currentF,alpha*(3*COS(calculations!C56)-COS(3*calculations!C56)),alpha*(3*COS(currentF)-COS(3*currentF))) -> 0.7533623622 | B52: =IF(calculations!C56<currentF,4*alpha*(SIN(calculations!C56))^3,4*alpha*(SIN(currentF)^3)) -> 15.97632658 | L52: 49 | M52: =IF(calculations!C55<currentfa,calculations!F55,xcurrenta) -> -7.68773602 | N52: =IF(calculations!C55<currentfa,calculations!G55,ycurrenta) -> 7.73354736
A53: =IF(calculations!C57<currentF,alpha*(3*COS(calculations!C57)-COS(3*calculations!C57)),alpha*(3*COS(currentF)-COS(3*currentF))) -> -2.872788812e-14 | B53: =IF(calculations!C57<currentF,4*alpha*(SIN(calculations!C57))^3,4*alpha*(SIN(currentF)^3)) -> 16 | L53: 50 | M53: =IF(calculations!C56<currentfa,calculations!F56,xcurrenta) -> -7.858818719 | N53: =IF(calculations!C56<currentfa,calculations!G56,ycurrenta) -> 7.870471444
A54: =IF(calculations!C58<currentF,alpha*(3*COS(calculations!C58)-COS(3*calculations!C58)),alpha*(3*COS(currentF)-COS(3*currentF))) -> -0.7533623622 | B54: =IF(calculations!C58<currentF,4*alpha*(SIN(calculations!C58))^3,4*alpha*(SIN(currentF)^3)) -> 15.97632658 | L54: 51 | M54: =IF(calculations!C57<currentfa,calculations!F57,xcurrenta) -> -8 | N54: =IF(calculations!C57<currentfa,calculations!G57,ycurrenta) -> 8
A55: =IF(calculations!C59<currentF,alpha*(3*COS(calculations!C59)-COS(3*calculations!C59)),alpha*(3*COS(currentF)-COS(3*currentF))) -> -1.503011493 | B55: =IF(calculations!C59<currentF,4*alpha*(SIN(calculations!C59))^3,4*alpha*(SIN(currentF)^3)) -> 15.90546974 | L55: 52 | M55: =IF(calculations!C58<currentfa,calculations!F58,xcurrenta) -> -8.109608936 | N55: =IF(calculations!C58<currentfa,calculations!G58,ycurrenta) -> 8.121633522
A56: =IF(calculations!C60<currentF,alpha*(3*COS(calculations!C60)-COS(3*calculations!C60)),alpha*(3*COS(currentF)-COS(3*currentF))) -> -2.245264184 | B56: =IF(calculations!C60<currentF,4*alpha*(SIN(calculations!C60))^3,4*alpha*(SIN(currentF)^3)) -> 15.78791832 | L56: 53 | M56: =IF(calculations!C59<currentfa,calculations!F59,xcurrenta) -> -8.186099201 | N56: =IF(calculations!C59<currentfa,calculations!G59,ycurrenta) -> 8.234880295
A57: =IF(calculations!C61<currentF,alpha*(3*COS(calculations!C61)-COS(3*calculations!C61)),alpha*(3*COS(currentF)-COS(3*currentF))) -> -2.976497014 | B57: =IF(calculations!C61<currentF,4*alpha*(SIN(calculations!C61))^3,4*alpha*(SIN(currentF)^3)) -> 15.62448236 | L57: 54 | M57: =IF(calculations!C60<currentfa,calculations!F60,xcurrenta) -> -8.228063591 | N57: =IF(calculations!C60<currentfa,calculations!G60,ycurrenta) -> 8.339258346
A58: =IF(calculations!C62<currentF,alpha*(3*COS(calculations!C62)-COS(3*calculations!C62)),alpha*(3*COS(currentF)-COS(3*currentF))) -> -3.693175579 | B58: =IF(calculations!C62<currentF,4*alpha*(SIN(calculations!C62))^3,4*alpha*(SIN(currentF)^3)) -> 15.41628618 | L58: 55 | M58: =IF(calculations!C61<currentfa,calculations!F61,xcurrenta) -> -8.234247927 | N58: =IF(calculations!C61<currentfa,calculations!G61,ycurrenta) -> 8.434297385
A59: =IF(calculations!C63<currentF,alpha*(3*COS(calculations!C63)-COS(3*calculations!C63)),alpha*(3*COS(currentF)-COS(3*currentF))) -> -4.391882955 | B59: =IF(calculations!C63<currentF,4*alpha*(SIN(calculations!C63))^3,4*alpha*(SIN(currentF)^3)) -> 15.16475871 | L59: 56 | M59: =IF(calculations!C62<currentfa,calculations!F62,xcurrenta) -> -8.2035642 | N59: =IF(calculations!C62<currentfa,calculations!G62,ycurrenta) -> 8.519540714
A60: =IF(calculations!C64<currentF,alpha*(3*COS(calculations!C64)-COS(3*calculations!C64)),alpha*(3*COS(currentF)-COS(3*currentF))) -> -5.069347111 | B60: =IF(calculations!C64<currentF,4*alpha*(SIN(calculations!C64))^3,4*alpha*(SIN(currentF)^3)) -> 14.87162119 | L60: 57 | M60: =IF(calculations!C63<currentfa,calculations!F63,xcurrenta) -> -8.135102848 | N60: =IF(calculations!C63<currentfa,calculations!G63,ycurrenta) -> 8.594547111
A61: =IF(calculations!C65<currentF,alpha*(3*COS(calculations!C65)-COS(3*calculations!C65)),alpha*(3*COS(currentF)-COS(3*currentF))) -> -5.72246707 | B61: =IF(calculations!C65<currentF,4*alpha*(SIN(calculations!C65))^3,4*alpha*(SIN(currentF)^3)) -> 14.53887244 | L61: 58 | M61: =IF(calculations!C64<currentfa,calculations!F64,xcurrenta) -> -8.028144044 | N61: =IF(calculations!C64<currentfa,calculations!G64,ycurrenta) -> 8.658892679
A62: =IF(calculations!C66<currentF,alpha*(3*COS(calculations!C66)-COS(3*calculations!C66)),alpha*(3*COS(currentF)-COS(3*currentF))) -> -6.348337551 | B62: =IF(calculations!C66<currentF,4*alpha*(SIN(calculations!C66))^3,4*alpha*(SIN(currentF)^3)) -> 14.16877169 | L62: 59 | M62: =IF(calculations!C65<currentfa,calculations!F65,xcurrenta) -> -7.882167878 | N62: =IF(calculations!C65<currentfa,calculations!G65,ycurrenta) -> 8.712172637
A63: =IF(calculations!C67<currentF,alpha*(3*COS(calculations!C67)-COS(3*calculations!C67)),alpha*(3*COS(currentF)-COS(3*currentF))) -> -6.94427191 | B63: =IF(calculations!C67<currentF,4*alpha*(SIN(calculations!C67))^3,4*alpha*(SIN(currentF)^3)) -> 13.7638192 | L63: 60 | M63: =IF(calculations!C66<currentfa,calculations!F66,xcurrenta) -> -7.696863331 | N63: =IF(calculations!C66<currentfa,calculations!G66,ycurrenta) -> 8.754003075
A64: =IF(calculations!C68<currentF,alpha*(3*COS(calculations!C68)-COS(3*calculations!C68)),alpha*(3*COS(currentF)-COS(3*currentF))) -> -7.507823151 | B64: =IF(calculations!C68<currentF,4*alpha*(SIN(calculations!C68))^3,4*alpha*(SIN(currentF)^3)) -> 13.32673489 | L64: 61 | M64: =IF(calculations!C67<currentfa,calculations!F67,xcurrenta) -> -7.472135955 | N64: =IF(calculations!C67<currentfa,calculations!G67,ycurrenta) -> 8.784022635
A65: =IF(calculations!C69<currentF,alpha*(3*COS(calculations!C69)-COS(3*calculations!C69)),alpha*(3*COS(currentF)-COS(3*currentF))) -> -8.036802842 | B65: =IF(calculations!C69<currentF,4*alpha*(SIN(calculations!C69))^3,4*alpha*(SIN(currentF)^3)) -> 12.860435 | L65: 62 | M65: =IF(calculations!C68<currentfa,calculations!F68,xcurrenta) -> -7.208114156 | N65: =IF(calculations!C68<currentfa,calculations!G68,ycurrenta) -> 8.801894131
A66: =IF(calculations!C70<currentF,alpha*(3*COS(calculations!C70)-COS(3*calculations!C70)),alpha*(3*COS(currentF)-COS(3*currentF))) -> -8.529297763 | B66: =IF(calculations!C70<currentF,4*alpha*(SIN(calculations!C70))^3,4*alpha*(SIN(currentF)^3)) -> 12.36800719 | L66: 63 | M66: =IF(calculations!C69<currentfa,calculations!F69,xcurrenta) -> -6.905154019 | N66: =IF(calculations!C69<currentfa,calculations!G69,ycurrenta) -> 8.807306099
A67: =IF(calculations!C71<currentF,alpha*(3*COS(calculations!C71)-COS(3*calculations!C71)),alpha*(3*COS(currentF)-COS(3*currentF))) -> -8.983684143 | B67: =IF(calculations!C71<currentF,4*alpha*(SIN(calculations!C71))^3,4*alpha*(SIN(currentF)^3)) -> 11.85268418 | L67: 64 | M67: =IF(calculations!C70<currentfa,calculations!F70,xcurrenta) -> -6.563842604 | N67: =IF(calculations!C70<currentfa,calculations!G70,ycurrenta) -> 8.79997426
A68: =IF(calculations!C72<currentF,alpha*(3*COS(calculations!C72)-COS(3*calculations!C72)),alpha*(3*COS(currentF)-COS(3*currentF))) -> -9.398639359 | B68: =IF(calculations!C72<currentF,4*alpha*(SIN(calculations!C72))^3,4*alpha*(SIN(currentF)^3)) -> 11.31781615 | L68: 65 | M68: =IF(calculations!C71<currentfa,calculations!F71,xcurrenta) -> -6.184999657 | N68: =IF(calculations!C71<currentfa,calculations!G71,ycurrenta) -> 8.779642905
A69: =IF(calculations!C73<currentF,alpha*(3*COS(calculations!C73)-COS(3*calculations!C73)),alpha*(3*COS(currentF)-COS(3*currentF))) -> -9.773151003 | B69: =IF(calculations!C73<currentF,4*alpha*(SIN(calculations!C73))^3,4*alpha*(SIN(currentF)^3)) -> 10.76684224 | L69: 66 | M69: =IF(calculations!C72<currentfa,calculations!F72,xcurrenta) -> -5.7696777 | N69: =IF(calculations!C72<currentfa,calculations!G72,ycurrenta) -> 8.746086182
A70: =IF(calculations!C74<currentF,alpha*(3*COS(calculations!C74)-COS(3*calculations!C74)),alpha*(3*COS(currentF)-COS(3*currentF))) -> -10.10652323 | B70: =IF(calculations!C74<currentF,4*alpha*(SIN(calculations!C74))^3,4*alpha*(SIN(currentF)^3)) -> 10.20326129 | L70: =L69+1 -> 67 | M70: =IF(calculations!C73<currentfa,calculations!F73,xcurrenta) -> -5.319160468 | N70: =IF(calculations!C73<currentfa,calculations!G73,ycurrenta) -> 8.699109291
A71: =IF(calculations!C75<currentF,alpha*(3*COS(calculations!C75)-COS(3*calculations!C75)),alpha*(3*COS(currentF)-COS(3*currentF))) -> -10.39838035 | B71: =IF(calculations!C75<currentF,4*alpha*(SIN(calculations!C75))^3,4*alpha*(SIN(currentF)^3)) -> 9.630602172 | L71: 68 | M71: =IF(calculations!C74<currentfa,calculations!F74,xcurrenta) -> -4.834959682 | N71: =IF(calculations!C74<currentfa,calculations!G74,ycurrenta) -> 8.638549576
A72: =IF(calculations!C76<currentF,alpha*(3*COS(calculations!C76)-COS(3*calculations!C76)),alpha*(3*COS(currentF)-COS(3*currentF))) -> -10.64866758 | B72: =IF(calculations!C76<currentF,4*alpha*(SIN(calculations!C76))^3,4*alpha*(SIN(currentF)^3)) -> 9.052393926 | L72: 69 | M72: =IF(calculations!C75<currentfa,calculations!F75,xcurrenta) -> -4.318810145 | N72: =IF(calculations!C75<currentfa,calculations!G75,ycurrenta) -> 8.564277509
A73: =IF(calculations!C77<currentF,alpha*(3*COS(calculations!C77)-COS(3*calculations!C77)),alpha*(3*COS(currentF)-COS(3*currentF))) -> -10.85764909 | B73: =IF(calculations!C77<currentF,4*alpha*(SIN(calculations!C77))^3,4*alpha*(SIN(currentF)^3)) -> 8.472135955 | L73: 70 | M73: =IF(calculations!C76<currentfa,calculations!F76,xcurrenta) -> -3.77266319 | N73: =IF(calculations!C76<currentfa,calculations!G76,ycurrenta) -> 8.476197566
A74: =IF(calculations!C78<currentF,alpha*(3*COS(calculations!C78)-COS(3*calculations!C78)),alpha*(3*COS(currentF)-COS(3*currentF))) -> -11.02590315 | B74: =IF(calculations!C78<currentF,4*alpha*(SIN(calculations!C78))^3,4*alpha*(SIN(currentF)^3)) -> 7.893268586 | L74: 71 | M74: =IF(calculations!C77<currentfa,calculations!F77,xcurrenta) -> -3.198678483 | N74: =IF(calculations!C77<currentfa,calculations!G77,ycurrenta) -> 8.374248988
A75: =IF(calculations!C79<currentF,alpha*(3*COS(calculations!C79)-COS(3*calculations!C79)),alpha*(3*COS(currentF)-COS(3*currentF))) -> -11.1543146 | B75: =IF(calculations!C79<currentF,4*alpha*(SIN(calculations!C79))^3,4*alpha*(SIN(currentF)^3)) -> 7.319144217 | L75: 72 | M75: =IF(calculations!C78<currentfa,calculations!F78,xcurrenta) -> -2.599214241 | N75: =IF(calculations!C78<currentfa,calculations!G78,ycurrenta) -> 8.258406421
A76: =IF(calculations!C80<currentF,alpha*(3*COS(calculations!C80)-COS(3*calculations!C80)),alpha*(3*COS(currentF)-COS(3*currentF))) -> -11.24406468 | B76: =IF(calculations!C80<currentF,4*alpha*(SIN(calculations!C80))^3,4*alpha*(SIN(currentF)^3)) -> 6.752999324 | L76: 73 | M76: =IF(calculations!C79<currentfa,calculations!F79,xcurrenta) -> -1.976815897 | N76: =IF(calculations!C79<currentfa,calculations!G79,ycurrenta) -> 8.128680444
A77: =IF(calculations!C81<currentF,alpha*(3*COS(calculations!C81)-COS(3*calculations!C81)),alpha*(3*COS(currentF)-COS(3*currentF))) -> -11.29661824 | B77: =IF(calculations!C81<currentF,4*alpha*(SIN(calculations!C81))^3,4*alpha*(SIN(currentF)^3)) -> 6.19792757 | L77: 74 | M77: =IF(calculations!C80<currentfa,calculations!F80,xcurrenta) -> -1.334203286 | N77: =IF(calculations!C80<currentfa,calculations!G80,ycurrenta) -> 7.98511796
A78: =IF(calculations!C82<currentF,alpha*(3*COS(calculations!C82)-COS(3*calculations!C82)),alpha*(3*COS(currentF)-COS(3*currentF))) -> -11.3137085 | B78: =IF(calculations!C82<currentF,4*alpha*(SIN(calculations!C82))^3,4*alpha*(SIN(currentF)^3)) -> 5.656854249 | L78: 75 | M78: =IF(calculations!C81<currentfa,calculations!F81,xcurrenta) -> -0.6742564299 | N78: =IF(calculations!C81<currentfa,calculations!G81,ycurrenta) -> 7.827802476
A79: =IF(calculations!C83<currentF,alpha*(3*COS(calculations!C83)-COS(3*calculations!C83)),alpha*(3*COS(currentF)-COS(3*currentF))) -> -11.29731949 | B79: =IF(calculations!C83<currentF,4*alpha*(SIN(calculations!C83))^3,4*alpha*(SIN(currentF)^3)) -> 5.1325123 | L79: 76 | M79: =IF(calculations!C82<currentfa,calculations!F82,xcurrenta) -> -1.989964614e-15 | N79: =IF(calculations!C82<currentfa,calculations!G82,ycurrenta) -> 7.656854249
A80: =IF(calculations!C84<currentF,alpha*(3*COS(calculations!C84)-COS(3*calculations!C84)),alpha*(3*COS(currentF)-COS(3*currentF))) -> -11.24966635 | B80: =IF(calculations!C84<currentF,4*alpha*(SIN(calculations!C84))^3,4*alpha*(SIN(currentF)^3)) -> 4.627420087 | L80: 77 | M80: =IF(calculations!C83<currentfa,calculations!F83,xcurrenta) -> 0.6854134316 | N80: =IF(calculations!C83<currentfa,calculations!G83,ycurrenta) -> 7.472430304
A81: =IF(calculations!C85<currentF,alpha*(3*COS(calculations!C85)-COS(3*calculations!C85)),alpha*(3*COS(currentF)-COS(3*currentF))) -> -11.17317361 | B81: =IF(calculations!C85<currentF,4*alpha*(SIN(calculations!C85))^3,4*alpha*(SIN(currentF)^3)) -> 4.143861157 | L81: 78 | M81: =IF(calculations!C84<currentfa,calculations!F84,xcurrenta) -> 1.378721252 | N81: =IF(calculations!C84<currentfa,calculations!G84,ycurrenta) -> 7.274724325
A82: =IF(calculations!C86<currentF,alpha*(3*COS(calculations!C86)-COS(3*calculations!C86)),alpha*(3*COS(currentF)-COS(3*currentF))) -> -11.07045171 | B82: =IF(calculations!C86<currentF,4*alpha*(SIN(calculations!C86))^3,4*alpha*(SIN(currentF)^3)) -> 3.683866141 | L82: 79 | M82: =IF(calculations!C85<currentfa,calculations!F85,xcurrenta) -> 1.378721252 | N82: =IF(calculations!C85<currentfa,calculations!G85,ycurrenta) -> 7.274724325
A83: =IF(calculations!C87<currentF,alpha*(3*COS(calculations!C87)-COS(3*calculations!C87)),alpha*(3*COS(currentF)-COS(3*currentF))) -> -10.94427191 | B83: =IF(calculations!C87<currentF,4*alpha*(SIN(calculations!C87))^3,4*alpha*(SIN(currentF)^3)) -> 3.249196962 | L83: 80 | M83: =IF(calculations!C86<currentfa,calculations!F86,xcurrenta) -> 1.378721252 | N83: =IF(calculations!C86<currentfa,calculations!G86,ycurrenta) -> 7.274724325
A84: =IF(calculations!C88<currentF,alpha*(3*COS(calculations!C88)-COS(3*calculations!C88)),alpha*(3*COS(currentF)-COS(3*currentF))) -> -10.79753986 | B84: =IF(calculations!C88<currentF,4*alpha*(SIN(calculations!C88))^3,4*alpha*(SIN(currentF)^3)) -> 2.841333486 | L84: 81 | M84: =IF(calculations!C87<currentfa,calculations!F87,xcurrenta) -> 1.378721252 | N84: =IF(calculations!C87<currentfa,calculations!G87,ycurrenta) -> 7.274724325
A85: =IF(calculations!C89<currentF,alpha*(3*COS(calculations!C89)-COS(3*calculations!C89)),alpha*(3*COS(currentF)-COS(3*currentF))) -> -10.63326804 | B85: =IF(calculations!C89<currentF,4*alpha*(SIN(calculations!C89))^3,4*alpha*(SIN(currentF)^3)) -> 2.461462734 | L85: 82 | M85: =IF(calculations!C88<currentfa,calculations!F88,xcurrenta) -> 1.378721252 | N85: =IF(calculations!C88<currentfa,calculations!G88,ycurrenta) -> 7.274724325
A86: =IF(calculations!C90<currentF,alpha*(3*COS(calculations!C90)-COS(3*calculations!C90)),alpha*(3*COS(currentF)-COS(3*currentF))) -> -10.45454736 | B86: =IF(calculations!C90<currentF,4*alpha*(SIN(calculations!C90))^3,4*alpha*(SIN(currentF)^3)) -> 2.110470748 | L86: 83 | M86: =IF(calculations!C89<currentfa,calculations!F89,xcurrenta) -> 1.378721252 | N86: =IF(calculations!C89<currentfa,calculations!G89,ycurrenta) -> 7.274724325
A87: =IF(calculations!C91<currentF,alpha*(3*COS(calculations!C91)-COS(3*calculations!C91)),alpha*(3*COS(currentF)-COS(3*currentF))) -> -10.26451808 | B87: =IF(calculations!C91<currentF,4*alpha*(SIN(calculations!C91))^3,4*alpha*(SIN(currentF)^3)) -> 1.788937176 | L87: 84 | M87: =IF(calculations!C90<currentfa,calculations!F90,xcurrenta) -> 1.378721252 | N87: =IF(calculations!C90<currentfa,calculations!G90,ycurrenta) -> 7.274724325
A88: =IF(calculations!C92<currentF,alpha*(3*COS(calculations!C92)-COS(3*calculations!C92)),alpha*(3*COS(currentF)-COS(3*currentF))) -> -10.06634043 | B88: =IF(calculations!C92<currentF,4*alpha*(SIN(calculations!C92))^3,4*alpha*(SIN(currentF)^3)) -> 1.497132634 | L88: 85 | M88: =IF(calculations!C91<currentfa,calculations!F91,xcurrenta) -> 1.378721252 | N88: =IF(calculations!C91<currentfa,calculations!G91,ycurrenta) -> 7.274724325
A89: =IF(calculations!C93<currentF,alpha*(3*COS(calculations!C93)-COS(3*calculations!C93)),alpha*(3*COS(currentF)-COS(3*currentF))) -> -9.863165081 | B89: =IF(calculations!C93<currentF,4*alpha*(SIN(calculations!C93))^3,4*alpha*(SIN(currentF)^3)) -> 1.235018854 | L89: 86 | M89: =IF(calculations!C92<currentfa,calculations!F92,xcurrenta) -> 1.378721252 | N89: =IF(calculations!C92<currentfa,calculations!G92,ycurrenta) -> 7.274724325
A90: =IF(calculations!C94<currentF,alpha*(3*COS(calculations!C94)-COS(3*calculations!C94)),alpha*(3*COS(currentF)-COS(3*currentF))) -> -9.658103827 | B90: =IF(calculations!C94<currentF,4*alpha*(SIN(calculations!C94))^3,4*alpha*(SIN(currentF)^3)) -> 1.002251612 | L90: 87 | M90: =IF(calculations!C93<currentfa,calculations!F93,xcurrenta) -> 1.378721252 | N90: =IF(calculations!C93<currentfa,calculations!G93,ycurrenta) -> 7.274724325
A91: =IF(calculations!C95<currentF,alpha*(3*COS(calculations!C95)-COS(3*calculations!C95)),alpha*(3*COS(currentF)-COS(3*currentF))) -> -9.454200664 | B91: =IF(calculations!C95<currentF,4*alpha*(SIN(calculations!C95))^3,4*alpha*(SIN(currentF)^3)) -> 0.7981864224 | L91: 88 | M91: =IF(calculations!C94<currentfa,calculations!F94,xcurrenta) -> 1.378721252 | N91: =IF(calculations!C94<currentfa,calculations!G94,ycurrenta) -> 7.274724325
A92: =IF(calculations!C96<currentF,alpha*(3*COS(calculations!C96)-COS(3*calculations!C96)),alpha*(3*COS(currentF)-COS(3*currentF))) -> -9.254403564 | B92: =IF(calculations!C96<currentF,4*alpha*(SIN(calculations!C96))^3,4*alpha*(SIN(currentF)^3)) -> 0.6218869349 | L92: 89 | M92: =IF(calculations!C95<currentfa,calculations!F95,xcurrenta) -> 1.378721252 | N92: =IF(calculations!C95<currentfa,calculations!G95,ycurrenta) -> 7.274724325
A93: =IF(calculations!C97<currentF,alpha*(3*COS(calculations!C97)-COS(3*calculations!C97)),alpha*(3*COS(currentF)-COS(3*currentF))) -> -9.061537186 | B93: =IF(calculations!C97<currentF,4*alpha*(SIN(calculations!C97))^3,4*alpha*(SIN(currentF)^3)) -> 0.472135955 | L93: 90 | M93: =IF(calculations!C96<currentfa,calculations!F96,xcurrenta) -> 1.378721252 | N93: =IF(calculations!C96<currentfa,calculations!G96,ycurrenta) -> 7.274724325
A94: =IF(calculations!C98<currentF,alpha*(3*COS(calculations!C98)-COS(3*calculations!C98)),alpha*(3*COS(currentF)-COS(3*currentF))) -> -8.878276767 | B94: =IF(calculations!C98<currentF,4*alpha*(SIN(calculations!C98))^3,4*alpha*(SIN(currentF)^3)) -> 0.3474489939 | L94: 91 | M94: =IF(calculations!C97<currentfa,calculations!F97,xcurrenta) -> 1.378721252 | N94: =IF(calculations!C97<currentfa,calculations!G97,ycurrenta) -> 7.274724325
A95: =IF(calculations!C99<currentF,alpha*(3*COS(calculations!C99)-COS(3*calculations!C99)),alpha*(3*COS(currentF)-COS(3*currentF))) -> -8.707123424 | B95: =IF(calculations!C99<currentF,4*alpha*(SIN(calculations!C99))^3,4*alpha*(SIN(currentF)^3)) -> 0.2460902223 | L95: 92 | M95: =IF(calculations!C98<currentfa,calculations!F98,xcurrenta) -> 1.378721252 | N95: =IF(calculations!C98<currentfa,calculations!G98,ycurrenta) -> 7.274724325
A96: =IF(calculations!C100<currentF,alpha*(3*COS(calculations!C100)-COS(3*calculations!C100)),alpha*(3*COS(currentF)-COS(3*currentF))) -> -8.550381094 | B96: =IF(calculations!C100<currentF,4*alpha*(SIN(calculations!C100))^3,4*alpha*(SIN(currentF)^3)) -> 0.1660906821 | L96: 93 | M96: =IF(calculations!C99<currentfa,calculations!F99,xcurrenta) -> 1.378721252 | N96: =IF(calculations!C99<currentfa,calculations!G99,ycurrenta) -> 7.274724325
A97: =IF(calculations!C101<currentF,alpha*(3*COS(calculations!C101)-COS(3*calculations!C101)),alpha*(3*COS(currentF)-COS(3*currentF))) -> -8.410135307 | B97: =IF(calculations!C101<currentF,4*alpha*(SIN(calculations!C101))^3,4*alpha*(SIN(currentF)^3)) -> 0.1052685951 | L97: 94 | M97: =IF(calculations!C100<currentfa,calculations!F100,xcurrenta) -> 1.378721252 | N97: =IF(calculations!C100<currentfa,calculations!G100,ycurrenta) -> 7.274724325
A98: =IF(calculations!C102<currentF,alpha*(3*COS(calculations!C102)-COS(3*calculations!C102)),alpha*(3*COS(currentF)-COS(3*currentF))) -> -8.28823399 | B98: =IF(calculations!C102<currentF,4*alpha*(SIN(calculations!C102))^3,4*alpha*(SIN(currentF)^3)) -> 0.06125158152 | L98: 95 | M98: =IF(calculations!C101<currentfa,calculations!F101,xcurrenta) -> 1.378721252 | N98: =IF(calculations!C101<currentfa,calculations!G101,ycurrenta) -> 7.274724325
A99: =IF(calculations!C103<currentF,alpha*(3*COS(calculations!C103)-COS(3*calculations!C103)),alpha*(3*COS(currentF)-COS(3*currentF))) -> -8.186270472 | B99: =IF(calculations!C103<currentF,4*alpha*(SIN(calculations!C103))^3,4*alpha*(SIN(currentF)^3)) -> 0.03150059203 | L99: 96 | M99: =IF(calculations!C102<currentfa,calculations!F102,xcurrenta) -> 1.378721252 | N99: =IF(calculations!C102<currentfa,calculations!G102,ycurrenta) -> 7.274724325
A100: =IF(calculations!C104<currentF,alpha*(3*COS(calculations!C104)-COS(3*calculations!C104)),alpha*(3*COS(currentF)-COS(3*currentF))) -> -8.105568833 | B100: =IF(calculations!C104<currentF,4*alpha*(SIN(calculations!C104))^3,4*alpha*(SIN(currentF)^3)) -> 0.01333533567 | L100: 97 | M100: =IF(calculations!C103<currentfa,calculations!F103,xcurrenta) -> 1.378721252 | N100: =IF(calculations!C103<currentfa,calculations!G103,ycurrenta) -> 7.274724325
A101: =IF(calculations!C105<currentF,alpha*(3*COS(calculations!C105)-COS(3*calculations!C105)),alpha*(3*COS(currentF)-COS(3*currentF))) -> -8.047171738 | B101: =IF(calculations!C105<currentF,4*alpha*(SIN(calculations!C105))^3,4*alpha*(SIN(currentF)^3)) -> 0.003960976009 | L101: 98 | M101: =IF(calculations!C104<currentfa,calculations!F104,xcurrenta) -> 1.378721252 | N101: =IF(calculations!C104<currentfa,calculations!G104,ycurrenta) -> 7.274724325
A102: =IF(calculations!C106<currentF,alpha*(3*COS(calculations!C106)-COS(3*calculations!C106)),alpha*(3*COS(currentF)-COS(3*currentF))) -> -8.011830866 | B102: =IF(calculations!C106<currentF,4*alpha*(SIN(calculations!C106))^3,4*alpha*(SIN(currentF)^3)) -> 0.0004958556635 | L102: 99 | M102: =IF(calculations!C105<currentfa,calculations!F105,xcurrenta) -> 1.378721252 | N102: =IF(calculations!C105<currentfa,calculations!G105,ycurrenta) -> 7.274724325
A103: =IF(calculations!C107<currentF,alpha*(3*COS(calculations!C107)-COS(3*calculations!C107)),alpha*(3*COS(currentF)-COS(3*currentF))) -> -8 | B103: =IF(calculations!C107<currentF,4*alpha*(SIN(calculations!C107))^3,4*alpha*(SIN(currentF)^3)) -> 1.520504043e-42 | L103: 100 | M103: =IF(calculations!C106<currentfa,calculations!F106,xcurrenta) -> 1.378721252 | N103: =IF(calculations!C106<currentfa,calculations!G106,ycurrenta) -> 7.274724325
A104: =IF(calculations!C108<currentF,alpha*(3*COS(calculations!C108)-COS(3*calculations!C108)),alpha*(3*COS(currentF)-COS(3*currentF))) -> -8.011830866 | B104: =IF(calculations!C108<currentF,4*alpha*(SIN(calculations!C108))^3,4*alpha*(SIN(currentF)^3)) -> -0.0004958556635 | L104: 101 | M104: =IF(calculations!C107<currentfa,calculations!F107,xcurrenta) -> 1.378721252 | N104: =IF(calculations!C107<currentfa,calculations!G107,ycurrenta) -> 7.274724325
A105: =IF(calculations!C109<currentF,alpha*(3*COS(calculations!C109)-COS(3*calculations!C109)),alpha*(3*COS(currentF)-COS(3*currentF))) -> -8.047171738 | B105: =IF(calculations!C109<currentF,4*alpha*(SIN(calculations!C109))^3,4*alpha*(SIN(currentF)^3)) -> -0.003960976009 | L105: 102 | M105: =IF(calculations!C108<currentfa,calculations!F108,xcurrenta) -> 1.378721252 | N105: =IF(calculations!C108<currentfa,calculations!G108,ycurrenta) -> 7.274724325
A106: =IF(calculations!C110<currentF,alpha*(3*COS(calculations!C110)-COS(3*calculations!C110)),alpha*(3*COS(currentF)-COS(3*currentF))) -> -8.105568833 | B106: =IF(calculations!C110<currentF,4*alpha*(SIN(calculations!C110))^3,4*alpha*(SIN(currentF)^3)) -> -0.01333533567 | L106: 103 | M106: =IF(calculations!C109<currentfa,calculations!F109,xcurrenta) -> 1.378721252 | N106: =IF(calculations!C109<currentfa,calculations!G109,ycurrenta) -> 7.274724325
A107: =IF(calculations!C111<currentF,alpha*(3*COS(calculations!C111)-COS(3*calculations!C111)),alpha*(3*COS(currentF)-COS(3*currentF))) -> -8.186270472 | B107: =IF(calculations!C111<currentF,4*alpha*(SIN(calculations!C111))^3,4*alpha*(SIN(currentF)^3)) -> -0.03150059203 | L107: 104 | M107: =IF(calculations!C110<currentfa,calculations!F110,xcurrenta) -> 1.378721252 | N107: =IF(calculations!C110<currentfa,calculations!G110,ycurrenta) -> 7.274724325
A108: =IF(calculations!C112<currentF,alpha*(3*COS(calculations!C112)-COS(3*calculations!C112)),alpha*(3*COS(currentF)-COS(3*currentF))) -> -8.28823399 | B108: =IF(calculations!C112<currentF,4*alpha*(SIN(calculations!C112))^3,4*alpha*(SIN(currentF)^3)) -> -0.06125158152 | L108: 105 | M108: =IF(calculations!C111<currentfa,calculations!F111,xcurrenta) -> 1.378721252 | N108: =IF(calculations!C111<currentfa,calculations!G111,ycurrenta) -> 7.274724325
A109: =IF(calculations!C113<currentF,alpha*(3*COS(calculations!C113)-COS(3*calculations!C113)),alpha*(3*COS(currentF)-COS(3*currentF))) -> -8.410135307 | B109: =IF(calculations!C113<currentF,4*alpha*(SIN(calculations!C113))^3,4*alpha*(SIN(currentF)^3)) -> -0.1052685951 | L109: 106 | M109: =IF(calculations!C112<currentfa,calculations!F112,xcurrenta) -> 1.378721252 | N109: =IF(calculations!C112<currentfa,calculations!G112,ycurrenta) -> 7.274724325
A110: =IF(calculations!C114<currentF,alpha*(3*COS(calculations!C114)-COS(3*calculations!C114)),alpha*(3*COS(currentF)-COS(3*currentF))) -> -8.550381094 | B110: =IF(calculations!C114<currentF,4*alpha*(SIN(calculations!C114))^3,4*alpha*(SIN(currentF)^3)) -> -0.1660906821 | L110: 107 | M110: =IF(calculations!C113<currentfa,calculations!F113,xcurrenta) -> 1.378721252 | N110: =IF(calculations!C113<currentfa,calculations!G113,ycurrenta) -> 7.274724325
A111: =IF(calculations!C115<currentF,alpha*(3*COS(calculations!C115)-COS(3*calculations!C115)),alpha*(3*COS(currentF)-COS(3*currentF))) -> -8.707123424 | B111: =IF(calculations!C115<currentF,4*alpha*(SIN(calculations!C115))^3,4*alpha*(SIN(currentF)^3)) -> -0.2460902223 | L111: 108 | M111: =IF(calculations!C114<currentfa,calculations!F114,xcurrenta) -> 1.378721252 | N111: =IF(calculations!C114<currentfa,calculations!G114,ycurrenta) -> 7.274724325
A112: =IF(calculations!C116<currentF,alpha*(3*COS(calculations!C116)-COS(3*calculations!C116)),alpha*(3*COS(currentF)-COS(3*currentF))) -> -8.878276767 | B112: =IF(calculations!C116<currentF,4*alpha*(SIN(calculations!C116))^3,4*alpha*(SIN(currentF)^3)) -> -0.3474489939 | L112: 109 | M112: =IF(calculations!C115<currentfa,calculations!F115,xcurrenta) -> 1.378721252 | N112: =IF(calculations!C115<currentfa,calculations!G115,ycurrenta) -> 7.274724325
A113: =IF(calculations!C117<currentF,alpha*(3*COS(calculations!C117)-COS(3*calculations!C117)),alpha*(3*COS(currentF)-COS(3*currentF))) -> -9.061537186 | B113: =IF(calculations!C117<currentF,4*alpha*(SIN(calculations!C117))^3,4*alpha*(SIN(currentF)^3)) -> -0.472135955 | L113: 110 | M113: =IF(calculations!C116<currentfa,calculations!F116,xcurrenta) -> 1.378721252 | N113: =IF(calculations!C116<currentfa,calculations!G116,ycurrenta) -> 7.274724325
A114: =IF(calculations!C118<currentF,alpha*(3*COS(calculations!C118)-COS(3*calculations!C118)),alpha*(3*COS(currentF)-COS(3*currentF))) -> -9.254403564 | B114: =IF(calculations!C118<currentF,4*alpha*(SIN(calculations!C118))^3,4*alpha*(SIN(currentF)^3)) -> -0.6218869349 | L114: 111 | M114: =IF(calculations!C117<currentfa,calculations!F117,xcurrenta) -> 1.378721252 | N114: =IF(calculations!C117<currentfa,calculations!G117,ycurrenta) -> 7.274724325
A115: =IF(calculations!C119<currentF,alpha*(3*COS(calculations!C119)-COS(3*calculations!C119)),alpha*(3*COS(currentF)-COS(3*currentF))) -> -9.454200664 | B115: =IF(calculations!C119<currentF,4*alpha*(SIN(calculations!C119))^3,4*alpha*(SIN(currentF)^3)) -> -0.7981864224 | L115: 112 | M115: =IF(calculations!C118<currentfa,calculations!F118,xcurrenta) -> 1.378721252 | N115: =IF(calculations!C118<currentfa,calculations!G118,ycurrenta) -> 7.274724325
A116: =IF(calculations!C120<currentF,alpha*(3*COS(calculations!C120)-COS(3*calculations!C120)),alpha*(3*COS(currentF)-COS(3*currentF))) -> -9.658103827 | B116: =IF(calculations!C120<currentF,4*alpha*(SIN(calculations!C120))^3,4*alpha*(SIN(currentF)^3)) -> -1.002251612 | L116: 113 | M116: =IF(calculations!C119<currentfa,calculations!F119,xcurrenta) -> 1.378721252 | N116: =IF(calculations!C119<currentfa,calculations!G119,ycurrenta) -> 7.274724325
A117: =IF(calculations!C121<currentF,alpha*(3*COS(calculations!C121)-COS(3*calculations!C121)),alpha*(3*COS(currentF)-COS(3*currentF))) -> -9.863165081 | B117: =IF(calculations!C121<currentF,4*alpha*(SIN(calculations!C121))^3,4*alpha*(SIN(currentF)^3)) -> -1.235018854 | L117: 114 | M117: =IF(calculations!C120<currentfa,calculations!F120,xcurrenta) -> 1.378721252 | N117: =IF(calculations!C120<currentfa,calculations!G120,ycurrenta) -> 7.274724325
A118: =IF(calculations!C122<currentF,alpha*(3*COS(calculations!C122)-COS(3*calculations!C122)),alpha*(3*COS(currentF)-COS(3*currentF))) -> -10.06634043 | B118: =IF(calculations!C122<currentF,4*alpha*(SIN(calculations!C122))^3,4*alpha*(SIN(currentF)^3)) -> -1.497132634 | L118: 115 | M118: =IF(calculations!C121<currentfa,calculations!F121,xcurrenta) -> 1.378721252 | N118: =IF(calculations!C121<currentfa,calculations!G121,ycurrenta) -> 7.274724325
A119: =IF(calculations!C123<currentF,alpha*(3*COS(calculations!C123)-COS(3*calculations!C123)),alpha*(3*COS(currentF)-COS(3*currentF))) -> -10.26451808 | B119: =IF(calculations!C123<currentF,4*alpha*(SIN(calculations!C123))^3,4*alpha*(SIN(currentF)^3)) -> -1.788937176 | L119: 116 | M119: =IF(calculations!C122<currentfa,calculations!F122,xcurrenta) -> 1.378721252 | N119: =IF(calculations!C122<currentfa,calculations!G122,ycurrenta) -> 7.274724325
A120: =IF(calculations!C124<currentF,alpha*(3*COS(calculations!C124)-COS(3*calculations!C124)),alpha*(3*COS(currentF)-COS(3*currentF))) -> -10.45454736 | B120: =IF(calculations!C124<currentF,4*alpha*(SIN(calculations!C124))^3,4*alpha*(SIN(currentF)^3)) -> -2.110470748 | L120: 117 | M120: =IF(calculations!C123<currentfa,calculations!F123,xcurrenta) -> 1.378721252 | N120: =IF(calculations!C123<currentfa,calculations!G123,ycurrenta) -> 7.274724325
A121: =IF(calculations!C125<currentF,alpha*(3*COS(calculations!C125)-COS(3*calculations!C125)),alpha*(3*COS(currentF)-COS(3*currentF))) -> -10.63326804 | B121: =IF(calculations!C125<currentF,4*alpha*(SIN(calculations!C125))^3,4*alpha*(SIN(currentF)^3)) -> -2.461462734 | L121: 118 | M121: =IF(calculations!C124<currentfa,calculations!F124,xcurrenta) -> 1.378721252 | N121: =IF(calculations!C124<currentfa,calculations!G124,ycurrenta) -> 7.274724325
A122: =IF(calculations!C126<currentF,alpha*(3*COS(calculations!C126)-COS(3*calculations!C126)),alpha*(3*COS(currentF)-COS(3*currentF))) -> -10.79753986 | B122: =IF(calculations!C126<currentF,4*alpha*(SIN(calculations!C126))^3,4*alpha*(SIN(currentF)^3)) -> -2.841333486 | L122: 119 | M122: =IF(calculations!C125<currentfa,calculations!F125,xcurrenta) -> 1.378721252 | N122: =IF(calculations!C125<currentfa,calculations!G125,ycurrenta) -> 7.274724325
A123: =IF(calculations!C127<currentF,alpha*(3*COS(calculations!C127)-COS(3*calculations!C127)),alpha*(3*COS(currentF)-COS(3*currentF))) -> -10.94427191 | B123: =IF(calculations!C127<currentF,4*alpha*(SIN(calculations!C127))^3,4*alpha*(SIN(currentF)^3)) -> -3.249196962 | L123: 120 | M123: =IF(calculations!C126<currentfa,calculations!F126,xcurrenta) -> 1.378721252 | N123: =IF(calculations!C126<currentfa,calculations!G126,ycurrenta) -> 7.274724325
A124: =IF(calculations!C128<currentF,alpha*(3*COS(calculations!C128)-COS(3*calculations!C128)),alpha*(3*COS(currentF)-COS(3*currentF))) -> -11.07045171 | B124: =IF(calculations!C128<currentF,4*alpha*(SIN(calculations!C128))^3,4*alpha*(SIN(currentF)^3)) -> -3.683866141 | L124: 121 | M124: =IF(calculations!C127<currentfa,calculations!F127,xcurrenta) -> 1.378721252 | N124: =IF(calculations!C127<currentfa,calculations!G127,ycurrenta) -> 7.274724325
A125: =IF(calculations!C129<currentF,alpha*(3*COS(calculations!C129)-COS(3*calculations!C129)),alpha*(3*COS(currentF)-COS(3*currentF))) -> -11.17317361 | B125: =IF(calculations!C129<currentF,4*alpha*(SIN(calculations!C129))^3,4*alpha*(SIN(currentF)^3)) -> -4.143861157 | L125: 122 | M125: =IF(calculations!C128<currentfa,calculations!F128,xcurrenta) -> 1.378721252 | N125: =IF(calculations!C128<currentfa,calculations!G128,ycurrenta) -> 7.274724325
A126: =IF(calculations!C130<currentF,alpha*(3*COS(calculations!C130)-COS(3*calculations!C130)),alpha*(3*COS(currentF)-COS(3*currentF))) -> -11.2426567 | B126: =IF(calculations!C130<currentF,4*alpha*(SIN(calculations!C130))^3,4*alpha*(SIN(currentF)^3)) -> -4.573425278 | L126: 123 | M126: =IF(calculations!C129<currentfa,calculations!F129,xcurrenta) -> 1.378721252 | N126: =IF(calculations!C129<currentfa,calculations!G129,ycurrenta) -> 7.274724325
A127: =IF(calculations!C131<currentF,alpha*(3*COS(calculations!C131)-COS(3*calculations!C131)),alpha*(3*COS(currentF)-COS(3*currentF))) -> -11.2426567 | B127: =IF(calculations!C131<currentF,4*alpha*(SIN(calculations!C131))^3,4*alpha*(SIN(currentF)^3)) -> -4.573425278 | L127: 124 | M127: =IF(calculations!C130<currentfa,calculations!F130,xcurrenta) -> 1.378721252 | N127: =IF(calculations!C130<currentfa,calculations!G130,ycurrenta) -> 7.274724325
A128: =IF(calculations!C132<currentF,alpha*(3*COS(calculations!C132)-COS(3*calculations!C132)),alpha*(3*COS(currentF)-COS(3*currentF))) -> -11.2426567 | B128: =IF(calculations!C132<currentF,4*alpha*(SIN(calculations!C132))^3,4*alpha*(SIN(currentF)^3)) -> -4.573425278 | L128: 125 | M128: =IF(calculations!C131<currentfa,calculations!F131,xcurrenta) -> 1.378721252 | N128: =IF(calculations!C131<currentfa,calculations!G131,ycurrenta) -> 7.274724325
A129: =IF(calculations!C133<currentF,alpha*(3*COS(calculations!C133)-COS(3*calculations!C133)),alpha*(3*COS(currentF)-COS(3*currentF))) -> -11.2426567 | B129: =IF(calculations!C133<currentF,4*alpha*(SIN(calculations!C133))^3,4*alpha*(SIN(currentF)^3)) -> -4.573425278 | L129: 126 | M129: =IF(calculations!C132<currentfa,calculations!F132,xcurrenta) -> 1.378721252 | N129: =IF(calculations!C132<currentfa,calculations!G132,ycurrenta) -> 7.274724325
A130: =IF(calculations!C134<currentF,alpha*(3*COS(calculations!C134)-COS(3*calculations!C134)),alpha*(3*COS(currentF)-COS(3*currentF))) -> -11.2426567 | B130: =IF(calculations!C134<currentF,4*alpha*(SIN(calculations!C134))^3,4*alpha*(SIN(currentF)^3)) -> -4.573425278 | L130: 127 | M130: =IF(calculations!C133<currentfa,calculations!F133,xcurrenta) -> 1.378721252 | N130: =IF(calculations!C133<currentfa,calculations!G133,ycurrenta) -> 7.274724325
A131: =IF(calculations!C135<currentF,alpha*(3*COS(calculations!C135)-COS(3*calculations!C135)),alpha*(3*COS(currentF)-COS(3*currentF))) -> -11.2426567 | B131: =IF(calculations!C135<currentF,4*alpha*(SIN(calculations!C135))^3,4*alpha*(SIN(currentF)^3)) -> -4.573425278 | L131: 128 | M131: =IF(calculations!C134<currentfa,calculations!F134,xcurrenta) -> 1.378721252 | N131: =IF(calculations!C134<currentfa,calculations!G134,ycurrenta) -> 7.274724325
A132: =IF(calculations!C136<currentF,alpha*(3*COS(calculations!C136)-COS(3*calculations!C136)),alpha*(3*COS(currentF)-COS(3*currentF))) -> -11.2426567 | B132: =IF(calculations!C136<currentF,4*alpha*(SIN(calculations!C136))^3,4*alpha*(SIN(currentF)^3)) -> -4.573425278 | L132: 129 | M132: =IF(calculations!C135<currentfa,calculations!F135,xcurrenta) -> 1.378721252 | N132: =IF(calculations!C135<currentfa,calculations!G135,ycurrenta) -> 7.274724325
A133: =IF(calculations!C137<currentF,alpha*(3*COS(calculations!C137)-COS(3*calculations!C137)),alpha*(3*COS(currentF)-COS(3*currentF))) -> -11.2426567 | B133: =IF(calculations!C137<currentF,4*alpha*(SIN(calculations!C137))^3,4*alpha*(SIN(currentF)^3)) -> -4.573425278 | L133: 130 | M133: =IF(calculations!C136<currentfa,calculations!F136,xcurrenta) -> 1.378721252 | N133: =IF(calculations!C136<currentfa,calculations!G136,ycurrenta) -> 7.274724325
A134: =IF(calculations!C138<currentF,alpha*(3*COS(calculations!C138)-COS(3*calculations!C138)),alpha*(3*COS(currentF)-COS(3*currentF))) -> -11.2426567 | B134: =IF(calculations!C138<currentF,4*alpha*(SIN(calculations!C138))^3,4*alpha*(SIN(currentF)^3)) -> -4.573425278 | L134: =L133+1 -> 131 | M134: =IF(calculations!C137<currentfa,calculations!F137,xcurrenta) -> 1.378721252 | N134: =IF(calculations!C137<currentfa,calculations!G137,ycurrenta) -> 7.274724325
A135: =IF(calculations!C139<currentF,alpha*(3*COS(calculations!C139)-COS(3*calculations!C139)),alpha*(3*COS(currentF)-COS(3*currentF))) -> -11.2426567 | B135: =IF(calculations!C139<currentF,4*alpha*(SIN(calculations!C139))^3,4*alpha*(SIN(currentF)^3)) -> -4.573425278 | L135: 132 | M135: =IF(calculations!C138<currentfa,calculations!F138,xcurrenta) -> 1.378721252 | N135: =IF(calculations!C138<currentfa,calculations!G138,ycurrenta) -> 7.274724325
A136: =IF(calculations!C140<currentF,alpha*(3*COS(calculations!C140)-COS(3*calculations!C140)),alpha*(3*COS(currentF)-COS(3*currentF))) -> -11.2426567 | B136: =IF(calculations!C140<currentF,4*alpha*(SIN(calculations!C140))^3,4*alpha*(SIN(currentF)^3)) -> -4.573425278 | L136: 133 | M136: =IF(calculations!C139<currentfa,calculations!F139,xcurrenta) -> 1.378721252 | N136: =IF(calculations!C139<currentfa,calculations!G139,ycurrenta) -> 7.274724325
A137: =IF(calculations!C141<currentF,alpha*(3*COS(calculations!C141)-COS(3*calculations!C141)),alpha*(3*COS(currentF)-COS(3*currentF))) -> -11.2426567 | B137: =IF(calculations!C141<currentF,4*alpha*(SIN(calculations!C141))^3,4*alpha*(SIN(currentF)^3)) -> -4.573425278 | L137: 134 | M137: =IF(calculations!C140<currentfa,calculations!F140,xcurrenta) -> 1.378721252 | N137: =IF(calculations!C140<currentfa,calculations!G140,ycurrenta) -> 7.274724325
A138: =IF(calculations!C142<currentF,alpha*(3*COS(calculations!C142)-COS(3*calculations!C142)),alpha*(3*COS(currentF)-COS(3*currentF))) -> -11.2426567 | B138: =IF(calculations!C142<currentF,4*alpha*(SIN(calculations!C142))^3,4*alpha*(SIN(currentF)^3)) -> -4.573425278 | L138: 135 | M138: =IF(calculations!C141<currentfa,calculations!F141,xcurrenta) -> 1.378721252 | N138: =IF(calculations!C141<currentfa,calculations!G141,ycurrenta) -> 7.274724325
A139: =IF(calculations!C143<currentF,alpha*(3*COS(calculations!C143)-COS(3*calculations!C143)),alpha*(3*COS(currentF)-COS(3*currentF))) -> -11.2426567 | B139: =IF(calculations!C143<currentF,4*alpha*(SIN(calculations!C143))^3,4*alpha*(SIN(currentF)^3)) -> -4.573425278 | L139: 136 | M139: =IF(calculations!C142<currentfa,calculations!F142,xcurrenta) -> 1.378721252 | N139: =IF(calculations!C142<currentfa,calculations!G142,ycurrenta) -> 7.274724325
A140: =IF(calculations!C144<currentF,alpha*(3*COS(calculations!C144)-COS(3*calculations!C144)),alpha*(3*COS(currentF)-COS(3*currentF))) -> -11.2426567 | B140: =IF(calculations!C144<currentF,4*alpha*(SIN(calculations!C144))^3,4*alpha*(SIN(currentF)^3)) -> -4.573425278 | L140: 137 | M140: =IF(calculations!C143<currentfa,calculations!F143,xcurrenta) -> 1.378721252 | N140: =IF(calculations!C143<currentfa,calculations!G143,ycurrenta) -> 7.274724325
A141: =IF(calculations!C145<currentF,alpha*(3*COS(calculations!C145)-COS(3*calculations!C145)),alpha*(3*COS(currentF)-COS(3*currentF))) -> -11.2426567 | B141: =IF(calculations!C145<currentF,4*alpha*(SIN(calculations!C145))^3,4*alpha*(SIN(currentF)^3)) -> -4.573425278 | L141: 138 | M141: =IF(calculations!C144<currentfa,calculations!F144,xcurrenta) -> 1.378721252 | N141: =IF(calculations!C144<currentfa,calculations!G144,ycurrenta) -> 7.274724325
A142: =IF(calculations!C146<currentF,alpha*(3*COS(calculations!C146)-COS(3*calculations!C146)),alpha*(3*COS(currentF)-COS(3*currentF))) -> -11.2426567 | B142: =IF(calculations!C146<currentF,4*alpha*(SIN(calculations!C146))^3,4*alpha*(SIN(currentF)^3)) -> -4.573425278 | L142: 139 | M142: =IF(calculations!C145<currentfa,calculations!F145,xcurrenta) -> 1.378721252 | N142: =IF(calculations!C145<currentfa,calculations!G145,ycurrenta) -> 7.274724325
A143: =IF(calculations!C147<currentF,alpha*(3*COS(calculations!C147)-COS(3*calculations!C147)),alpha*(3*COS(currentF)-COS(3*currentF))) -> -11.2426567 | B143: =IF(calculations!C147<currentF,4*alpha*(SIN(calculations!C147))^3,4*alpha*(SIN(currentF)^3)) -> -4.573425278 | L143: 140 | M143: =IF(calculations!C146<currentfa,calculations!F146,xcurrenta) -> 1.378721252 | N143: =IF(calculations!C146<currentfa,calculations!G146,ycurrenta) -> 7.274724325
A144: =IF(calculations!C148<currentF,alpha*(3*COS(calculations!C148)-COS(3*calculations!C148)),alpha*(3*COS(currentF)-COS(3*currentF))) -> -11.2426567 | B144: =IF(calculations!C148<currentF,4*alpha*(SIN(calculations!C148))^3,4*alpha*(SIN(currentF)^3)) -> -4.573425278 | L144: 141 | M144: =IF(calculations!C147<currentfa,calculations!F147,xcurrenta) -> 1.378721252 | N144: =IF(calculations!C147<currentfa,calculations!G147,ycurrenta) -> 7.274724325
A145: =IF(calculations!C149<currentF,alpha*(3*COS(calculations!C149)-COS(3*calculations!C149)),alpha*(3*COS(currentF)-COS(3*currentF))) -> -11.2426567 | B145: =IF(calculations!C149<currentF,4*alpha*(SIN(calculations!C149))^3,4*alpha*(SIN(currentF)^3)) -> -4.573425278 | L145: 142 | M145: =IF(calculations!C148<currentfa,calculations!F148,xcurrenta) -> 1.378721252 | N145: =IF(calculations!C148<currentfa,calculations!G148,ycurrenta) -> 7.274724325
A146: =IF(calculations!C150<currentF,alpha*(3*COS(calculations!C150)-COS(3*calculations!C150)),alpha*(3*COS(currentF)-COS(3*currentF))) -> -11.2426567 | B146: =IF(calculations!C150<currentF,4*alpha*(SIN(calculations!C150))^3,4*alpha*(SIN(currentF)^3)) -> -4.573425278 | L146: 143 | M146: =IF(calculations!C149<currentfa,calculations!F149,xcurrenta) -> 1.378721252 | N146: =IF(calculations!C149<currentfa,calculations!G149,ycurrenta) -> 7.274724325
A147: =IF(calculations!C151<currentF,alpha*(3*COS(calculations!C151)-COS(3*calculations!C151)),alpha*(3*COS(currentF)-COS(3*currentF))) -> -11.2426567 | B147: =IF(calculations!C151<currentF,4*alpha*(SIN(calculations!C151))^3,4*alpha*(SIN(currentF)^3)) -> -4.573425278 | L147: 144 | M147: =IF(calculations!C150<currentfa,calculations!F150,xcurrenta) -> 1.378721252 | N147: =IF(calculations!C150<currentfa,calculations!G150,ycurrenta) -> 7.274724325
A148: =IF(calculations!C152<currentF,alpha*(3*COS(calculations!C152)-COS(3*calculations!C152)),alpha*(3*COS(currentF)-COS(3*currentF))) -> -11.2426567 | B148: =IF(calculations!C152<currentF,4*alpha*(SIN(calculations!C152))^3,4*alpha*(SIN(currentF)^3)) -> -4.573425278 | L148: 145 | M148: =IF(calculations!C151<currentfa,calculations!F151,xcurrenta) -> 1.378721252 | N148: =IF(calculations!C151<currentfa,calculations!G151,ycurrenta) -> 7.274724325
A149: =IF(calculations!C153<currentF,alpha*(3*COS(calculations!C153)-COS(3*calculations!C153)),alpha*(3*COS(currentF)-COS(3*currentF))) -> -11.2426567 | B149: =IF(calculations!C153<currentF,4*alpha*(SIN(calculations!C153))^3,4*alpha*(SIN(currentF)^3)) -> -4.573425278 | L149: 146 | M149: =IF(calculations!C152<currentfa,calculations!F152,xcurrenta) -> 1.378721252 | N149: =IF(calculations!C152<currentfa,calculations!G152,ycurrenta) -> 7.274724325
A150: =IF(calculations!C154<currentF,alpha*(3*COS(calculations!C154)-COS(3*calculations!C154)),alpha*(3*COS(currentF)-COS(3*currentF))) -> -11.2426567 | B150: =IF(calculations!C154<currentF,4*alpha*(SIN(calculations!C154))^3,4*alpha*(SIN(currentF)^3)) -> -4.573425278 | L150: 147 | M150: =IF(calculations!C153<currentfa,calculations!F153,xcurrenta) -> 1.378721252 | N150: =IF(calculations!C153<currentfa,calculations!G153,ycurrenta) -> 7.274724325
A151: =IF(calculations!C155<currentF,alpha*(3*COS(calculations!C155)-COS(3*calculations!C155)),alpha*(3*COS(currentF)-COS(3*currentF))) -> -11.2426567 | B151: =IF(calculations!C155<currentF,4*alpha*(SIN(calculations!C155))^3,4*alpha*(SIN(currentF)^3)) -> -4.573425278 | L151: 148 | M151: =IF(calculations!C154<currentfa,calculations!F154,xcurrenta) -> 1.378721252 | N151: =IF(calculations!C154<currentfa,calculations!G154,ycurrenta) -> 7.274724325
A152: =IF(calculations!C156<currentF,alpha*(3*COS(calculations!C156)-COS(3*calculations!C156)),alpha*(3*COS(currentF)-COS(3*currentF))) -> -11.2426567 | B152: =IF(calculations!C156<currentF,4*alpha*(SIN(calculations!C156))^3,4*alpha*(SIN(currentF)^3)) -> -4.573425278 | L152: 149 | M152: =IF(calculations!C155<currentfa,calculations!F155,xcurrenta) -> 1.378721252 | N152: =IF(calculations!C155<currentfa,calculations!G155,ycurrenta) -> 7.274724325
A153: =IF(calculations!C157<currentF,alpha*(3*COS(calculations!C157)-COS(3*calculations!C157)),alpha*(3*COS(currentF)-COS(3*currentF))) -> -11.2426567 | B153: =IF(calculations!C157<currentF,4*alpha*(SIN(calculations!C157))^3,4*alpha*(SIN(currentF)^3)) -> -4.573425278 | L153: 150 | M153: =IF(calculations!C156<currentfa,calculations!F156,xcurrenta) -> 1.378721252 | N153: =IF(calculations!C156<currentfa,calculations!G156,ycurrenta) -> 7.274724325
A154: =IF(calculations!C158<currentF,alpha*(3*COS(calculations!C158)-COS(3*calculations!C158)),alpha*(3*COS(currentF)-COS(3*currentF))) -> -11.2426567 | B154: =IF(calculations!C158<currentF,4*alpha*(SIN(calculations!C158))^3,4*alpha*(SIN(currentF)^3)) -> -4.573425278 | L154: 151 | M154: =IF(calculations!C157<currentfa,calculations!F157,xcurrenta) -> 1.378721252 | N154: =IF(calculations!C157<currentfa,calculations!G157,ycurrenta) -> 7.274724325
A155: =IF(calculations!C159<currentF,alpha*(3*COS(calculations!C159)-COS(3*calculations!C159)),alpha*(3*COS(currentF)-COS(3*currentF))) -> -11.2426567 | B155: =IF(calculations!C159<currentF,4*alpha*(SIN(calculations!C159))^3,4*alpha*(SIN(currentF)^3)) -> -4.573425278 | L155: 152 | M155: =IF(calculations!C158<currentfa,calculations!F158,xcurrenta) -> 1.378721252 | N155: =IF(calculations!C158<currentfa,calculations!G158,ycurrenta) -> 7.274724325
A156: =IF(calculations!C160<currentF,alpha*(3*COS(calculations!C160)-COS(3*calculations!C160)),alpha*(3*COS(currentF)-COS(3*currentF))) -> -11.2426567 | B156: =IF(calculations!C160<currentF,4*alpha*(SIN(calculations!C160))^3,4*alpha*(SIN(currentF)^3)) -> -4.573425278 | L156: 153 | M156: =IF(calculations!C159<currentfa,calculations!F159,xcurrenta) -> 1.378721252 | N156: =IF(calculations!C159<currentfa,calculations!G159,ycurrenta) -> 7.274724325
A157: =IF(calculations!C161<currentF,alpha*(3*COS(calculations!C161)-COS(3*calculations!C161)),alpha*(3*COS(currentF)-COS(3*currentF))) -> -11.2426567 | B157: =IF(calculations!C161<currentF,4*alpha*(SIN(calculations!C161))^3,4*alpha*(SIN(currentF)^3)) -> -4.573425278 | L157: 154 | M157: =IF(calculations!C160<currentfa,calculations!F160,xcurrenta) -> 1.378721252 | N157: =IF(calculations!C160<currentfa,calculations!G160,ycurrenta) -> 7.274724325
A158: =IF(calculations!C162<currentF,alpha*(3*COS(calculations!C162)-COS(3*calculations!C162)),alpha*(3*COS(currentF)-COS(3*currentF))) -> -11.2426567 | B158: =IF(calculations!C162<currentF,4*alpha*(SIN(calculations!C162))^3,4*alpha*(SIN(currentF)^3)) -> -4.573425278 | L158: 155 | M158: =IF(calculations!C161<currentfa,calculations!F161,xcurrenta) -> 1.378721252 | N158: =IF(calculations!C161<currentfa,calculations!G161,ycurrenta) -> 7.274724325
A159: =IF(calculations!C163<currentF,alpha*(3*COS(calculations!C163)-COS(3*calculations!C163)),alpha*(3*COS(currentF)-COS(3*currentF))) -> -11.2426567 | B159: =IF(calculations!C163<currentF,4*alpha*(SIN(calculations!C163))^3,4*alpha*(SIN(currentF)^3)) -> -4.573425278 | L159: 156 | M159: =IF(calculations!C162<currentfa,calculations!F162,xcurrenta) -> 1.378721252 | N159: =IF(calculations!C162<currentfa,calculations!G162,ycurrenta) -> 7.274724325
A160: =IF(calculations!C164<currentF,alpha*(3*COS(calculations!C164)-COS(3*calculations!C164)),alpha*(3*COS(currentF)-COS(3*currentF))) -> -11.2426567 | B160: =IF(calculations!C164<currentF,4*alpha*(SIN(calculations!C164))^3,4*alpha*(SIN(currentF)^3)) -> -4.573425278 | L160: 157 | M160: =IF(calculations!C163<currentfa,calculations!F163,xcurrenta) -> 1.378721252 | N160: =IF(calculations!C163<currentfa,calculations!G163,ycurrenta) -> 7.274724325
A161: =IF(calculations!C165<currentF,alpha*(3*COS(calculations!C165)-COS(3*calculations!C165)),alpha*(3*COS(currentF)-COS(3*currentF))) -> -11.2426567 | B161: =IF(calculations!C165<currentF,4*alpha*(SIN(calculations!C165))^3,4*alpha*(SIN(currentF)^3)) -> -4.573425278 | L161: 158 | M161: =IF(calculations!C164<currentfa,calculations!F164,xcurrenta) -> 1.378721252 | N161: =IF(calculations!C164<currentfa,calculations!G164,ycurrenta) -> 7.274724325
A162: =IF(calculations!C166<currentF,alpha*(3*COS(calculations!C166)-COS(3*calculations!C166)),alpha*(3*COS(currentF)-COS(3*currentF))) -> -11.2426567 | B162: =IF(calculations!C166<currentF,4*alpha*(SIN(calculations!C166))^3,4*alpha*(SIN(currentF)^3)) -> -4.573425278 | L162: 159 | M162: =IF(calculations!C165<currentfa,calculations!F165,xcurrenta) -> 1.378721252 | N162: =IF(calculations!C165<currentfa,calculations!G165,ycurrenta) -> 7.274724325
A163: =IF(calculations!C167<currentF,alpha*(3*COS(calculations!C167)-COS(3*calculations!C167)),alpha*(3*COS(currentF)-COS(3*currentF))) -> -11.2426567 | B163: =IF(calculations!C167<currentF,4*alpha*(SIN(calculations!C167))^3,4*alpha*(SIN(currentF)^3)) -> -4.573425278 | L163: 160 | M163: =IF(calculations!C166<currentfa,calculations!F166,xcurrenta) -> 1.378721252 | N163: =IF(calculations!C166<currentfa,calculations!G166,ycurrenta) -> 7.274724325
A164: =IF(calculations!C168<currentF,alpha*(3*COS(calculations!C168)-COS(3*calculations!C168)),alpha*(3*COS(currentF)-COS(3*currentF))) -> -11.2426567 | B164: =IF(calculations!C168<currentF,4*alpha*(SIN(calculations!C168))^3,4*alpha*(SIN(currentF)^3)) -> -4.573425278 | L164: 161 | M164: =IF(calculations!C167<currentfa,calculations!F167,xcurrenta) -> 1.378721252 | N164: =IF(calculations!C167<currentfa,calculations!G167,ycurrenta) -> 7.274724325
A165: =IF(calculations!C169<currentF,alpha*(3*COS(calculations!C169)-COS(3*calculations!C169)),alpha*(3*COS(currentF)-COS(3*currentF))) -> -11.2426567 | B165: =IF(calculations!C169<currentF,4*alpha*(SIN(calculations!C169))^3,4*alpha*(SIN(currentF)^3)) -> -4.573425278 | L165: 162 | M165: =IF(calculations!C168<currentfa,calculations!F168,xcurrenta) -> 1.378721252 | N165: =IF(calculations!C168<currentfa,calculations!G168,ycurrenta) -> 7.274724325
A166: =IF(calculations!C170<currentF,alpha*(3*COS(calculations!C170)-COS(3*calculations!C170)),alpha*(3*COS(currentF)-COS(3*currentF))) -> -11.2426567 | B166: =IF(calculations!C170<currentF,4*alpha*(SIN(calculations!C170))^3,4*alpha*(SIN(currentF)^3)) -> -4.573425278 | L166: 163 | M166: =IF(calculations!C169<currentfa,calculations!F169,xcurrenta) -> 1.378721252 | N166: =IF(calculations!C169<currentfa,calculations!G169,ycurrenta) -> 7.274724325
A167: =IF(calculations!C171<currentF,alpha*(3*COS(calculations!C171)-COS(3*calculations!C171)),alpha*(3*COS(currentF)-COS(3*currentF))) -> -11.2426567 | B167: =IF(calculations!C171<currentF,4*alpha*(SIN(calculations!C171))^3,4*alpha*(SIN(currentF)^3)) -> -4.573425278 | L167: 164 | M167: =IF(calculations!C170<currentfa,calculations!F170,xcurrenta) -> 1.378721252 | N167: =IF(calculations!C170<currentfa,calculations!G170,ycurrenta) -> 7.274724325
A168: =IF(calculations!C172<currentF,alpha*(3*COS(calculations!C172)-COS(3*calculations!C172)),alpha*(3*COS(currentF)-COS(3*currentF))) -> -11.2426567 | B168: =IF(calculations!C172<currentF,4*alpha*(SIN(calculations!C172))^3,4*alpha*(SIN(currentF)^3)) -> -4.573425278 | L168: 165 | M168: =IF(calculations!C171<currentfa,calculations!F171,xcurrenta) -> 1.378721252 | N168: =IF(calculations!C171<currentfa,calculations!G171,ycurrenta) -> 7.274724325
A169: =IF(calculations!C173<currentF,alpha*(3*COS(calculations!C173)-COS(3*calculations!C173)),alpha*(3*COS(currentF)-COS(3*currentF))) -> -11.2426567 | B169: =IF(calculations!C173<currentF,4*alpha*(SIN(calculations!C173))^3,4*alpha*(SIN(currentF)^3)) -> -4.573425278 | L169: 166 | M169: =IF(calculations!C172<currentfa,calculations!F172,xcurrenta) -> 1.378721252 | N169: =IF(calculations!C172<currentfa,calculations!G172,ycurrenta) -> 7.274724325
A170: =IF(calculations!C174<currentF,alpha*(3*COS(calculations!C174)-COS(3*calculations!C174)),alpha*(3*COS(currentF)-COS(3*currentF))) -> -11.2426567 | B170: =IF(calculations!C174<currentF,4*alpha*(SIN(calculations!C174))^3,4*alpha*(SIN(currentF)^3)) -> -4.573425278 | L170: 167 | M170: =IF(calculations!C173<currentfa,calculations!F173,xcurrenta) -> 1.378721252 | N170: =IF(calculations!C173<currentfa,calculations!G173,ycurrenta) -> 7.274724325
A171: =IF(calculations!C175<currentF,alpha*(3*COS(calculations!C175)-COS(3*calculations!C175)),alpha*(3*COS(currentF)-COS(3*currentF))) -> -11.2426567 | B171: =IF(calculations!C175<currentF,4*alpha*(SIN(calculations!C175))^3,4*alpha*(SIN(currentF)^3)) -> -4.573425278 | L171: 168 | M171: =IF(calculations!C174<currentfa,calculations!F174,xcurrenta) -> 1.378721252 | N171: =IF(calculations!C174<currentfa,calculations!G174,ycurrenta) -> 7.274724325
A172: =IF(calculations!C176<currentF,alpha*(3*COS(calculations!C176)-COS(3*calculations!C176)),alpha*(3*COS(currentF)-COS(3*currentF))) -> -11.2426567 | B172: =IF(calculations!C176<currentF,4*alpha*(SIN(calculations!C176))^3,4*alpha*(SIN(currentF)^3)) -> -4.573425278 | L172: 169 | M172: =IF(calculations!C175<currentfa,calculations!F175,xcurrenta) -> 1.378721252 | N172: =IF(calculations!C175<currentfa,calculations!G175,ycurrenta) -> 7.274724325
A173: =IF(calculations!C177<currentF,alpha*(3*COS(calculations!C177)-COS(3*calculations!C177)),alpha*(3*COS(currentF)-COS(3*currentF))) -> -11.2426567 | B173: =IF(calculations!C177<currentF,4*alpha*(SIN(calculations!C177))^3,4*alpha*(SIN(currentF)^3)) -> -4.573425278 | L173: 170 | M173: =IF(calculations!C176<currentfa,calculations!F176,xcurrenta) -> 1.378721252 | N173: =IF(calculations!C176<currentfa,calculations!G176,ycurrenta) -> 7.274724325
A174: =IF(calculations!C178<currentF,alpha*(3*COS(calculations!C178)-COS(3*calculations!C178)),alpha*(3*COS(currentF)-COS(3*currentF))) -> -11.2426567 | B174: =IF(calculations!C178<currentF,4*alpha*(SIN(calculations!C178))^3,4*alpha*(SIN(currentF)^3)) -> -4.573425278 | L174: 171 | M174: =IF(calculations!C177<currentfa,calculations!F177,xcurrenta) -> 1.378721252 | N174: =IF(calculations!C177<currentfa,calculations!G177,ycurrenta) -> 7.274724325
A175: =IF(calculations!C179<currentF,alpha*(3*COS(calculations!C179)-COS(3*calculations!C179)),alpha*(3*COS(currentF)-COS(3*currentF))) -> -11.2426567 | B175: =IF(calculations!C179<currentF,4*alpha*(SIN(calculations!C179))^3,4*alpha*(SIN(currentF)^3)) -> -4.573425278 | L175: 172 | M175: =IF(calculations!C178<currentfa,calculations!F178,xcurrenta) -> 1.378721252 | N175: =IF(calculations!C178<currentfa,calculations!G178,ycurrenta) -> 7.274724325
A176: =IF(calculations!C180<currentF,alpha*(3*COS(calculations!C180)-COS(3*calculations!C180)),alpha*(3*COS(currentF)-COS(3*currentF))) -> -11.2426567 | B176: =IF(calculations!C180<currentF,4*alpha*(SIN(calculations!C180))^3,4*alpha*(SIN(currentF)^3)) -> -4.573425278 | L176: 173 | M176: =IF(calculations!C179<currentfa,calculations!F179,xcurrenta) -> 1.378721252 | N176: =IF(calculations!C179<currentfa,calculations!G179,ycurrenta) -> 7.274724325
A177: =IF(calculations!C181<currentF,alpha*(3*COS(calculations!C181)-COS(3*calculations!C181)),alpha*(3*COS(currentF)-COS(3*currentF))) -> -11.2426567 | B177: =IF(calculations!C181<currentF,4*alpha*(SIN(calculations!C181))^3,4*alpha*(SIN(currentF)^3)) -> -4.573425278 | L177: 174 | M177: =IF(calculations!C180<currentfa,calculations!F180,xcurrenta) -> 1.378721252 | N177: =IF(calculations!C180<currentfa,calculations!G180,ycurrenta) -> 7.274724325
A178: =IF(calculations!C182<currentF,alpha*(3*COS(calculations!C182)-COS(3*calculations!C182)),alpha*(3*COS(currentF)-COS(3*currentF))) -> -11.2426567 | B178: =IF(calculations!C182<currentF,4*alpha*(SIN(calculations!C182))^3,4*alpha*(SIN(currentF)^3)) -> -4.573425278 | L178: 175 | M178: =IF(calculations!C181<currentfa,calculations!F181,xcurrenta) -> 1.378721252 | N178: =IF(calculations!C181<currentfa,calculations!G181,ycurrenta) -> 7.274724325
A179: =IF(calculations!C183<currentF,alpha*(3*COS(calculations!C183)-COS(3*calculations!C183)),alpha*(3*COS(currentF)-COS(3*currentF))) -> -11.2426567 | B179: =IF(calculations!C183<currentF,4*alpha*(SIN(calculations!C183))^3,4*alpha*(SIN(currentF)^3)) -> -4.573425278 | L179: 176 | M179: =IF(calculations!C182<currentfa,calculations!F182,xcurrenta) -> 1.378721252 | N179: =IF(calculations!C182<currentfa,calculations!G182,ycurrenta) -> 7.274724325
A180: =IF(calculations!C184<currentF,alpha*(3*COS(calculations!C184)-COS(3*calculations!C184)),alpha*(3*COS(currentF)-COS(3*currentF))) -> -11.2426567 | B180: =IF(calculations!C184<currentF,4*alpha*(SIN(calculations!C184))^3,4*alpha*(SIN(currentF)^3)) -> -4.573425278 | L180: 177 | M180: =IF(calculations!C183<currentfa,calculations!F183,xcurrenta) -> 1.378721252 | N180: =IF(calculations!C183<currentfa,calculations!G183,ycurrenta) -> 7.274724325
A181: =IF(calculations!C185<currentF,alpha*(3*COS(calculations!C185)-COS(3*calculations!C185)),alpha*(3*COS(currentF)-COS(3*currentF))) -> -11.2426567 | B181: =IF(calculations!C185<currentF,4*alpha*(SIN(calculations!C185))^3,4*alpha*(SIN(currentF)^3)) -> -4.573425278 | L181: 178 | M181: =IF(calculations!C184<currentfa,calculations!F184,xcurrenta) -> 1.378721252 | N181: =IF(calculations!C184<currentfa,calculations!G184,ycurrenta) -> 7.274724325
A182: =IF(calculations!C186<currentF,alpha*(3*COS(calculations!C186)-COS(3*calculations!C186)),alpha*(3*COS(currentF)-COS(3*currentF))) -> -11.2426567 | B182: =IF(calculations!C186<currentF,4*alpha*(SIN(calculations!C186))^3,4*alpha*(SIN(currentF)^3)) -> -4.573425278 | L182: 179 | M182: =IF(calculations!C185<currentfa,calculations!F185,xcurrenta) -> 1.378721252 | N182: =IF(calculations!C185<currentfa,calculations!G185,ycurrenta) -> 7.274724325
A183: =IF(calculations!C187<currentF,alpha*(3*COS(calculations!C187)-COS(3*calculations!C187)),alpha*(3*COS(currentF)-COS(3*currentF))) -> -11.2426567 | B183: =IF(calculations!C187<currentF,4*alpha*(SIN(calculations!C187))^3,4*alpha*(SIN(currentF)^3)) -> -4.573425278 | L183: 180 | M183: =IF(calculations!C186<currentfa,calculations!F186,xcurrenta) -> 1.378721252 | N183: =IF(calculations!C186<currentfa,calculations!G186,ycurrenta) -> 7.274724325
A184: =IF(calculations!C188<currentF,alpha*(3*COS(calculations!C188)-COS(3*calculations!C188)),alpha*(3*COS(currentF)-COS(3*currentF))) -> -11.2426567 | B184: =IF(calculations!C188<currentF,4*alpha*(SIN(calculations!C188))^3,4*alpha*(SIN(currentF)^3)) -> -4.573425278 | L184: 181 | M184: =IF(calculations!C187<currentfa,calculations!F187,xcurrenta) -> 1.378721252 | N184: =IF(calculations!C187<currentfa,calculations!G187,ycurrenta) -> 7.274724325
A185: =IF(calculations!C189<currentF,alpha*(3*COS(calculations!C189)-COS(3*calculations!C189)),alpha*(3*COS(currentF)-COS(3*currentF))) -> -11.2426567 | B185: =IF(calculations!C189<currentF,4*alpha*(SIN(calculations!C189))^3,4*alpha*(SIN(currentF)^3)) -> -4.573425278 | L185: 182 | M185: =IF(calculations!C188<currentfa,calculations!F188,xcurrenta) -> 1.378721252 | N185: =IF(calculations!C188<currentfa,calculations!G188,ycurrenta) -> 7.274724325
A186: =IF(calculations!C190<currentF,alpha*(3*COS(calculations!C190)-COS(3*calculations!C190)),alpha*(3*COS(currentF)-COS(3*currentF))) -> -11.2426567 | B186: =IF(calculations!C190<currentF,4*alpha*(SIN(calculations!C190))^3,4*alpha*(SIN(currentF)^3)) -> -4.573425278 | L186: 183 | M186: =IF(calculations!C189<currentfa,calculations!F189,xcurrenta) -> 1.378721252 | N186: =IF(calculations!C189<currentfa,calculations!G189,ycurrenta) -> 7.274724325
A187: =IF(calculations!C191<currentF,alpha*(3*COS(calculations!C191)-COS(3*calculations!C191)),alpha*(3*COS(currentF)-COS(3*currentF))) -> -11.2426567 | B187: =IF(calculations!C191<currentF,4*alpha*(SIN(calculations!C191))^3,4*alpha*(SIN(currentF)^3)) -> -4.573425278 | L187: 184 | M187: =IF(calculations!C190<currentfa,calculations!F190,xcurrenta) -> 1.378721252 | N187: =IF(calculations!C190<currentfa,calculations!G190,ycurrenta) -> 7.274724325
A188: =IF(calculations!C192<currentF,alpha*(3*COS(calculations!C192)-COS(3*calculations!C192)),alpha*(3*COS(currentF)-COS(3*currentF))) -> -11.2426567 | B188: =IF(calculations!C192<currentF,4*alpha*(SIN(calculations!C192))^3,4*alpha*(SIN(currentF)^3)) -> -4.573425278 | L188: 185 | M188: =IF(calculations!C191<currentfa,calculations!F191,xcurrenta) -> 1.378721252 | N188: =IF(calculations!C191<currentfa,calculations!G191,ycurrenta) -> 7.274724325
A189: =IF(calculations!C193<currentF,alpha*(3*COS(calculations!C193)-COS(3*calculations!C193)),alpha*(3*COS(currentF)-COS(3*currentF))) -> -11.2426567 | B189: =IF(calculations!C193<currentF,4*alpha*(SIN(calculations!C193))^3,4*alpha*(SIN(currentF)^3)) -> -4.573425278 | L189: 186 | M189: =IF(calculations!C192<currentfa,calculations!F192,xcurrenta) -> 1.378721252 | N189: =IF(calculations!C192<currentfa,calculations!G192,ycurrenta) -> 7.274724325
A190: =IF(calculations!C194<currentF,alpha*(3*COS(calculations!C194)-COS(3*calculations!C194)),alpha*(3*COS(currentF)-COS(3*currentF))) -> -11.2426567 | B190: =IF(calculations!C194<currentF,4*alpha*(SIN(calculations!C194))^3,4*alpha*(SIN(currentF)^3)) -> -4.573425278 | L190: 187 | M190: =IF(calculations!C193<currentfa,calculations!F193,xcurrenta) -> 1.378721252 | N190: =IF(calculations!C193<currentfa,calculations!G193,ycurrenta) -> 7.274724325
A191: =IF(calculations!C195<currentF,alpha*(3*COS(calculations!C195)-COS(3*calculations!C195)),alpha*(3*COS(currentF)-COS(3*currentF))) -> -11.2426567 | B191: =IF(calculations!C195<currentF,4*alpha*(SIN(calculations!C195))^3,4*alpha*(SIN(currentF)^3)) -> -4.573425278 | L191: 188 | M191: =IF(calculations!C194<currentfa,calculations!F194,xcurrenta) -> 1.378721252 | N191: =IF(calculations!C194<currentfa,calculations!G194,ycurrenta) -> 7.274724325
A192: =IF(calculations!C196<currentF,alpha*(3*COS(calculations!C196)-COS(3*calculations!C196)),alpha*(3*COS(currentF)-COS(3*currentF))) -> -11.2426567 | B192: =IF(calculations!C196<currentF,4*alpha*(SIN(calculations!C196))^3,4*alpha*(SIN(currentF)^3)) -> -4.573425278 | L192: 189 | M192: =IF(calculations!C195<currentfa,calculations!F195,xcurrenta) -> 1.378721252 | N192: =IF(calculations!C195<currentfa,calculations!G195,ycurrenta) -> 7.274724325
A193: =IF(calculations!C197<currentF,alpha*(3*COS(calculations!C197)-COS(3*calculations!C197)),alpha*(3*COS(currentF)-COS(3*currentF))) -> -11.2426567 | B193: =IF(calculations!C197<currentF,4*alpha*(SIN(calculations!C197))^3,4*alpha*(SIN(currentF)^3)) -> -4.573425278 | L193: 190 | M193: =IF(calculations!C196<currentfa,calculations!F196,xcurrenta) -> 1.378721252 | N193: =IF(calculations!C196<currentfa,calculations!G196,ycurrenta) -> 7.274724325
A194: =IF(calculations!C198<currentF,alpha*(3*COS(calculations!C198)-COS(3*calculations!C198)),alpha*(3*COS(currentF)-COS(3*currentF))) -> -11.2426567 | B194: =IF(calculations!C198<currentF,4*alpha*(SIN(calculations!C198))^3,4*alpha*(SIN(currentF)^3)) -> -4.573425278 | L194: 191 | M194: =IF(calculations!C197<currentfa,calculations!F197,xcurrenta) -> 1.378721252 | N194: =IF(calculations!C197<currentfa,calculations!G197,ycurrenta) -> 7.274724325
A195: =IF(calculations!C199<currentF,alpha*(3*COS(calculations!C199)-COS(3*calculations!C199)),alpha*(3*COS(currentF)-COS(3*currentF))) -> -11.2426567 | B195: =IF(calculations!C199<currentF,4*alpha*(SIN(calculations!C199))^3,4*alpha*(SIN(currentF)^3)) -> -4.573425278 | L195: 192 | M195: =IF(calculations!C198<currentfa,calculations!F198,xcurrenta) -> 1.378721252 | N195: =IF(calculations!C198<currentfa,calculations!G198,ycurrenta) -> 7.274724325
A196: =IF(calculations!C200<currentF,alpha*(3*COS(calculations!C200)-COS(3*calculations!C200)),alpha*(3*COS(currentF)-COS(3*currentF))) -> -11.2426567 | B196: =IF(calculations!C200<currentF,4*alpha*(SIN(calculations!C200))^3,4*alpha*(SIN(currentF)^3)) -> -4.573425278 | L196: 193 | M196: =IF(calculations!C199<currentfa,calculations!F199,xcurrenta) -> 1.378721252 | N196: =IF(calculations!C199<currentfa,calculations!G199,ycurrenta) -> 7.274724325
A197: =IF(calculations!C201<currentF,alpha*(3*COS(calculations!C201)-COS(3*calculations!C201)),alpha*(3*COS(currentF)-COS(3*currentF))) -> -11.2426567 | B197: =IF(calculations!C201<currentF,4*alpha*(SIN(calculations!C201))^3,4*alpha*(SIN(currentF)^3)) -> -4.573425278 | L197: 194 | M197: =IF(calculations!C200<currentfa,calculations!F200,xcurrenta) -> 1.378721252 | N197: =IF(calculations!C200<currentfa,calculations!G200,ycurrenta) -> 7.274724325
A198: =IF(calculations!C202<currentF,alpha*(3*COS(calculations!C202)-COS(3*calculations!C202)),alpha*(3*COS(currentF)-COS(3*currentF))) -> -11.2426567 | B198: =IF(calculations!C202<currentF,4*alpha*(SIN(calculations!C202))^3,4*alpha*(SIN(currentF)^3)) -> -4.573425278 | L198: =L197+1 -> 195 | M198: =IF(calculations!C201<currentfa,calculations!F201,xcurrenta) -> 1.378721252 | N198: =IF(calculations!C201<currentfa,calculations!G201,ycurrenta) -> 7.274724325
A199: =IF(calculations!C203<currentF,alpha*(3*COS(calculations!C203)-COS(3*calculations!C203)),alpha*(3*COS(currentF)-COS(3*currentF))) -> -11.2426567 | B199: =IF(calculations!C203<currentF,4*alpha*(SIN(calculations!C203))^3,4*alpha*(SIN(currentF)^3)) -> -4.573425278 | L199: 196 | M199: =IF(calculations!C202<currentfa,calculations!F202,xcurrenta) -> 1.378721252 | N199: =IF(calculations!C202<currentfa,calculations!G202,ycurrenta) -> 7.274724325
A200: =IF(calculations!C204<currentF,alpha*(3*COS(calculations!C204)-COS(3*calculations!C204)),alpha*(3*COS(currentF)-COS(3*currentF))) -> -11.2426567 | B200: =IF(calculations!C204<currentF,4*alpha*(SIN(calculations!C204))^3,4*alpha*(SIN(currentF)^3)) -> -4.573425278 | L200: 197 | M200: =IF(calculations!C203<currentfa,calculations!F203,xcurrenta) -> 1.378721252 | N200: =IF(calculations!C203<currentfa,calculations!G203,ycurrenta) -> 7.274724325
... 36 more rows

Sheet time evolution
